Workbook

Sheet Introduction
C3: Policy & Program Impact Estimator A Materials Recovery GHG Calculator for Communities
C6: Purpose of this Calculator
C7: Generate a customized estimate for tons diverted and lifecycle greenhouse gases reduced over a 10-year period from implementing new or expanded waste management policies & programs in your community or county.
C8: Step 1: Enter data or use defaults for tonnage & composition of what's currently landfilled, combusted, recycled, and composted as a baseline.
C9: Step 2: Consider which policies & programs you'd like to explore and enter or select defaults for projected implementation effects*
C11: Step 3: Review results for the combined projected effect of your policy & program choices. Test sensitivity of results to different policy & program selections and effectiveness assumptions. Note: formatting issues might occur with the charts on the "Results" tab if data are missing or entered incorrectly.
C12: *Policy or program implementation effects are entered as annual percentage increases in recycling or composting and assumed to be fully achieved 1 year following the base year and continued through the 10th year.
C14: You must enable macros to use this spreadsheet!
C15: Go to: Excel Options>Trust Center>Macro settings, select “Disable all macros with notification”, then open up the tool. There will be a Security Warning on the tool bar across the top that shows an “Options” button. Click on the "Options" button and then “Enable this content.”
C16: You can also set up a "trusted location" to place this excel file for automatic enabling of macros to avoid the security warning popup each time the calculator is used. For instructions on how to set up a trusted location, please visit Microsoft's website here: http://office.microsoft.com/en-us/word-help/create-remove-or-change-a-trusted-location-for-your-files-HA010031999.aspx#BM12
C17: Once macros are enabled, you're ready to get started! Use the navigational arrows to move through the tabs and enter information in the pale yellow cells.
C19: Table of Contents
C20: Tab Name and Color | D20: Description
C21: Introduction | D21: Explains how to use this workbook
C22: Baseline Data
C23: Basic Information | D23: Demographic and waste management information for your community
C24: Waste Characterization - Tons | D24: Composition of materials in your community's waste stream based on tons
C25: Waste Characterization - Percent | D25: Composition of materials in your community's waste stream based on percentages
C26: Policy/Program Options & Projections
C27: PAYT | D27: Pay-As-You-Throw (PAYT) for single-family residences
C28: Recycling (Other) | D28: Recycling policies & programs for single-family residences other than PAYT
C29: Food Waste Collection | D29: Curbside food waste collection for single-family residences
C30: Multi-Family Recycling | D30: Multi-family home recycling program
C31: Commercial Diversion | D31: Recycling and composting policies & programs for the commercial sector (e.g., businesses & institutions)
C32: C&D Recycling | D32: Construction & Demolition (C&D) ordinance
C33: Program Implementation Summary | D33: User-entered assumptions for % increase in source reduction, recycling, or composting from policies & programs, along with a column for comments
C34: Results
C35: Results | D35: Tonnage and GHG reduction results from user-entered data (10-year accumulative and final year total)
C36: Printable Results | D36: Results in a format that can be copied to another document or printed
C37: Supplementary Information
C38: Assumptions | D38: Source references and descriptions associated with Assumption footnotes
C39: Material Type Definitions | D39: Definitions for what's included under each material type
C40: Annual Calcs | D40: Year-by-year calculation of results
C41: Default Waste Characterization | D41: Percentage breakdown by material from State and U.S. waste characterization defaults and source references
C42: Emission Factors | D42: WARM emissions factors by material type
C44: Cell or Text Color | D44: Cell Usage
D45: Data entry, values can be modified. Use backspace, not the space bar, to clear values.
D46: Auto-calculated values
D47: Data entry not applicable
D48: Value is a total that was entered on the Basic Information tab
C49: Assumption #X | D49: Footnote reference for a default value or methodology presented in consecutive order on the Assumptions tab
C50: Red Text | D50: Indicates a number has been entered that exceeds the total or generates a negative value
C52: Note: This calculator helps evaluate a range of possible options for reducing lifecycle greenhouse gases. The results do not constitute EPA policy or directives.
C56: Tool last updated 04/07/2016

Sheet Basic Information
B2: Demographic and Waste Management Information | N2: HIDE | O2: HIDE | P2: HIDE | Q2: HIDE
B3: Enter information into the yellow cells below | N3: ICF USE ONLY:
Q4: password = PAYT
E7: City / Town / County | F7: Base Year | G7: End Year | H7: Base Year Population | I7: Annual Population Growth | J7: Est. Pop. End Year
E8: City X | F8: 2016 | G8: =IF(F8="","",F8+Num_Yrs) -> 2026 | H8: 62000 | I8: 0.0082 | J8: =IF(H8="","",H8*(1+I8)^Num_Yrs) -> 67275.76123
I11: ="Assumption #" & TEXT(Assumptions!$C$9,"0") -> Assumption #1
D13: =Base_Yr&" Base Year" -> 2016 Base Year
D15: Waste Management Information
D17: Enter Municipal Solid Waste (MSW) Tonnage
K19: ="Assumptions #" & TEXT(Assumptions!$C$10,"0") & " through #" & TEXT(Assumptions!$C$15,"0") -> Assumptions #2 through #7
E21: Tons Landfilled | G21: Tons Combusted | H21: Tons Recycled | I21: Tons Composted | K21: Total Generated | L21: Tons/Person | N21: For Error Messages:
D22: Total MSW | E22: 25890 | F22: + | G22: 5630.35316 | H22: 12511.89591 | I22: 4090.427509 | J22: = | K22: =IF(ISERROR(MSW_landfilled+MSW_recycled+MSW_composted+MSW_combusted),"",MSW_landfilled+MSW_recycled+MSW_composted+MSW_combusted) -> 48122.67658 | L22: =IF(ISERROR(K22/Base_Pop),"",K22/Base_Pop) -> 0.7761722029 | N22: Any Value <0? | O22: =IF(OR(K22<0,K23<0,K24<0,K34<0,H22<0,H23<0,H24<0,H34<0,I22<0,I23<0,I24<0,G22<0,G23<0,G24<0,E22<0,E24<0,E23<0,E34<0),TRUE,FALSE) -> FALSE
D23: Residential | E23: 13462.8 | F23: + | G23: 2927.783643 | H23: 6506.185874 | I23: 2127.022305 | J23: = | K23: =IF(ISERROR(Res_landfilled+Res_recycled+Res_composted+Res_combusted),"",Res_landfilled+Res_recycled+Res_composted+Res_combusted) -> 25023.79182 | L23: =IF(ISERROR(K23/Base_Pop),"",K23/Base_Pop) -> 0.4036095455
D24: Commercial | E24: =E22-E23 -> 12427.2 | F24: + | G24: =G22-G23 -> 2702.569517 | H24: =H22-H23 -> 6005.710037 | I24: =I22-I23 -> 1963.405204 | J24: = | K24: =K22-K23 -> 23098.88476 | L24: =IF(ISERROR(K24/Base_Pop),"",K24/Base_Pop) -> 0.3725626574
D29: ="Assumptions #" & TEXT(Assumptions!$C$16,"0") & " and #" & TEXT(Assumptions!$C$17,"0") -> Assumptions #8 and #9
D31: Enter Construction & Demolition (C&D) Tonnage
E33: Tons Landfilled | G33: Tons Combusted | H33: Tons Recycled or Reused | I33: Tons Composted | K33: Total Generated | L33: Tons/Person
D34: Total C&D | E34: 20850 | F34: + | H34: 7550 | J34: = | K34: =IF(ISERROR(CD_landfilled+CD_recycled),"",CD_landfilled+CD_recycled) -> 28400 | L34: =IF(ISERROR(K34/Base_Pop),"",K34/Base_Pop) -> 0.4580645161
G35: ="Assumption #" & TEXT(Assumptions!$C$18,"0") -> Assumption #10
E37: Percentage of Total Tons that are Landfilled, Combusted, Recycled, or Composted
E39: % Landfilled | G39: % Combusted | H39: % Recycled | I39: % Composted
D40: Total MSW | E40: =IF(ISERROR(E22/$K22),"",E22/$K22) -> 0.538 | G40: =IF(ISERROR(G22/$K22),"",G22/$K22) -> 0.117 | H40: 0.26 | I40: 0.085
D41: Residential | E41: =IF(ISERROR(E23/$K23),"",E23/$K23) -> 0.538 | G41: 0.117 | H41: 0.26 | I41: 0.085
B42: HIDE - not used | D42: Single-Family | E42: =IF(ISERROR('Waste Characterization-MODEL'!E40/'Waste Characterization-MODEL'!$O40),"",'Waste Characterization-MODEL'!E40/'Waste Characterization-MODEL'!$O40) -> 0.5006578234 | G42: =IF(ISERROR('Waste Characterization-MODEL'!G40/'Waste Characterization-MODEL'!$O40),"",'Waste Characterization-MODEL'!G40/'Waste Characterization-MODEL'!$O40) -> 0.1172440441 | H42: =IF(ISERROR('Waste Characterization-MODEL'!J40/'Waste Characterization-MODEL'!$O40),"",'Waste Characterization-MODEL'!J40/'Waste Characterization-MODEL'!$O40) -> 0.2862132817 | I42: =IF(ISERROR('Waste Characterization-MODEL'!L40/'Waste Characterization-MODEL'!$O40),"",'Waste Characterization-MODEL'!L40/'Waste Characterization-MODEL'!$O40) -> 0.09588485074
B43: HIDE - not used | D43: Multi-Family | E43: =IF(ISERROR(E80/$K80),"",E80/$K80) -> 0.8148840027 | G43: =IF(ISERROR(G80/$K80),"",G80/$K80) -> 0.115189458 | H43: =IF(ISERROR(H80/$K80),"",H80/$K80) -> 0.06563501881 | I43: =IF(ISERROR(I80/$K80),"",I80/$K80) -> 0.00429152046
D44: Commercial | E44: =IF(ISERROR(E24/$K24),"",E24/$K24) -> 0.538 | G44: =IF(ISERROR(G24/$K24),"",G24/$K24) -> 0.117 | H44: =IF(ISERROR(H24/$K24),"",H24/$K24) -> 0.26 | I44: =IF(ISERROR(I24/$K24),"",I24/$K24) -> 0.085
D46: Total C&D | E46: =IF(ISERROR(E34/$K34),"",E34/$K34) -> 0.7341549296 | H46: =IF(ISERROR(H34/$K34),"",H34/$K34) -> 0.2658450704
D49: Enter Annual Growth Rates for MSW and C&D Generated1
D52: MSW
D53: Residential | E53: -0.007586775736
D54: Commercial | E54: -0.007586775736
D56: C&D | E56: 0.03239118471
D57: 1 annual percent increase per capita
D58: ="Assumptions #" & TEXT(Assumptions!$C$19,"0") & " through #" & TEXT(Assumptions!$C$22,"0") -> Assumptions #11 through #14
D60: Estimate MSW from Multi-Family Homes (MFH)
D61: Place a check in one of the boxes below
N64: MFH waste is a subset of:
N65: residential
N66: =IF(MFH_ResorCom="residential", TRUE, FALSE) -> TRUE | O66: <- show assumption?
D68: EITHER Estimate the percentage of Multi-Family Home MSW as a subset of Residential or Commercial MSW (as applicable)
E69: % of Tons Landfilled | G69: % of Tons Combusted | H69: % of Tons Recycled | I69: % of Tons Composted
E70: 0.18 | G70: 0.117 | H70: 0.03 | I70: 0.006
L75: ="Assumption #" & TEXT(Assumptions!C25,"0") -> Assumption #17
D77: ="Assumption #" & TEXT(Assumptions!C24,"0") -> Assumption #16
D78: OR Enter tonnage estimates for multi-family homes directly in the yellow cells provided below.
E79: Tons Landfilled | G79: Tons Combusted | H79: Tons Recycled | I79: Tons Composted | K79: Total Generated | L79: Tons/Person
E80: 2423.304 | F80: + | G80: 342.5506862 | H80: 195.1855762 | I80: 12.76213383 | J80: = | K80: =IF(ISERROR(MFH_landfilled+MFH_recycled+MFH_composted+MFH_combusted),"",MFH_landfilled+MFH_recycled+MFH_composted+MFH_combusted) -> 2973.802396 | L80: =IF(ISERROR(K80/Base_Pop),"",K80/Base_Pop) -> 0.04796455478 | N80: =MFH_recycled/MFH_total -> 0.06563501881
B82: HIDE | D82: Single-Family / Commercial calcs | E82: Tons Landfilled | G82: Tons Recycled | H82: Tons Composted | I82: Tons Combusted | L82: Tons/Person
B83: HIDE | D83: Single-Family Home Waste | E83: =IF(MFH_ResorCom="residential",Res_landfilled-MFH_landfilled,Res_landfilled) -> 11039.496 | G83: =IF(MFH_ResorCom="residential",Res_recycled-MFH_recycled,Res_recycled) -> 6311.000297 | H83: =IF(MFH_ResorCom="residential",Res_composted-MFH_composted,Res_composted) -> 2114.260171 | I83: =IF(MFH_ResorCom="residential",Res_combusted-MFH_combusted,Res_combusted) -> 2585.232957 | L83: =IF(ISERROR(K83/Base_Pop),"",K83/Base_Pop) -> 0
B84: HIDE | D84: Commercial Waste | E84: =IF(MFH_ResorCom="commercial",Com_landfilled-MFH_landfilled,Com_landfilled) -> 12427.2 | G84: =IF(MFH_ResorCom="commercial",Com_recycled-MFH_recycled,Com_recycled) -> 6005.710037 | H84: =IF(MFH_ResorCom="commercial",Com_composted-MFH_composted,Com_composted) -> 1963.405204 | I84: =IF(MFH_ResorCom="commercial",Com_combusted-MFH_combusted,Com_combusted) -> 2702.569517 | L84: =IF(ISERROR(K84/Base_Pop),"",K84/Base_Pop) -> 0
B85: HIDE
D89: First look up how many MFH units are in your community using census data:
D90: http://factfinder.census.gov/faces/nav/jsf/pages/index.xhtml
D92: Enter number of MFH housing units here:
D94: Using a default value of 1 ton/MFH/year, assume that Multi-Family Homes in your community
D95: are generating approximately | E95: =TEXT(F92*TonsWaste_perMFH,"0,0") -> 00 | F95: tons per year (including what's landfilled,
D96: combusted, recycled, and composted). | F96: ="Assumption #" & TEXT(Assumptions!$C$23,"0") -> Assumption #15
D98: Next, estimate a percentage recycling rate for Multi-Family Homes in your community.
D99: Enter percentage here:
D101: Based on the values entered above, tons recycled from MFHs = | G101: =TEXT(F92*TonsWaste_perMFH*E99,"0,0") -> 00
D103: ="Use these estimates to fill in the yellow entry cells in row " & ROW(MFH_landfilled) & " above." -> Use these estimates to fill in the yellow entry cells in row 80 above.
I104: ="Assumption #" & TEXT(Assumptions!C25,"0") -> Assumption #17
D107: Waste Characterization by Material Type
D108: The next step is to enter waste characterization, or the amount of waste by type (e.g., metal, glass, plastic, etc.).
D109: You can either enter this information as tons of waste (e.g., 5 tons of metal, 10 tons of glass, 8 tons of plastic, etc.) or as percent distribution (e.g., 10% metal, 5% glass, 25% plastic, etc.).
I113: You have currently selected to enter waste characterization by: | J113: =UserSelection_TonsPercent -> Percent

Sheet Waste Characterization-Tons (hidden)
V1: HIDE | W1: HIDE | X1: HIDE
B2: Waste Characterization By Material Type - Tons
B3: Enter information into the yellow cells below
D4: NOTE: You recently updated your waste information on the Basic Information tab. Please make sure to update the tables below so that they reflect your most recent changes. | W4: User Changed Basic Info Value? | X4: ='Waste Characterization-MODEL'!$H$4 -> FALSE
C6: Base Year Waste Characterization
V7: Any Value <0? | X7: =IF(OR(X28,X60,X91),TRUE,FALSE) -> FALSE
C11: Single-Family Homes
C12: Note: the same waste characterization percentages entered for Single Family Homes are applied to tonnage estimates for Multi-Family Homes. See the Annual Calcs Tab to view MFH tonnage broken out by material type. | W12: Show U.S. Defaults? | X12: FALSE
D15: Note: Selecting a default (or "NO DEFAULT") will overwrite values entered in the table.
D16: ="See Default Waste Characterization tab for more information on the default rates." -> See Default Waste Characterization tab for more information on the default rates.
D18: Option 2: Enter your own data, with option to select a State or U.S. default for some parameters.
E21: Disposed or Incinerated | J21: Diverted | O21: Total Generated | R21: Diversion Rate
R22: of each material
R23: (column (J+L)÷O)
J24: Note: U.S. default percentages for materials diverted may not always be compatible with State or local waste characterization percentages for materials landfilled.
D26: Assumption #18
E28: Landfilled | G28: Combusted | J28: Recycled | L28: Composted | O28: Generated | W28: Any Value <0? | X28: =IF(OR(O30<0,O31<0,O32<0,O33<0,O34<0,O35<0,O36<0,O37<0,O38<0,J30<0,J31<0,J32<0,J33<0,J34<0,J37<0,J38<0,L35<0,L36<0,L37<0,L38<0,G30<0,G31<0,G32<0,G33<0,G34<0,G35<0,G36<0,G37<0,G38<0,E30<0,E31<0,E32<0,E33<0,E34<0,E35<0,E36<0,E37<0,E38<0,P30<0,P31<0,P32<0,P33<0,P34<0,P35<0,P36<0,P37<0,P38<0,K30<0,K31<0,K32<0,K33<0,K34<0,K37<0,M35<0,M36<0,M37<0,H30<0,H31<0,H32<0,H33<0,H34<0,H35<0,H36<0,H37<0,F30<0,F31<0,F32<0,F33<0,F34<0,F35<0,F36<0,F37<0),TRUE,FALSE) -> FALSE
E29: Tons | F29: % of Total Tons Landfilled | G29: Tons | H29: % of Total Tons Combusted | J29: Tons | K29: % of Total Tons Recycled | L29: Tons | M29: % of Total Tons Composted | O29: Tons | P29: % of Total Tons Generated | R29: % of Material that is Recycled or Composted | V29: =Res_landfilled -> 13462.8
D30: Metal | E30: 518.856312 | F30: =IF(ISERROR(E30/E$38),0,E30/E$38) -> 0.04699998297 | I30: + | K30: =IF(ISERROR(J30/J$38),0,J30/J$38) -> 0 | N30: = | O30: =IF(ISERROR(E30+J30+L30+G30),0,E30+J30+L30+G30) -> 518.856312 | P30: =IF(ISERROR(O30/O$38),0,O30/O$38) -> 0.02353090918 | R30: =IF(ISERROR((J30+L30)/O30),0,(J30+L30)/O30) -> 0 | V30: 0.08985207281 | W30: =V30-F30 -> 0.04285208984
D31: Glass | E31: 353.263872 | F31: =IF(ISERROR(E31/E$38),0,E31/E$38) -> 0.03199998841 | I31: + | K31: =IF(ISERROR(J31/J$38),0,J31/J$38) -> 0 | N31: = | O31: =IF(ISERROR(E31+J31+L31+G31),0,E31+J31+L31+G31) -> 353.263872 | P31: 0.01602104454 | R31: =IF(ISERROR((J31+L31)/O31),0,(J31+L31)/O31) -> 0 | V31: 0.05095269982 | W31: =V31-F31 -> 0.01895271142
D32: Plastic | E32: 1258.502544 | F32: 0.1139999587 | H32: =IF(ISERROR(G32/G$38),0,G32/G$38) -> 0 | I32: + | K32: =IF(ISERROR(J32/J$38),0,J32/J$38) -> 0 | N32: = | O32: 1258.502544 | P32: 0.05707497119 | R32: 0 | V32: 0.1762342485 | W32: 0.0622342898
D33: Paper | E33: 2340.373152 | F33: 0.2119999232 | H33: =IF(ISERROR(G33/G$38),0,G33/G$38) -> 0 | I33: + | K33: =IF(ISERROR(J33/J$38),0,J33/J$38) -> 0 | N33: = | O33: 2340.373152 | P33: 0.1061394201 | R33: 0 | V33: 0.1476836915 | W33: -0.0643162317
D34: Wood | E34: 651.330264 | F34: 0.05899997862 | H34: 0 | I34: + | K34: =IF(ISERROR(J34/J$38),0,J34/J$38) -> 0 | N34: = | O34: 651.330264 | P34: 0.02953880088 | R34: 0 | V34: 0.08163389542 | W34: 0.02263391679
D35: Food Waste | E35: 1302.660528 | F35: 0.1179999572 | H35: 0 | I35: + | M35: =IF(ISERROR(L35/L$38),0,L35/L$38) -> 0 | N35: = | O35: 1302.660528 | P35: 0.05907760176 | R35: 0 | V35: 0.2111767213 | W35: 0.09317676401
D36: Yard Trimmings | E36: 1611.766416 | F36: 0.1459999471 | H36: 0 | I36: + | M36: =IF(ISERROR(L36/L$38),0,L36/L$38) -> 0 | N36: = | O36: 1611.766416 | P36: 0.07309601574 | R36: 0 | V36: 0.08747793267 | W36: -0.05852201443
D37: Other / Undifferentiated | E37: =IF(ISERROR(ROUND(E38-SUM(E30:E36),2)),ROUND(0-SUM(E30:E36),2),ROUND(E38-SUM(E30:E36),2)) -> 3002.75 | F37: 0.2720005435 | G37: =IF(ISERROR(ROUND(G38-SUM(G30:G36),2)),ROUND(0-SUM(G30:G36),2),ROUND(G38-SUM(G30:G36),2)) -> 2585.23 | H37: 1 | I37: + | J37: =IF(ISERROR(ROUND(J38-SUM(J30:J36),2)),ROUND(0-SUM(J30:J36),2),ROUND(J38-SUM(J30:J36),2)) -> 6311 | K37: =IF(ISERROR(J37/J$38),0,J37/J$38) -> 1 | L37: =IF(ISERROR(ROUND(L38-SUM(L30:L36),2)),ROUND(0-SUM(L30:L36),2),ROUND(L38-SUM(L30:L36),2)) -> 2114.26 | M37: =IF(ISERROR(L37/L$38),0,L37/L$38) -> 1 | N37: = | O37: =IF(ISERROR(ROUND(O38-SUM(O30:O36),2)),ROUND(0-SUM(O30:O36),2),ROUND(O38-SUM(O30:O36),2)) -> 14013.24 | P37: 0.6355213767 | R37: 0.6012356885
D38: Total* | E38: =IF(OR(SFH_landfilled="",SFH_landfilled=0),0,ROUND(SFH_landfilled,2)) -> 11039.5 | F38: =IF(ISERROR(E38/E$38),0,E38/E$38) -> 1 | G38: =IF(OR(SFH_combusted="",SFH_combusted=0),0,ROUND(SFH_combusted,2)) -> 2585.23 | H38: 1 | I38: + | J38: =IF(OR(SFH_recycled="",SFH_recycled=0),0,ROUND(SFH_recycled,2)) -> 6311 | K38: =IF(ISERROR(J38/J$38),0,J38/J$38) -> 1 | L38: =IF(OR(SFH_composted="",SFH_composted=0),0,ROUND(SFH_composted,2)) -> 2114.26 | M38: =IF(ISERROR(L38/L$38),0,L38/L$38) -> 1 | N38: = | O38: =IF(ISERROR(SUM(E38,G38,L38,J38)),0,SUM(E38,G38,L38,J38)) -> 22049.99 | P38: 1 | R38: 0.3820981325
E39: * These totals are from values entered on the Basic Information tab.
E40: Red numbers appear for values that are > 100% or that are negative. The table auto-calculates some values so red numbers may appear as you are entering data. If red numbers still appear once you have filled out the table, check that the amount(s) entered for recycled, composted, combusted, and landfilled do not exceed the amount for total generated.
C44: Commercial
D48: Note: Selecting a default (or "NO DEFAULT") will overwrite values entered in the table.
D51: Option 2: Enter your own data, with option to select a State or U.S. default for some parameters.
E53: Disposed or Incinerated | J53: Diverted | O53: Total Generated | R53: Diversion Rate
R54: of each material
R55: (column (J+L)÷O)
J56: Note: U.S. default percentages for materials diverted may not always be compatible with State or local waste characterization percentages for materials landfilled.
E60: Landfilled | G60: Combusted | J60: Recycled | L60: Composted | O60: Generated | W60: Any Value <0? | X60: =IF(OR(O62<0,O63<0,O64<0,O65<0,O66<0,O67<0,O68<0,O69<0,O70<0,J62<0,J63<0,J64<0,J65<0,J66<0,J69<0,J70<0,L67<0,L68<0,L69<0,L70<0,G62<0,G63<0,G64<0,G65<0,G66<0,G67<0,G68<0,G69<0,G70<0,E62<0,E63<0,E64<0,E65<0,E66<0,E67<0,E68<0,E69<0,E70<0,P62<0,P63<0,P64<0,P65<0,P66<0,P67<0,P68<0,P69<0,P70<0,K62<0,K63<0,K64<0,K65<0,K66<0,K69<0,M67<0,M68<0,M69<0,H62<0,H63<0,H64<0,H65<0,H66<0,H67<0,H68<0,H69<0,F62<0,F63<0,F64<0,F65<0,F66<0,F67<0,F68<0,F69<0),TRUE,FALSE) -> FALSE
E61: Tons | F61: % of Total Tons Landfilled | G61: Tons | H61: % of Total Tons Combusted | J61: Tons | K61: % of Total Tons Recycled | L61: Tons | M61: % of Total Tons Composted | O61: Tons | P61: % of Total Tons Generated | R61: % of Material that is Recycled or Composted
D62: Metal | E62: 596.5056 | F62: =IF(ISERROR(E62/E$70),0,E62/E$70) -> 0.048 | I62: + | K62: =IF(ISERROR(J62/J$70),0,J62/J$70) -> 0 | N62: = | O62: =IF(ISERROR(E62+J62+L62+G62),0,E62+J62+L62+G62) -> 596.5056 | P62: =IF(ISERROR(O62/O$70),0,O62/O$70) -> 0.02582399414 | R62: =IF(ISERROR((J62+L62)/O62),0,(J62+L62)/O62) -> 0 | X62: =IF(OR(E68<0,E69<0,E70<0,P62<0,P63<0,P64<0,P65<0,P66<0,P67<0,P68<0,P69<0,P70<0,K62<0,K63<0,K64<0,K65<0,K66<0,K69<0,M67<0,M68<0,M69,H62<0,H63<0,H64<0,H65<0,H66<0,H67<0,H68<0,H69<0,F62<0,F63<0,F64<0,F65<0,F66<0,F67<0,F68<0,F69<0),TRUE,FALSE) -> TRUE
D63: Glass | E63: 248.544 | F63: =IF(ISERROR(E63/E$70),0,E63/E$70) -> 0.02 | I63: + | K63: =IF(ISERROR(J63/J$70),0,J63/J$70) -> 0 | N63: = | O63: =IF(ISERROR(E63+J63+L63+G63),0,E63+J63+L63+G63) -> 248.544 | P63: =IF(ISERROR(O63/O$70),0,O63/O$70) -> 0.01075999756 | R63: =IF(ISERROR((J63+L63)/O63),0,(J63+L63)/O63) -> 0 | X63: =IF(OR(E68<0,E69<0,E70<0,P62<0,P63<0,P64<0,P65<0,P66<0,P67<0,P68<0,P69<0,P70<0,K62<0,K63<0,K64<0,K65<0,K66<0,K69<0,M67<0,M68<0,M69,H62<0,H63<0,H64<0,H65<0,H66<0,H67<0,H68<0,H69<0,F62<0,F63<0,F64<0,F65<0,F66<0,F67<0,F68<0,F69<0),TRUE,FALSE) -> TRUE
D64: Plastic | E64: 2025.6336 | F64: 0.163 | H64: =IF(ISERROR(G64/G$70),0,G64/G$70) -> 0 | I64: + | K64: =IF(ISERROR(J64/J$70),0,J64/J$70) -> 0 | N64: = | O64: 2025.6336 | P64: 0.0876939801 | R64: 0
D65: Paper | E65: 3106.8 | F65: 0.25 | H65: =IF(ISERROR(G65/G$70),0,G65/G$70) -> 0 | I65: + | K65: =IF(ISERROR(J65/J$70),0,J65/J$70) -> 0 | N65: = | O65: 3106.8 | P65: 0.1344999695 | R65: 0
D66: Wood | E66: 1441.5552 | F66: 0.116 | H66: 0 | I66: + | K66: =IF(ISERROR(J66/J$70),0,J66/J$70) -> 0 | N66: = | O66: 1441.5552 | P66: 0.06240798584 | R66: 0
D67: Food Waste | E67: 1690.0992 | F67: 0.136 | H67: 0 | I67: + | M67: =IF(ISERROR(L67/L$70),0,L67/L$70) -> 0 | N67: = | O67: 1690.0992 | P67: 0.0731679834 | R67: 0
D68: Yard Trimmings | E68: 248.544 | F68: 0.02 | H68: 0 | I68: + | M68: =IF(ISERROR(L68/L$70),0,L68/L$70) -> 0 | N68: = | O68: 248.544 | P68: 0.01075999756 | R68: 0
D69: Other / Undifferentiated | E69: =IF(ISERROR(ROUND(E70-SUM(E62:E68),2)),ROUND(0-SUM(E62:E68),2),ROUND(E70-SUM(E62:E68),2)) -> 3069.52 | F69: 0.2470001287 | G69: =IF(ISERROR(ROUND(G70-SUM(G62:G68),2)),ROUND(0-SUM(G62:G68),2),ROUND(G70-SUM(G62:G68),2)) -> 2702.57 | H69: 1 | I69: + | J69: =IF(ISERROR(ROUND(J70-SUM(J62:J68),2)),ROUND(0-SUM(J62:J68),2),ROUND(J70-SUM(J62:J68),2)) -> 6005.71 | K69: =IF(ISERROR(J69/J$70),0,J69/J$70) -> 1 | L69: =IF(ISERROR(ROUND(L70-SUM(L62:L68),2)),ROUND(0-SUM(L62:L68),2),ROUND(L70-SUM(L62:L68),2)) -> 1963.41 | M69: =IF(ISERROR(L69/L$70),0,L69/L$70) -> 1 | N69: = | O69: =IF(ISERROR(ROUND(O70-SUM(O62:O68),2)),ROUND(0-SUM(O62:O68),2),ROUND(O70-SUM(O62:O68),2)) -> 13741.21 | P69: 0.5948861612 | R69: 0.5799431054
D70: Total* | E70: =IF(OR(Com_landfilled_actual="",Com_landfilled_actual=0),0,ROUND(Com_landfilled_actual,2)) -> 12427.2 | F70: 1 | G70: =IF(OR(Com_combusted_actual="",Com_combusted_actual=0),0,ROUND(Com_combusted_actual,2)) -> 2702.57 | H70: 1 | I70: + | J70: =IF(OR(Com_recycled_actual="",Com_recycled_actual=0),0,ROUND(Com_recycled_actual,2)) -> 6005.71 | K70: =IF(ISERROR(J70/J$70),0,J70/J$70) -> 1 | L70: =IF(OR(Com_composted_actual="",Com_composted_actual=0),0,ROUND(Com_composted_actual,2)) -> 1963.41 | M70: =IF(ISERROR(L70/L$70),0,L70/L$70) -> 1 | N70: = | O70: =IF(ISERROR(SUM(E70,G70,L70,J70)),0,SUM(E70,G70,L70,J70)) -> 23098.89 | P70: 1 | R70: 0.3450001277
E71: * These totals are from values entered on the Basic Information tab.
E72: Red numbers appear for values that are > 100% or that are negative. The table auto-calculates some values so red numbers may appear as you are entering data. If red numbers still appear once you have filled out the table, check that the amount(s) entered for recycled, composted, combusted, and landfilled do not exceed the amount for total generated.
C76: Construction & Demolition
D78: Note: Selecting a default (or "NO DEFAULT") will overwrite values entered in the table.
E83: Disposed | G83: Diverted | J83: Total Generated | M83: Diversion Rate
G84: Enter data below (as available) | J84: These numbers are auto-calculated as the sum of landfilled, combusted, recycled, and composted waste tonnages. | M84: of each material
M85: (column G÷J)
G86: Include only C&D recycled / reused from building projects unless new or expanded requirements will apply to other C&D sources
E91: Landfilled | G91: Recycling/Reuse | J91: Total Generated | W91: Any Value <0? | X91: =IF(OR(J93<0,J94<0,J95<0,J96<0,J97<0,J98<0,J99<0,J100<0,J101<0,J102<0,J103<0,J104<0,J105<0,J106<0,J107<0,J109<0,J110<0,G93<0,G94<0,G95<0,G96<0,G97<0,G98<0,G99<0,G100<0,G101<0,G102<0,G103<0,G104<0,G105<0,G106<0,G107<0,G109<0,G110<0,E93<0,E94<0,E95<0,E96<0,E97<0,E98<0,E99<0,E100<0,E101<0,E102<0,E103<0,E104<0,E105<0,E106<0,E107<0,E109<0,E110<0,K93<0,K94<0,K95<0,K96<0,K97<0,K98<0,K99<0,K100<0,K101<0,K102<0,K103<0,K104<0,K105<0,K106<0,K107<0,K109<0,K110<0,H93<0,H94<0,H95<0,H96<0,H97<0,H98<0,H99<0,H100<0,H101<0,H102<0,H103<0,H104<0,H105<0,H106<0,H107<0,H109<0,F93<0,F94<0,F95<0,F96<0,F97<0,F98<0,F99<0,F100<0,F101<0,F102<0,F103<0,F104<0,F105<0,F106<0,F107<0,F109<0),TRUE,FALSE) -> FALSE
E92: Tons | F92: % of Total Tons Landfilled | G92: Tons | H92: % of Total Tons Recycled/ Reused | J92: Tons | K92: % of Total Tons Generated | M92: % of Material that is Recycled or Reused
D93: =IF(WasteStateSelection_cd="Minnesota","Asphalt Concrete †","Asphalt Concrete") -> Asphalt Concrete | F93: =IF(ISERROR(E93/E$110),0,E93/E$110) -> 0 | H93: =IF(ISERROR(G93/G$110),0,G93/G$110) -> 0 | J93: =IF(ISERROR(E93+G93),0,E93+G93) -> 0 | K93: =IF(ISERROR(J93/J$110),0,J93/J$110) -> 0 | M93: =IF(ISERROR(G93/J93),0,G93/J93) -> 0
D94: Concrete | F94: =IF(ISERROR(E94/E$110),0,E94/E$110) -> 0 | H94: =IF(ISERROR(G94/G$110),0,G94/G$110) -> 0 | J94: =IF(ISERROR(E94+G94),0,E94+G94) -> 0 | K94: =IF(ISERROR(J94/J$110),0,J94/J$110) -> 0 | M94: =IF(ISERROR(G94/J94),0,G94/J94) -> 0
D95: Drywall | F95: 0 | H95: 0 | J95: 0 | K95: 0 | M95: 0
D96: Dimensional lumber and General Wood Products | F96: 0 | H96: 0 | J96: 0 | K96: 0 | M96: 0
D97: Medium-Density Fiberboard, Plywood, and Related Products | F97: 0 | H97: 0 | J97: 0 | K97: 0 | M97: 0
D98: Asphalt Shingles-Fiberglass | F98: 0 | H98: 0 | J98: 0 | K98: 0 | M98: 0
D99: Clay Bricks ǂ | F99: 0 | H99: 0 | J99: 0 | K99: 0 | M99: 0
D100: Ferrous Metals | F100: 0 | H100: 0 | J100: 0 | K100: 0 | M100: 0
D101: Non Ferrous Metals | F101: 0 | H101: 0 | J101: 0 | K101: 0 | M101: 0
D102: Mixed Plastics | F102: 0 | H102: 0 | J102: 0 | K102: 0 | M102: 0
D103: Cardboard | F103: 0 | H103: 0 | J103: 0 | K103: 0 | M103: 0
D104: Carpet | F104: 0 | H104: 0 | J104: 0 | K104: 0 | M104: 0
B105: HIDE | D105: Vinyl Flooring | F105: 0 | H105: 0 | J105: 0 | K105: 0 | M105: 0
B106: HIDE | D106: PVC | F106: 0 | H106: 0 | J106: 0 | K106: 0 | M106: 0
B107: HIDE | D107: Fiberglass Insulation | F107: 0 | H107: 0 | J107: 0 | K107: 0 | M107: 0
B108: HIDE | D108: Wood Flooring, Cabinets, Doors | F108: 0 | H108: 0 | J108: 0 | K108: 0 | M108: 0
D109: Other / Undifferentiated | E109: =IF(ISERROR(ROUND(E110-SUM(E93:E108),2)),ROUND(0-SUM(E93:E107),2),ROUND(E110-SUM(E93:E107),2)) -> 20850 | F109: 1 | G109: =IF(ISERROR(ROUND(G110-SUM(G93:G108),2)),ROUND(0-SUM(G93:G107),2),ROUND(G110-SUM(G93:G107),2)) -> 7550 | H109: 1 | J109: =IF(ISERROR(ROUND(J110-SUM(J93:J108),2)),ROUND(0-SUM(J93:J107),2),ROUND(J110-SUM(J93:J107),2)) -> 28400 | K109: 1 | M109: =IF(ISERROR(G109/J109),0,G109/J109) -> 0.2658450704
D110: Total* | E110: =IF(OR(CD_landfilled="",CD_landfilled=0),0,ROUND(CD_landfilled,2)) -> 20850 | F110: 1 | G110: =IF(OR(CD_recycled="",CD_recycled=0),0,ROUND(CD_recycled,2)) -> 7550 | H110: 1 | J110: =IF(ISERROR(E110+G110),0,E110+G110) -> 28400 | K110: 1 | M110: =IF(ISERROR(G110/J110),0,G110/J110) -> 0.2658450704
E111: * These totals are from values entered on the Basic Information tab.
E112: ="ǂ WARM recycling factors are not available for clay bricks. However, clay bricks can be reused, so the 'source reduction' emission factors are used to represent reuse." & IF(WasteStateSelection_cd="Delaware"," Clay Bricks are captured under the 'concrete' category.","") -> ǂ WARM recycling factors are not available for clay bricks. However, clay bricks can be reused, so the 'source reduction' emission factors are used to represent reuse.
E113: Red numbers appear for values that are > 100% or that are negative. The table auto-calculates some values so red numbers may appear as you are entering data. If red numbers still appear once you have filled out the table, check that the amount(s) entered for recycled, composted, combusted, and landfilled do not exceed the amount for total generated.
E115: =IF(WasteStateSelection_cd="Minnesota","† Asphalt Concrete is captured under the 'concrete' category.","") -> 

Sheet Waste Characterization-Percent
V1: HIDE | W1: HIDE | X1: HIDE
B2: Waste Characterization By Material Type - Percent
B3: Enter information into the yellow cells below
D4: NOTE: You recently updated your waste information on the Basic Information tab. Please make sure to update the tables below so that they reflect your most recent changes. | W4: User Changed Basic Info Value? | X4: ='Waste Characterization-MODEL'!$H$4 -> FALSE
C6: Base Year Waste Characterization
V7: Any Value <0? | X7: =IF(OR(X20,X50,X85),TRUE,FALSE) -> FALSE
C11: Single-Family Homes
C12: Note: the same waste characterization percentages entered for Single Family Homes are applied to tonnage estimates for Multi-Family Homes. See the Annual Calcs Tab to view MFH tonnage broken out by material type. | W12: Show U.S. Defaults? | X12: TRUE
D15: Note: Selecting a default (or "NO DEFAULT") will overwrite values entered in the table.
D16: ="See Default Waste Characterization tab for more information on the default rates." -> See Default Waste Characterization tab for more information on the default rates.
D18: Option 2: Enter your own data, with option to select a State or U.S. default for some parameters.
W20: Any Value <0? | X20: =IF(OR(O30<0,O31<0,O32<0,O33<0,O34<0,O35<0,O36<0,O37<0,O38<0,J30<0,J31<0,J32<0,J33<0,J34<0,J37<0,J38<0,L35<0,L36<0,L37<0,L38<0,G30<0,G31<0,G32<0,G33<0,G34<0,G35<0,G36<0,G37<0,G38<0,E30<0,E31<0,E32<0,E33<0,E34<0,E35<0,E36<0,E37<0,E38<0,P30<0,P31<0,P32<0,P33<0,P34<0,P35<0,P36<0,P37<0,P38<0,K30<0,K31<0,K32<0,K33<0,K34<0,K37<0,M35<0,M36<0,M37<0,H30<0,H31<0,H32<0,H33<0,H34<0,H35<0,H36<0,H37<0,F30<0,F31<0,F32<0,F33<0,F34<0,F35<0,F36<0,F37<0),TRUE,FALSE) -> FALSE
E21: Disposed or Incinerated | J21: Diverted | O21: Total Generated | R21: Diversion Rate
R22: of each material
R23: (column (J+L)÷O)
J24: Note: U.S. default percentages for materials diverted may not always be compatible with State or local waste characterization percentages for materials landfilled.
D26: Assumption #18
E28: Landfilled | G28: Combusted | J28: Recycled | L28: Composted | O28: Generated
E29: Tons | F29: % of Total Tons Landfilled | G29: Tons | H29: % of Total Tons Combusted | J29: Tons | K29: % of Total Tons Recycled | L29: Tons | M29: % of Total Tons Composted | O29: Tons | P29: % of Total Tons Generated | R29: % of Material that is Recycled or Composted
D30: Metal | E30: =IF(ISERROR(E$38*F30),0,E$38*F30) -> 518.8565 | F30: 0.047 | I30: + | J30: =IF(ISERROR(J$38*K30),0,J$38*K30) -> 767.1852023 | K30: 0.1215631758 | N30: = | O30: =IF(ISERROR(E30+J30+L30+G30),0,E30+J30+L30+G30) -> 1286.041702 | P30: =IF(ISERROR(O30/O$38),0,O30/O$38) -> 0.05832391318 | R30: =IF(ISERROR((J30+L30)/O30),0,(J30+L30)/O30) -> 0.5965476866 | V30: 0.08985207281 | W30: =V30-F30 -> 0.04285207281
D31: Glass | E31: =IF(ISERROR(E$38*F31),0,E$38*F31) -> 353.264 | F31: 0.032 | I31: + | J31: =IF(ISERROR(J$38*K31),0,J$38*K31) -> 307.0690454 | K31: 0.04865616311 | N31: = | O31: =IF(ISERROR(E31+J31+L31+G31),0,E31+J31+L31+G31) -> 660.3330454 | P31: =IF(ISERROR(O31/O$38),0,O31/O$38) -> 0.02994709047 | R31: =IF(ISERROR((J31+L31)/O31),0,(J31+L31)/O31) -> 0.4650214729 | V31: 0.05095269982 | W31: =V31-F31 -> 0.01895269982
D32: Plastic | E32: 1258.503 | F32: 0.114 | G32: =IF(ISERROR(G$38*H32),0,G$38*H32) -> 294.71622 | H32: 0.114 | I32: + | J32: =IF(ISERROR(J$38*K32),0,J$38*K32) -> 292.4467099 | K32: 0.04633920297 | N32: = | O32: 1845.66593 | P32: 0.08370370825 | R32: 0.1584505111 | V32: 0.1762342485 | W32: 0.06223424849
D33: Paper | E33: 2340.374 | F33: 0.212 | G33: =IF(ISERROR(G$38*H33),0,G$38*H33) -> 548.06876 | H33: 0.212 | I33: + | J33: =IF(ISERROR(J$38*K33),0,J$38*K33) -> 4230.72907 | K33: 0.6703738029 | N33: = | O33: 7119.17183 | P33: 0.322865082 | R33: 0.5942726445 | V33: 0.1476836915 | W33: -0.06431630852
D34: Wood | E34: 651.3305 | F34: 0.059 | G34: =IF(ISERROR(G$38*H34),0,G$38*H34) -> 152.52857 | H34: 0.059 | I34: + | J34: =IF(ISERROR(J$38*K34),0,J$38*K34) -> 240.7811245 | K34: 0.03815261044 | N34: = | O34: 1044.640194 | P34: 0.04737599403 | R34: 0.2304919203 | V34: 0.08163389542 | W34: 0.02263389542
D35: Food Waste | E35: 1302.661 | F35: 0.118 | G35: =IF(ISERROR(G$38*H35),0,G$38*H35) -> 305.05714 | H35: 0.118 | I35: + | L35: =IF(ISERROR(L$38*M35),0,L$38*M35) -> 84.5704 | M35: 0.04 | N35: = | O35: 1692.28854 | P35: 0.0767478144 | R35: 0.04997398375 | V35: 0.2111767213 | W35: 0.09317672125
D36: Yard Trimmings | E36: 1611.767 | F36: 0.146 | G36: =IF(ISERROR(G$38*H36),0,G$38*H36) -> 377.44358 | H36: 0.146 | I36: + | L36: =IF(ISERROR(L$38*M36),0,L$38*M36) -> 1797.121 | M36: 0.85 | N36: = | O36: 3786.33158 | P36: 0.1717157958 | R36: 0.4746338143 | V36: 0.08747793267 | W36: -0.05852206733
D37: Other / Undifferentiated | E37: =IF(ISERROR(ROUND(E38-SUM(E30:E36),2)),ROUND(0-SUM(E30:E36),2),ROUND(E38-SUM(E30:E36),2)) -> 3002.74 | F37: =IF(ISERROR(E37/E$38),0,E37/E$38) -> 0.2719996377 | G37: =IF(ISERROR(ROUND(G38-SUM(G30:G36),2)),ROUND(0-SUM(G30:G36),2),ROUND(G38-SUM(G30:G36),2)) -> 907.42 | H37: =IF(ISERROR(G37/G$38),0,G37/G$38) -> 0.3510016517 | I37: + | J37: =IF(ISERROR(ROUND(J38-SUM(J30:J36),2)),ROUND(0-SUM(J30:J36),2),ROUND(J38-SUM(J30:J36),2)) -> 472.79 | K37: =IF(ISERROR(J37/J$38),0,J37/J$38) -> 0.07491522738 | L37: =IF(ISERROR(ROUND(L38-SUM(L30:L36),2)),ROUND(0-SUM(L30:L36),2),ROUND(L38-SUM(L30:L36),2)) -> 232.57 | M37: =IF(ISERROR(L37/L$38),0,L37/L$38) -> 0.1100006622 | N37: = | O37: =IF(ISERROR(ROUND(O38-SUM(O30:O36),2)),ROUND(0-SUM(O30:O36),2),ROUND(O38-SUM(O30:O36),2)) -> 4615.52 | P37: 0.2093207299 | R37: 0.1528235172
D38: Total* | E38: =IF(OR(SFH_landfilled="",SFH_landfilled=0),0,ROUND(SFH_landfilled,2)) -> 11039.5 | F38: =IF(ISERROR(E38/E$38),0,E38/E$38) -> 1 | G38: =IF(OR(SFH_combusted="",SFH_combusted=0),0,ROUND(SFH_combusted,2)) -> 2585.23 | H38: =IF(ISERROR(G38/G$38),0,G38/G$38) -> 1 | I38: + | J38: =IF(OR(SFH_recycled="",SFH_recycled=0),0,ROUND(SFH_recycled,2)) -> 6311 | K38: =IF(ISERROR(J38/J$38),0,J38/J$38) -> 1 | L38: =IF(OR(SFH_composted="",SFH_composted=0),0,ROUND(SFH_composted,2)) -> 2114.26 | M38: =IF(ISERROR(L38/L$38),0,L38/L$38) -> 1 | N38: = | O38: =IF(ISERROR(SUM(E38,G38,L38,J38)),0,SUM(E38,G38,L38,J38)) -> 22049.99 | P38: =IF(O38=0,0,100%) -> 1 | R38: =IF(ISERROR((J38+L38)/O38),0,(J38+L38)/O38) -> 0.3820981325
E39: * These totals are from values entered on the Basic Information tab.
E40: Red numbers appear for values that are > 100% or that are negative. The table auto-calculates some values so red numbers may appear as you are entering data. If red numbers still appear once you have filled out the table, check that the amount(s) entered for recycled, composted, combusted, and landfilled do not exceed the amount for total generated.
C44: Commercial
D48: Note: Selecting a default (or "NO DEFAULT") will overwrite values entered in the table.
W50: Any Value <0? | X50: =IF(OR(O62<0,O63<0,O64<0,O65<0,O66<0,O67<0,O68<0,O69<0,O70<0,J62<0,J63<0,J64<0,J65<0,J66<0,J69<0,J70<0,L67<0,L68<0,L69<0,L70<0,G62<0,G63<0,G64<0,G65<0,G66<0,G67<0,G68<0,G69<0,G70<0,E62<0,E63<0,E64<0,E65<0,E66<0,E67<0,E68<0,E69<0,E70<0,P62<0,P63<0,P64<0,P65<0,P66<0,P67<0,P68<0,P69<0,P70<0,K62<0,K63<0,K64<0,K65<0,K66<0,K69<0,M67<0,M68<0,M69<0,H62<0,H63<0,H64<0,H65<0,H66<0,H67<0,H68<0,H69<0,F62<0,F63<0,F64<0,F65<0,F66<0,F67<0,F68<0,F69<0),TRUE,FALSE) -> FALSE
D51: Option 2: Enter your own data, with option to select a State or U.S. default for some parameters.
E53: Disposed or Incinerated | J53: Diverted | O53: Total Generated | R53: Diversion Rate
R54: of each material
R55: (column (J+L)÷O)
J56: Note: U.S. default percentages for materials diverted may not always be compatible with State or local waste characterization percentages for materials landfilled.
E60: Landfilled | G60: Combusted | J60: Recycled | L60: Composted | O60: Generated
E61: Tons | F61: % of Total Tons Landfilled | G61: Tons | H61: % of Total Tons Combusted | J61: Tons | K61: % of Total Tons Recycled | L61: Tons | M61: % of Total Tons Composted | O61: Tons | P61: % of Total Tons Generated | R61: % of Material that is Recycled or Composted
D62: Metal | E62: =IF(ISERROR(E$70*F62),0,E$70*F62) -> 596.5056 | F62: 0.048 | I62: + | J62: =IF(ISERROR(J$70*K62),0,J$70*K62) -> 730.0731804 | K62: 0.1215631758 | N62: = | O62: =IF(ISERROR(E62+J62+L62+G62),0,E62+J62+L62+G62) -> 1326.57878 | P62: =IF(ISERROR(O62/O$70),0,O62/O$70) -> 0.05743041247 | R62: =IF(ISERROR((J62+L62)/O62),0,(J62+L62)/O62) -> 0.5503428754
D63: Glass | E63: =IF(ISERROR(E$70*F63),0,E$70*F63) -> 248.544 | F63: 0.02 | I63: + | J63: =IF(ISERROR(J$70*K63),0,J$70*K63) -> 292.2148054 | K63: 0.04865616311 | N63: = | O63: =IF(ISERROR(E63+J63+L63+G63),0,E63+J63+L63+G63) -> 540.7588054 | P63: =IF(ISERROR(O63/O$70),0,O63/O$70) -> 0.02341059702 | R63: =IF(ISERROR((J63+L63)/O63),0,(J63+L63)/O63) -> 0.5403791903
D64: Plastic | E64: 2025.6336 | F64: 0.163 | G64: =IF(ISERROR(G$70*H64),0,G$70*H64) -> 440.51891 | H64: 0.163 | I64: + | J64: =IF(ISERROR(J$70*K64),0,J$70*K64) -> 278.2998146 | K64: 0.04633920297 | N64: = | O64: 2744.452325 | P64: 0.1188131691 | R64: 0.1014044996
D65: Paper | E65: 3106.8 | F65: 0.25 | G65: =IF(ISERROR(G$70*H65),0,G$70*H65) -> 675.6425 | H65: 0.25 | I65: + | J65: =IF(ISERROR(J$70*K65),0,J$70*K65) -> 4026.070652 | K65: 0.6703738029 | N65: = | O65: 7808.513152 | P65: 0.3380471162 | R65: 0.5156001627
D66: Wood | E66: 1441.5552 | F66: 0.116 | G66: =IF(ISERROR(G$70*H66),0,G$70*H66) -> 313.49812 | H66: 0.116 | I66: + | J66: =IF(ISERROR(J$70*K66),0,J$70*K66) -> 229.1335141 | K66: 0.03815261044 | N66: = | O66: 1984.186834 | P66: 0.08589966159 | R66: 0.1154798077
D67: Food Waste | E67: 1690.0992 | F67: 0.136 | G67: =IF(ISERROR(G$70*H67),0,G$70*H67) -> 367.54952 | H67: 0.136 | I67: + | L67: =IF(ISERROR(L$70*M67),0,L$70*M67) -> 160.9926203 | M67: 0.08199643494 | N67: = | O67: 2218.64134 | P67: 0.09604969504 | R67: 0.07256360791
D68: Yard Trimmings | E68: 248.544 | F68: 0.02 | G68: =IF(ISERROR(G$70*H68),0,G$70*H68) -> 54.0514 | H68: 0.02 | I68: + | L68: =IF(ISERROR(L$70*M68),0,L$70*M68) -> 1802.41738 | M68: 0.9180035651 | N68: = | O68: 2105.01278 | P68: 0.09113047336 | R68: 0.8562500889
D69: Other / Undifferentiated | E69: =IF(ISERROR(ROUND(E70-SUM(E62:E68),2)),ROUND(0-SUM(E62:E68),2),ROUND(E70-SUM(E62:E68),2)) -> 3069.52 | F69: =IF(ISERROR(E69/E$70),0,E69/E$70) -> 0.2470001287 | G69: =IF(ISERROR(ROUND(G70-SUM(G62:G68),2)),ROUND(0-SUM(G62:G68),2),ROUND(G70-SUM(G62:G68),2)) -> 851.31 | H69: =IF(ISERROR(G69/G$70),0,G69/G$70) -> 0.3150001665 | I69: + | J69: =IF(ISERROR(ROUND(J70-SUM(J62:J68),2)),ROUND(0-SUM(J62:J68),2),ROUND(J70-SUM(J62:J68),2)) -> 449.92 | K69: =IF(ISERROR(J69/J$70),0,J69/J$70) -> 0.0749153722 | L69: =IF(ISERROR(ROUND(L70-SUM(L62:L68),2)),ROUND(0-SUM(L62:L68),2),ROUND(L70-SUM(L62:L68),2)) -> 0 | M69: =IF(ISERROR(L69/L$70),0,L69/L$70) -> 0 | N69: = | O69: =IF(ISERROR(ROUND(O70-SUM(O62:O68),2)),ROUND(0-SUM(O62:O68),2),ROUND(O70-SUM(O62:O68),2)) -> 4370.75 | P69: 0.1892190491 | R69: 0.1029388549
D70: Total* | E70: =IF(OR(Com_landfilled_actual="",Com_landfilled_actual=0),0,ROUND(Com_landfilled_actual,2)) -> 12427.2 | F70: =IF(ISERROR(E70/E$70),0,E70/E$70) -> 1 | G70: =IF(OR(Com_combusted_actual="",Com_combusted_actual=0),0,ROUND(Com_combusted_actual,2)) -> 2702.57 | H70: =IF(ISERROR(G70/G$70),0,G70/G$70) -> 1 | I70: + | J70: =IF(OR(Com_recycled_actual="",Com_recycled_actual=0),0,ROUND(Com_recycled_actual,2)) -> 6005.71 | K70: =IF(ISERROR(J70/J$70),0,J70/J$70) -> 1 | L70: =IF(OR(Com_composted_actual="",Com_composted_actual=0),0,ROUND(Com_composted_actual,2)) -> 1963.41 | M70: =IF(ISERROR(L70/L$70),0,L70/L$70) -> 1 | N70: = | O70: =IF(ISERROR(SUM(E70,G70,L70,J70)),0,SUM(E70,G70,L70,J70)) -> 23098.89 | P70: =IF(O70=0,0,100%) -> 1 | R70: 0.3450001277
E71: * These totals are from values entered on the Basic Information tab.
E72: Red numbers appear for values that are > 100% or that are negative. The table auto-calculates some values so red numbers may appear as you are entering data. If red numbers still appear once you have filled out the table, check that the amount(s) entered for recycled, composted, combusted, and landfilled do not exceed the amount for total generated.
C76: Construction & Demolition
D78: Note: Selecting a default (or "NO DEFAULT") will overwrite values entered in the table.
E83: Disposed | G83: Diverted | J83: Total Generated | M83: Diversion Rate
G84: Enter data below (as available) Include only C&D recycled / reused from building projects unless new or expanded requirements will apply to other C&D sources | J84: These numbers are auto-calculated as the sum of landfilled, combusted, recycled, and composted waste tonnages. | M84: of each material
M85: (column G÷J) | W85: Any Value <0? | X85: =IF(OR(J93<0,J94<0,J95<0,J96<0,J97<0,J98<0,J99<0,J100<0,J101<0,J102<0,J103<0,J104<0,J105<0,J106<0,J107<0,J109<0,J110<0,G93<0,G94<0,G95<0,G96<0,G97<0,G98<0,G99<0,G100<0,G101<0,G102<0,G103<0,G104<0,G105<0,G106<0,G107<0,G109<0,G110<0,E93<0,E94<0,E95<0,E96<0,E97<0,E98<0,E99<0,E100<0,E101<0,E102<0,E103<0,E104<0,E105<0,E106<0,E107<0,E109<0,E110<0,K93<0,K94<0,K95<0,K96<0,K97<0,K98<0,K99<0,K100<0,K101<0,K102<0,K103<0,K104<0,K105<0,K106<0,K107<0,K109<0,K110<0,H93<0,H94<0,H95<0,H96<0,H97<0,H98<0,H99<0,H100<0,H101<0,H102<0,H103<0,H104<0,H105<0,H106<0,H107<0,H109<0,F93<0,F94<0,F95<0,F96<0,F97<0,F98<0,F99<0,F100<0,F101<0,F102<0,F103<0,F104<0,F105<0,F106<0,F107<0,F109<0),TRUE,FALSE) -> FALSE
E91: Landfilled | G91: Recycled | J91: Total Generated
E92: Tons | F92: % of Total Tons Landfilled | G92: Tons | H92: % of Total Tons Recycled/ Reused | J92: Tons | K92: % of Total Tons Generated | M92: % of Material that is Recycled / Reused
D93: =IF(WasteStateSelection_cd="Minnesota","Asphalt Concrete †","Asphalt Concrete") -> Asphalt Concrete | E93: =IF(ISERROR(E$110*F93),0,E$110*F93) -> 2085 | F93: 0.1 | G93: =IF(ISERROR(G$110*H93),0,G$110*H93) -> 1283.5 | H93: 0.17 | J93: =IF(ISERROR(E93+G93),0,E93+G93) -> 3368.5 | K93: =IF(ISERROR(J93/J$110),0,J93/J$110) -> 0.1186091549 | M93: =IF(ISERROR(G93/J93),0,G93/J93) -> 0.3810301321
D94: Concrete | E94: 2502 | F94: 0.12 | G94: 4454.5 | H94: 0.59 | J94: =IF(ISERROR(E94+G94),0,E94+G94) -> 6956.5 | K94: =IF(ISERROR(J94/J$110),0,J94/J$110) -> 0.2449471831 | M94: =IF(ISERROR(G94/J94),0,G94/J94) -> 0.6403363761
D95: Drywall | E95: 1688.85 | F95: 0.081 | G95: 151 | H95: 0.02 | J95: 1839.85 | K95: 0.0647834507 | M95: 0.08207190804
D96: Dimensional lumber and General Wood Products | E96: 3273.45 | F96: 0.157 | G96: 377.5 | H96: 0.05 | J96: 3650.95 | K96: 0.1285545775 | M96: 0.1033977458
D97: Medium-Density Fiberboard, Plywood, and Related Products | E97: 938.25 | F97: 0.045 | G97: 151 | H97: 0.02 | J97: 1089.25 | K97: 0.03835387324 | M97: 0.138627496
D98: Asphalt Shingles-Fiberglass | E98: 3044.1 | F98: 0.146 | G98: 377.5 | H98: 0.05 | J98: 3421.6 | K98: 0.1204788732 | M98: 0.1103285013
D99: Clay Bricks ǂ | E99: 1334.4 | F99: 0.064 | G99: 60.4 | H99: 0.008 | J99: 1394.8 | K99: 0.04911267606 | M99: 0.04330369946
D100: Ferrous Metals | E100: 500.4 | F100: 0.024 | G100: 377.5 | H100: 0.05 | J100: 877.9 | K100: 0.03091197183 | M100: 0.4300034172
D101: Non Ferrous Metals | E101: 83.4 | F101: 0.004 | G101: 30.2 | H101: 0.004 | J101: 113.6 | K101: 0.004 | M101: 0.2658450704
D102: Mixed Plastics | E102: 166.8 | F102: 0.008 | G102: 52.85 | H102: 0.007 | J102: 219.65 | K102: 0.00773415493 | M102: 0.2406100615
D103: Cardboard | E103: 166.8 | F103: 0.008 | G103: 90.6 | H103: 0.012 | J103: 257.4 | K103: 0.009063380282 | M103: 0.351981352
D104: Carpet | E104: 250.2 | F104: 0.012 | G104: 15.1 | H104: 0.002 | J104: 265.3 | K104: 0.009341549296 | M104: 0.05691669808
B105: HIDE | D105: Vinyl Flooring | E105: 0 | G105: 0 | J105: 0 | K105: 0 | M105: 0
B106: HIDE | D106: PVC | E106: 0 | G106: 0 | J106: 0 | K106: 0 | M106: 0
B107: HIDE | D107: Fiberglass Insulation | E107: 0 | G107: 0 | J107: 0 | K107: 0 | M107: 0
B108: HIDE | D108: Wood Flooring, Cabinets, Doors | E108: 0 | G108: 0 | J108: 0 | K108: 0 | M108: 0
D109: Other / Undifferentiated | E109: =IF(ISERROR(ROUND(E110-SUM(E93:E108),2)),ROUND(0-SUM(E93:E107),2),ROUND(E110-SUM(E93:E107),2)) -> 4816.35 | F109: =IF(ISERROR(E109/E$110),0,E109/E$110) -> 0.231 | G109: =IF(ISERROR(ROUND(G110-SUM(G93:G108),2)),ROUND(0-SUM(G93:G107),2),ROUND(G110-SUM(G93:G107),2)) -> 128.35 | H109: =IF(ISERROR(G109/G$110),0,G109/G$110) -> 0.017 | J109: =IF(ISERROR(ROUND(J110-SUM(J93:J108),2)),ROUND(0-SUM(J93:J107),2),ROUND(J110-SUM(J93:J107),2)) -> 4944.7 | K109: 0.1741091549 | M109: 0.02595708536
D110: Total* | E110: =IF(OR(CD_landfilled="",CD_landfilled=0),0,ROUND(CD_landfilled,2)) -> 20850 | F110: =IF(ISERROR(E110/E$110),0,E110/E$110) -> 1 | G110: =IF(OR(CD_recycled="",CD_recycled=0),0,ROUND(CD_recycled,2)) -> 7550 | H110: =IF(ISERROR(G110/G$110),0,G110/G$110) -> 1 | J110: =IF(SUM(E110,G110)=0,0,SUM(E110,G110)) -> 28400 | K110: =IF(ISERROR(J110/J$110),0,J110/J$110) -> 1 | M110: 0.2658450704
E111: * These totals are from values entered on the Basic Information tab.
E112: ="ǂ WARM recycling factors are not available for clay bricks. However, clay bricks can be reused, so the 'source reduction' emission factors are used to represent reuse." & IF(WasteStateSelection_cd="Delaware"," Clay Bricks are captured under the 'concrete' category.","") -> ǂ WARM recycling factors are not available for clay bricks. However, clay bricks can be reused, so the 'source reduction' emission factors are used to represent reuse.
E113: Red numbers appear for values that are > 100% or that are negative. The table auto-calculates some values so red numbers may appear as you are entering data. If red numbers still appear once you have filled out the table, check that the amount(s) entered for recycled, composted, combusted, and landfilled do not exceed the amount for total generated.
E115: =IF(WasteStateSelection_cd="Minnesota","† Asphalt is captured under the 'concrete' category.","") -> 

Sheet Waste Characterization-MODEL (hidden)
C2: Waste Characterization By Material Type - MODEL VALUES
C3: This tab will be hidden from view
D4: User Selection: | E4: Percent | G4: Display Error message: | H4: FALSE | K4: MFH waste is included in: | L4: =MFH_ResorCom -> residential | M4: waste totals
D6: Waste Characterization by Material Type
C11: Residential
E13: Disposed or Incinerated | J13: Diverted | O13: Total Generated
E14: Landfilled | G14: Combusted | J14: Recycled | L14: Composted | O14: Generated
E15: Tons | F15: % of Material that is Landfilled | G15: Tons | H15: % of Material that is Combusted | J15: Tons | K15: % of Material that is Recycled | L15: Tons | M15: % of Material that is Composted | O15: Tons | P15: % of All Materials
D16: Metal | E16: =IF(MFH_ResorCom<>"commercial",IF(ISERROR(E32+E49),0,E32+E49),E32) -> 632.751788 | F16: =IF(ISERROR(E16/E$24),0,E16/E$24) -> 0.047 | I16: + | J16: =IF(MFH_ResorCom<>"commercial",IF(ISERROR(J32+J49),0,J32+J49),J32) -> 790.9125809 | K16: =IF(ISERROR(J16/J$24),0,J16/J$24) -> 0.1215631758 | N16: = | O16: =IF(MFH_ResorCom<>"commercial",IF(ISERROR(O32+O49),0,O32+O49),O32) -> 1423.664369 | P16: =IF(ISERROR(O16/O$24),0,O16/O$24) -> 0.05689243107
D17: Glass | E17: 430.809728 | F17: =IF(ISERROR(E17/E$24),0,E17/E$24) -> 0.032 | I17: + | J17: =IF(MFH_ResorCom<>"commercial",IF(ISERROR(J33+J50),0,J33+J50),J33) -> 316.5660266 | K17: =IF(ISERROR(J17/J$24),0,J17/J$24) -> 0.04865616311 | N17: = | O17: 747.3757546 | P17: =IF(ISERROR(O17/O$24),0,O17/O$24) -> 0.02986660658
D18: Plastic | E18: 1534.759656 | F18: 0.114 | G18: =IF(MFH_ResorCom<>"commercial",IF(ISERROR(G34+G51),0,G34+G51),G34) -> 333.7669982 | H18: =IF(ISERROR(G18/G$24),0,G18/G$24) -> 0.114 | I18: + | J18: =IF(MFH_ResorCom<>"commercial",IF(ISERROR(J34+J51),0,J34+J51),J34) -> 301.4914539 | K18: =IF(ISERROR(J18/J$24),0,J18/J$24) -> 0.04633920297 | N18: = | O18: 2170.018108 | P18: 0.08671819591
D19: Paper | E19: 2854.114448 | F19: 0.212 | G19: 620.6895055 | H19: =IF(ISERROR(G19/G$24),0,G19/G$24) -> 0.212 | I19: + | J19: =IF(MFH_ResorCom<>"commercial",IF(ISERROR(J35+J52),0,J35+J52),J35) -> 4361.576367 | K19: =IF(ISERROR(J19/J$24),0,J19/J$24) -> 0.6703738029 | N19: = | O19: 7836.380321 | P19: 0.3131571858
D20: Wood | E20: 794.305436 | F20: 0.059 | G20: 172.7390605 | H20: 0.059 | I20: + | J20: =IF(MFH_ResorCom<>"commercial",IF(ISERROR(J36+J53),0,J36+J53),J36) -> 248.2279638 | K20: =IF(ISERROR(J20/J$24),0,J20/J$24) -> 0.03815261044 | N20: = | O20: 1215.27246 | P20: 0.04856468013
D21: Food Waste | E21: 1588.610872 | F21: 0.118 | G21: 345.478121 | H21: 0.118 | I21: + | L21: =IF(MFH_ResorCom<>"commercial",IF(ISERROR(L37+L54),0,L37+L54),L37) -> 85.08088535 | M21: =IF(ISERROR(L21/L$24),0,L21/L$24) -> 0.04 | N21: = | O21: 2019.169878 | P21: 0.08069000366
D22: Yard Trimmings | E22: 1965.569384 | F22: 0.146 | G22: 427.4559802 | H22: 0.146 | I22: + | L22: =IF(MFH_ResorCom<>"commercial",IF(ISERROR(L38+L55),0,L38+L55),L38) -> 1807.968814 | M22: =IF(ISERROR(L22/L$24),0,L22/L$24) -> 0.85 | N22: = | O22: 4200.994178 | P22: 0.1678799982
D23: Other / Undifferentiated | E23: 3661.87781 | F23: 0.2719996377 | G23: 1027.655857 | H23: 0.3510016517 | I23: + | J23: =IF(MFH_ResorCom<>"commercial",IF(ISERROR(J39+J56),0,J39+J56),J39) -> 487.4123718 | K23: =IF(ISERROR(J23/J$24),0,J23/J$24) -> 0.07491522738 | L23: =IF(MFH_ResorCom<>"commercial",IF(ISERROR(L39+L56),0,L39+L56),L39) -> 233.9738432 | M23: =IF(ISERROR(L23/L$24),0,L23/L$24) -> 0.1100006622 | N23: = | O23: 5410.919882 | P23: 0.2162310114
D24: Total | E24: 13462.804 | F24: 1 | G24: 2927.780686 | H24: 1 | I24: + | J24: =IF(MFH_ResorCom<>"commercial",IF(ISERROR(J40+J57),0,J40+J57),J40) -> 6506.185576 | K24: =IF(ISERROR(J24/J$24),0,J24/J$24) -> 1 | L24: =IF(MFH_ResorCom<>"commercial",IF(ISERROR(L40+L57),0,L40+L57),L40) -> 2127.022134 | M24: =IF(ISERROR(L24/L$24),0,L24/L$24) -> 1 | N24: = | O24: 25023.79213 | P24: 1
C26: Single-Family
C27: Note: waste characterization by material type = residential waste characterization.
E28: =E32+E49 -> 632.751788
E29: Disposed or Incinerated | J29: Diverted | O29: Total Generated
E30: Landfilled | G30: Combusted | J30: Recycled | L30: Composted | O30: Generated
E31: Tons | F31: % of Total Tons Landfilled | G31: Tons | H31: % of Total Tons Combusted | J31: Tons | K31: % of Total Tons Recycled | L31: Tons | M31: % of Total Tons Composted | O31: Tons | P31: % of All Materials
D32: Metal | E32: =IF(UserSelection_TonsPercent="Tons",'Waste Characterization-Tons'!E30,'Waste Characterization-Percent'!E30) -> 518.8565 | F32: =IF(UserSelection_TonsPercent="Tons",'Waste Characterization-Tons'!F30,'Waste Characterization-Percent'!F30) -> 0.047 | I32: + | J32: =IF(UserSelection_TonsPercent="Tons",'Waste Characterization-Tons'!J30,'Waste Characterization-Percent'!J30) -> 767.1852023 | K32: =IF(UserSelection_TonsPercent="Tons",'Waste Characterization-Tons'!K30,'Waste Characterization-Percent'!K30) -> 0.1215631758 | N32: = | O32: =IF(UserSelection_TonsPercent="Tons",'Waste Characterization-Tons'!O30,'Waste Characterization-Percent'!O30) -> 1286.041702 | P32: =IF(UserSelection_TonsPercent="Tons",'Waste Characterization-Tons'!P30,'Waste Characterization-Percent'!P30) -> 0.05832391318
D33: Glass | E33: =IF(UserSelection_TonsPercent="Tons",'Waste Characterization-Tons'!E31,'Waste Characterization-Percent'!E31) -> 353.264 | F33: =IF(UserSelection_TonsPercent="Tons",'Waste Characterization-Tons'!F31,'Waste Characterization-Percent'!F31) -> 0.032 | I33: + | J33: =IF(UserSelection_TonsPercent="Tons",'Waste Characterization-Tons'!J31,'Waste Characterization-Percent'!J31) -> 307.0690454 | K33: =IF(UserSelection_TonsPercent="Tons",'Waste Characterization-Tons'!K31,'Waste Characterization-Percent'!K31) -> 0.04865616311 | N33: = | O33: =IF(UserSelection_TonsPercent="Tons",'Waste Characterization-Tons'!O31,'Waste Characterization-Percent'!O31) -> 660.3330454 | P33: =IF(UserSelection_TonsPercent="Tons",'Waste Characterization-Tons'!P31,'Waste Characterization-Percent'!P31) -> 0.02994709047
D34: Plastic | E34: =IF(UserSelection_TonsPercent="Tons",'Waste Characterization-Tons'!E32,'Waste Characterization-Percent'!E32) -> 1258.503 | F34: =IF(UserSelection_TonsPercent="Tons",'Waste Characterization-Tons'!F32,'Waste Characterization-Percent'!F32) -> 0.114 | G34: =IF(UserSelection_TonsPercent="Tons",'Waste Characterization-Tons'!G32,'Waste Characterization-Percent'!G32) -> 294.71622 | H34: =IF(UserSelection_TonsPercent="Tons",'Waste Characterization-Tons'!H32,'Waste Characterization-Percent'!H32) -> 0.114 | I34: + | J34: =IF(UserSelection_TonsPercent="Tons",'Waste Characterization-Tons'!J32,'Waste Characterization-Percent'!J32) -> 292.4467099 | K34: =IF(UserSelection_TonsPercent="Tons",'Waste Characterization-Tons'!K32,'Waste Characterization-Percent'!K32) -> 0.04633920297 | N34: = | O34: =IF(UserSelection_TonsPercent="Tons",'Waste Characterization-Tons'!O32,'Waste Characterization-Percent'!O32) -> 1845.66593 | P34: =IF(UserSelection_TonsPercent="Tons",'Waste Characterization-Tons'!P32,'Waste Characterization-Percent'!P32) -> 0.08370370825
D35: Paper | E35: =IF(UserSelection_TonsPercent="Tons",'Waste Characterization-Tons'!E33,'Waste Characterization-Percent'!E33) -> 2340.374 | F35: =IF(UserSelection_TonsPercent="Tons",'Waste Characterization-Tons'!F33,'Waste Characterization-Percent'!F33) -> 0.212 | G35: =IF(UserSelection_TonsPercent="Tons",'Waste Characterization-Tons'!G33,'Waste Characterization-Percent'!G33) -> 548.06876 | H35: =IF(UserSelection_TonsPercent="Tons",'Waste Characterization-Tons'!H33,'Waste Characterization-Percent'!H33) -> 0.212 | I35: + | J35: =IF(UserSelection_TonsPercent="Tons",'Waste Characterization-Tons'!J33,'Waste Characterization-Percent'!J33) -> 4230.72907 | K35: =IF(UserSelection_TonsPercent="Tons",'Waste Characterization-Tons'!K33,'Waste Characterization-Percent'!K33) -> 0.6703738029 | N35: = | O35: =IF(UserSelection_TonsPercent="Tons",'Waste Characterization-Tons'!O33,'Waste Characterization-Percent'!O33) -> 7119.17183 | P35: =IF(UserSelection_TonsPercent="Tons",'Waste Characterization-Tons'!P33,'Waste Characterization-Percent'!P33) -> 0.322865082
D36: Wood | E36: =IF(UserSelection_TonsPercent="Tons",'Waste Characterization-Tons'!E34,'Waste Characterization-Percent'!E34) -> 651.3305 | F36: =IF(UserSelection_TonsPercent="Tons",'Waste Characterization-Tons'!F34,'Waste Characterization-Percent'!F34) -> 0.059 | G36: =IF(UserSelection_TonsPercent="Tons",'Waste Characterization-Tons'!G34,'Waste Characterization-Percent'!G34) -> 152.52857 | H36: =IF(UserSelection_TonsPercent="Tons",'Waste Characterization-Tons'!H34,'Waste Characterization-Percent'!H34) -> 0.059 | I36: + | J36: =IF(UserSelection_TonsPercent="Tons",'Waste Characterization-Tons'!J34,'Waste Characterization-Percent'!J34) -> 240.7811245 | K36: =IF(UserSelection_TonsPercent="Tons",'Waste Characterization-Tons'!K34,'Waste Characterization-Percent'!K34) -> 0.03815261044 | N36: = | O36: =IF(UserSelection_TonsPercent="Tons",'Waste Characterization-Tons'!O34,'Waste Characterization-Percent'!O34) -> 1044.640194 | P36: =IF(UserSelection_TonsPercent="Tons",'Waste Characterization-Tons'!P34,'Waste Characterization-Percent'!P34) -> 0.04737599403
D37: Food Waste | E37: =IF(UserSelection_TonsPercent="Tons",'Waste Characterization-Tons'!E35,'Waste Characterization-Percent'!E35) -> 1302.661 | F37: =IF(UserSelection_TonsPercent="Tons",'Waste Characterization-Tons'!F35,'Waste Characterization-Percent'!F35) -> 0.118 | G37: =IF(UserSelection_TonsPercent="Tons",'Waste Characterization-Tons'!G35,'Waste Characterization-Percent'!G35) -> 305.05714 | H37: =IF(UserSelection_TonsPercent="Tons",'Waste Characterization-Tons'!H35,'Waste Characterization-Percent'!H35) -> 0.118 | I37: + | L37: =IF(UserSelection_TonsPercent="Tons",'Waste Characterization-Tons'!L35,'Waste Characterization-Percent'!L35) -> 84.5704 | M37: =IF(UserSelection_TonsPercent="Tons",'Waste Characterization-Tons'!M35,'Waste Characterization-Percent'!M35) -> 0.04 | N37: = | O37: =IF(UserSelection_TonsPercent="Tons",'Waste Characterization-Tons'!O35,'Waste Characterization-Percent'!O35) -> 1692.28854 | P37: =IF(UserSelection_TonsPercent="Tons",'Waste Characterization-Tons'!P35,'Waste Characterization-Percent'!P35) -> 0.0767478144
D38: Yard Trimmings | E38: =IF(UserSelection_TonsPercent="Tons",'Waste Characterization-Tons'!E36,'Waste Characterization-Percent'!E36) -> 1611.767 | F38: =IF(UserSelection_TonsPercent="Tons",'Waste Characterization-Tons'!F36,'Waste Characterization-Percent'!F36) -> 0.146 | G38: =IF(UserSelection_TonsPercent="Tons",'Waste Characterization-Tons'!G36,'Waste Characterization-Percent'!G36) -> 377.44358 | H38: =IF(UserSelection_TonsPercent="Tons",'Waste Characterization-Tons'!H36,'Waste Characterization-Percent'!H36) -> 0.146 | I38: + | L38: =IF(UserSelection_TonsPercent="Tons",'Waste Characterization-Tons'!L36,'Waste Characterization-Percent'!L36) -> 1797.121 | M38: =IF(UserSelection_TonsPercent="Tons",'Waste Characterization-Tons'!M36,'Waste Characterization-Percent'!M36) -> 0.85 | N38: = | O38: =IF(UserSelection_TonsPercent="Tons",'Waste Characterization-Tons'!O36,'Waste Characterization-Percent'!O36) -> 3786.33158 | P38: =IF(UserSelection_TonsPercent="Tons",'Waste Characterization-Tons'!P36,'Waste Characterization-Percent'!P36) -> 0.1717157958
D39: Other / Undifferentiated | E39: =IF(UserSelection_TonsPercent="Tons",'Waste Characterization-Tons'!E37,'Waste Characterization-Percent'!E37) -> 3002.74 | F39: =IF(UserSelection_TonsPercent="Tons",'Waste Characterization-Tons'!F37,'Waste Characterization-Percent'!F37) -> 0.2719996377 | G39: =IF(UserSelection_TonsPercent="Tons",'Waste Characterization-Tons'!G37,'Waste Characterization-Percent'!G37) -> 907.42 | H39: =IF(UserSelection_TonsPercent="Tons",'Waste Characterization-Tons'!H37,'Waste Characterization-Percent'!H37) -> 0.3510016517 | I39: + | J39: =IF(UserSelection_TonsPercent="Tons",'Waste Characterization-Tons'!J37,'Waste Characterization-Percent'!J37) -> 472.79 | K39: =IF(UserSelection_TonsPercent="Tons",'Waste Characterization-Tons'!K37,'Waste Characterization-Percent'!K37) -> 0.07491522738 | L39: =IF(UserSelection_TonsPercent="Tons",'Waste Characterization-Tons'!L37,'Waste Characterization-Percent'!L37) -> 232.57 | M39: =IF(UserSelection_TonsPercent="Tons",'Waste Characterization-Tons'!M37,'Waste Characterization-Percent'!M37) -> 0.1100006622 | N39: = | O39: =IF(UserSelection_TonsPercent="Tons",'Waste Characterization-Tons'!O37,'Waste Characterization-Percent'!O37) -> 4615.52 | P39: =IF(UserSelection_TonsPercent="Tons",'Waste Characterization-Tons'!P37,'Waste Characterization-Percent'!P37) -> 0.2093207299
D40: Total | E40: =IF(UserSelection_TonsPercent="Tons",'Waste Characterization-Tons'!E38,'Waste Characterization-Percent'!E38) -> 11039.5 | F40: =IF(UserSelection_TonsPercent="Tons",'Waste Characterization-Tons'!F38,'Waste Characterization-Percent'!F38) -> 1 | G40: =IF(UserSelection_TonsPercent="Tons",'Waste Characterization-Tons'!G38,'Waste Characterization-Percent'!G38) -> 2585.23 | H40: =IF(UserSelection_TonsPercent="Tons",'Waste Characterization-Tons'!H38,'Waste Characterization-Percent'!H38) -> 1 | I40: + | J40: =IF(UserSelection_TonsPercent="Tons",'Waste Characterization-Tons'!J38,'Waste Characterization-Percent'!J38) -> 6311 | K40: =IF(UserSelection_TonsPercent="Tons",'Waste Characterization-Tons'!K38,'Waste Characterization-Percent'!K38) -> 1 | L40: =IF(UserSelection_TonsPercent="Tons",'Waste Characterization-Tons'!L38,'Waste Characterization-Percent'!L38) -> 2114.26 | M40: =IF(UserSelection_TonsPercent="Tons",'Waste Characterization-Tons'!M38,'Waste Characterization-Percent'!M38) -> 1 | N40: = | O40: =IF(UserSelection_TonsPercent="Tons",'Waste Characterization-Tons'!O38,'Waste Characterization-Percent'!O38) -> 22049.99 | P40: =IF(UserSelection_TonsPercent="Tons",'Waste Characterization-Tons'!P38,'Waste Characterization-Percent'!P38) -> 1
C43: Multi-Family
C44: ="Note: waste characterization by material type = " & IF(MFH_ResorCom = "commercial", "commercial","residential") & " waste characterization." -> Note: waste characterization by material type = residential waste characterization.
E46: Disposed or Incinerated | J46: Diverted | O46: Total Generated
E47: Landfilled | G47: Combusted | J47: Recycled | L47: Composted | O47: Generated
E48: Tons | F48: % of Total Tons Landfilled | G48: Tons | H48: % of Total Tons Combusted | J48: Tons | K48: % of Total Tons Recycled | L48: Tons | M48: % of Total Tons Composted | O48: Tons | P48: % of All Materials
D49: Metal | E49: =IF(MFH_ResorCom="commercial",IF(ISERROR(F66*E$57),0,F66*E$57),IF(ISERROR(F32*E$57),0,F32*E$57)) -> 113.895288 | F49: =IF(ISERROR(E49/E$57),0,E49/E$57) -> 0.047 | I49: + | J49: =IF(MFH_ResorCom="commercial",IF(ISERROR(K66*J$57),0,K66*J$57),IF(ISERROR(K32*J$57),0,K32*J$57)) -> 23.72737851 | K49: =IF(ISERROR(J49/J$57),0,J49/J$57) -> 0.1215631758 | N49: = | O49: =SUM(J49,L49,G49,E49) -> 137.6226665 | P49: =IF(ISERROR(O49/O$57),0,O49/O$40) -> 0.006241393602
D50: Glass | E50: 77.545728 | F50: =IF(ISERROR(E50/E$57),0,E50/E$57) -> 0.032 | I50: + | J50: =IF(MFH_ResorCom="commercial",IF(ISERROR(K67*J$57),0,K67*J$57),IF(ISERROR(K33*J$57),0,K33*J$57)) -> 9.496981233 | K50: =IF(ISERROR(J50/J$57),0,J50/J$57) -> 0.04865616311 | N50: = | O50: 87.04270923 | P50: =IF(ISERROR(O50/O$57),0,O50/O$40) -> 0.003947516948
D51: Plastic | E51: 276.256656 | F51: 0.114 | G51: =IF(MFH_ResorCom="commercial",IF(ISERROR(H68*G$57),0,H68*G$57),IF(ISERROR(H34*G$57),0,H34*G$57)) -> 39.05077823 | H51: =IF(ISERROR(G51/G$57),0,G51/G$57) -> 0.114 | I51: + | J51: =IF(MFH_ResorCom="commercial",IF(ISERROR(K68*J$57),0,K68*J$57),IF(ISERROR(K34*J$57),0,K34*J$57)) -> 9.044744032 | K51: =IF(ISERROR(J51/J$57),0,J51/J$57) -> 0.04633920297 | N51: = | O51: 324.3521783 | P51: 0.01470985603
D52: Paper | E52: 513.740448 | F52: 0.212 | G52: 72.62074548 | H52: 0.212 | I52: + | J52: =IF(MFH_ResorCom="commercial",IF(ISERROR(K69*J$57),0,K69*J$57),IF(ISERROR(K35*J$57),0,K35*J$57)) -> 130.847297 | K52: =IF(ISERROR(J52/J$57),0,J52/J$57) -> 0.6703738029 | N52: = | O52: 717.2084905 | P52: 0.0325264769
D53: Wood | E53: 142.974936 | F53: 0.059 | G53: 20.21049049 | H53: 0.059 | I53: + | J53: =IF(MFH_ResorCom="commercial",IF(ISERROR(K70*J$57),0,K70*J$57),IF(ISERROR(K36*J$57),0,K36*J$57)) -> 7.446839253 | K53: =IF(ISERROR(J53/J$57),0,J53/J$57) -> 0.03815261044 | N53: = | O53: 170.6322657 | P53: 0.00773842826
D54: Food Waste | E54: 285.949872 | F54: 0.118 | G54: 40.42098098 | H54: 0.118 | I54: + | L54: =IF(MFH_ResorCom="commercial",IF(ISERROR(M71*L$57),0,M71*L$57),IF(ISERROR(M37*L$57),0,M37*L$57)) -> 0.5104853532 | M54: =IF(ISERROR(L54/L$57),0,L54/L$57) -> 0.04 | N54: = | O54: 326.8813383 | P54: 0.01482455721
D55: Yard Trimmings | E55: 353.802384 | F55: 0.146 | G55: 50.01240019 | H55: 0.146 | I55: + | L55: =IF(MFH_ResorCom="commercial",IF(ISERROR(M72*L$57),0,M72*L$57),IF(ISERROR(M38*L$57),0,M38*L$57)) -> 10.84781375 | M55: =IF(ISERROR(L55/L$57),0,L55/L$57) -> 0.85 | N55: = | O55: 414.6625979 | P55: 0.01880556853
D56: Other / Undifferentiated | E56: 659.13781 | F56: 0.2719996377 | G56: 120.2358567 | H56: 0.3510016517 | I56: + | J56: =IF(MFH_ResorCom="commercial",IF(ISERROR(K73*J$57),0,K73*J$57),IF(ISERROR(K39*J$57),0,K39*J$57)) -> 14.62237182 | K56: =IF(ISERROR(J56/J$57),0,J56/J$57) -> 0.07491522738 | L56: =IF(MFH_ResorCom="commercial",IF(ISERROR(M73*L$57),0,M73*L$57),IF(ISERROR(M39*L$57),0,M39*L$57)) -> 1.403843172 | M56: =IF(ISERROR(L56/L$57),0,L56/L$57) -> 0.1100006622 | N56: = | O56: 795.3998816 | P56: 0.03607257335
D57: Total | E57: =MFH_landfilled -> 2423.304 | F57: 1 | G57: =MFH_combusted -> 342.5506862 | H57: 1 | I57: + | J57: =MFH_recycled -> 195.1855762 | K57: =IF(ISERROR(J57/J$57),0,J57/J$57) -> 1 | L57: =MFH_composted -> 12.76213383 | M57: =IF(ISERROR(L57/L$57),0,L57/L$57) -> 1 | N57: = | O57: =SUM(O49:O56) -> 2973.802128 | P57: 0.1348663708
D60: ="Commercial" & IF(MFH_ResorCom="commercial"," (subtracts MFH waste)","") -> Commercial
D61: Note: if MFH waste is a subset of commercial, the following calculations subtract MFH waste from the commercial totals.
E63: Disposed or Incinerated | J63: Diverted | O63: Total Generated
E64: Landfilled | G64: Combusted | J64: Recycled | L64: Composted | O64: Generated
E65: Tons | F65: % of Total Tons Landfilled | G65: Tons | H65: % of Total Tons Combusted | J65: Tons | K65: % of Total Tons Recycled | L65: Tons | M65: % of Total Tons Composted | O65: Tons | P65: % of All Materials
D66: Metal | E66: =IF(UserSelection_TonsPercent="Tons",'Waste Characterization-Tons'!E62,'Waste Characterization-Percent'!E62) -> 596.5056 | F66: =IF(UserSelection_TonsPercent="Tons",'Waste Characterization-Tons'!F62,'Waste Characterization-Percent'!F62) -> 0.048 | I66: + | J66: =IF(UserSelection_TonsPercent="Tons",'Waste Characterization-Tons'!J62,'Waste Characterization-Percent'!J62) -> 730.0731804 | K66: =IF(UserSelection_TonsPercent="Tons",'Waste Characterization-Tons'!K62,'Waste Characterization-Percent'!K62) -> 0.1215631758 | N66: = | O66: =IF(UserSelection_TonsPercent="Tons",'Waste Characterization-Tons'!O62,'Waste Characterization-Percent'!O62) -> 1326.57878 | P66: =IF(UserSelection_TonsPercent="Tons",'Waste Characterization-Tons'!P62,'Waste Characterization-Percent'!P62) -> 0.05743041247
D67: Glass | E67: =IF(UserSelection_TonsPercent="Tons",'Waste Characterization-Tons'!E63,'Waste Characterization-Percent'!E63) -> 248.544 | F67: =IF(UserSelection_TonsPercent="Tons",'Waste Characterization-Tons'!F63,'Waste Characterization-Percent'!F63) -> 0.02 | I67: + | J67: =IF(UserSelection_TonsPercent="Tons",'Waste Characterization-Tons'!J63,'Waste Characterization-Percent'!J63) -> 292.2148054 | K67: =IF(UserSelection_TonsPercent="Tons",'Waste Characterization-Tons'!K63,'Waste Characterization-Percent'!K63) -> 0.04865616311 | N67: = | O67: =IF(UserSelection_TonsPercent="Tons",'Waste Characterization-Tons'!O63,'Waste Characterization-Percent'!O63) -> 540.7588054 | P67: =IF(UserSelection_TonsPercent="Tons",'Waste Characterization-Tons'!P63,'Waste Characterization-Percent'!P63) -> 0.02341059702
D68: Plastic | E68: =IF(UserSelection_TonsPercent="Tons",'Waste Characterization-Tons'!E64,'Waste Characterization-Percent'!E64) -> 2025.6336 | F68: =IF(UserSelection_TonsPercent="Tons",'Waste Characterization-Tons'!F64,'Waste Characterization-Percent'!F64) -> 0.163 | G68: =IF(UserSelection_TonsPercent="Tons",'Waste Characterization-Tons'!G64,'Waste Characterization-Percent'!G64) -> 440.51891 | H68: =IF(UserSelection_TonsPercent="Tons",'Waste Characterization-Tons'!H64,'Waste Characterization-Percent'!H64) -> 0.163 | I68: + | J68: =IF(UserSelection_TonsPercent="Tons",'Waste Characterization-Tons'!J64,'Waste Characterization-Percent'!J64) -> 278.2998146 | K68: =IF(UserSelection_TonsPercent="Tons",'Waste Characterization-Tons'!K64,'Waste Characterization-Percent'!K64) -> 0.04633920297 | N68: = | O68: =IF(UserSelection_TonsPercent="Tons",'Waste Characterization-Tons'!O64,'Waste Characterization-Percent'!O64) -> 2744.452325 | P68: =IF(UserSelection_TonsPercent="Tons",'Waste Characterization-Tons'!P64,'Waste Characterization-Percent'!P64) -> 0.1188131691
D69: Paper | E69: =IF(UserSelection_TonsPercent="Tons",'Waste Characterization-Tons'!E65,'Waste Characterization-Percent'!E65) -> 3106.8 | F69: =IF(UserSelection_TonsPercent="Tons",'Waste Characterization-Tons'!F65,'Waste Characterization-Percent'!F65) -> 0.25 | G69: =IF(UserSelection_TonsPercent="Tons",'Waste Characterization-Tons'!G65,'Waste Characterization-Percent'!G65) -> 675.6425 | H69: =IF(UserSelection_TonsPercent="Tons",'Waste Characterization-Tons'!H65,'Waste Characterization-Percent'!H65) -> 0.25 | I69: + | J69: =IF(UserSelection_TonsPercent="Tons",'Waste Characterization-Tons'!J65,'Waste Characterization-Percent'!J65) -> 4026.070652 | K69: =IF(UserSelection_TonsPercent="Tons",'Waste Characterization-Tons'!K65,'Waste Characterization-Percent'!K65) -> 0.6703738029 | N69: = | O69: =IF(UserSelection_TonsPercent="Tons",'Waste Characterization-Tons'!O65,'Waste Characterization-Percent'!O65) -> 7808.513152 | P69: =IF(UserSelection_TonsPercent="Tons",'Waste Characterization-Tons'!P65,'Waste Characterization-Percent'!P65) -> 0.3380471162
D70: Wood | E70: =IF(UserSelection_TonsPercent="Tons",'Waste Characterization-Tons'!E66,'Waste Characterization-Percent'!E66) -> 1441.5552 | F70: =IF(UserSelection_TonsPercent="Tons",'Waste Characterization-Tons'!F66,'Waste Characterization-Percent'!F66) -> 0.116 | G70: =IF(UserSelection_TonsPercent="Tons",'Waste Characterization-Tons'!G66,'Waste Characterization-Percent'!G66) -> 313.49812 | H70: =IF(UserSelection_TonsPercent="Tons",'Waste Characterization-Tons'!H66,'Waste Characterization-Percent'!H66) -> 0.116 | I70: + | J70: =IF(UserSelection_TonsPercent="Tons",'Waste Characterization-Tons'!J66,'Waste Characterization-Percent'!J66) -> 229.1335141 | K70: =IF(UserSelection_TonsPercent="Tons",'Waste Characterization-Tons'!K66,'Waste Characterization-Percent'!K66) -> 0.03815261044 | N70: = | O70: =IF(UserSelection_TonsPercent="Tons",'Waste Characterization-Tons'!O66,'Waste Characterization-Percent'!O66) -> 1984.186834 | P70: =IF(UserSelection_TonsPercent="Tons",'Waste Characterization-Tons'!P66,'Waste Characterization-Percent'!P66) -> 0.08589966159
D71: Food Waste | E71: =IF(UserSelection_TonsPercent="Tons",'Waste Characterization-Tons'!E67,'Waste Characterization-Percent'!E67) -> 1690.0992 | F71: =IF(UserSelection_TonsPercent="Tons",'Waste Characterization-Tons'!F67,'Waste Characterization-Percent'!F67) -> 0.136 | G71: =IF(UserSelection_TonsPercent="Tons",'Waste Characterization-Tons'!G67,'Waste Characterization-Percent'!G67) -> 367.54952 | H71: =IF(UserSelection_TonsPercent="Tons",'Waste Characterization-Tons'!H67,'Waste Characterization-Percent'!H67) -> 0.136 | I71: + | L71: =IF(UserSelection_TonsPercent="Tons",'Waste Characterization-Tons'!L67,'Waste Characterization-Percent'!L67) -> 160.9926203 | M71: =IF(UserSelection_TonsPercent="Tons",'Waste Characterization-Tons'!M67,'Waste Characterization-Percent'!M67) -> 0.08199643494 | N71: = | O71: =IF(UserSelection_TonsPercent="Tons",'Waste Characterization-Tons'!O67,'Waste Characterization-Percent'!O67) -> 2218.64134 | P71: =IF(UserSelection_TonsPercent="Tons",'Waste Characterization-Tons'!P67,'Waste Characterization-Percent'!P67) -> 0.09604969504
D72: Yard Trimmings | E72: =IF(UserSelection_TonsPercent="Tons",'Waste Characterization-Tons'!E68,'Waste Characterization-Percent'!E68) -> 248.544 | F72: =IF(UserSelection_TonsPercent="Tons",'Waste Characterization-Tons'!F68,'Waste Characterization-Percent'!F68) -> 0.02 | G72: =IF(UserSelection_TonsPercent="Tons",'Waste Characterization-Tons'!G68,'Waste Characterization-Percent'!G68) -> 54.0514 | H72: =IF(UserSelection_TonsPercent="Tons",'Waste Characterization-Tons'!H68,'Waste Characterization-Percent'!H68) -> 0.02 | I72: + | L72: =IF(UserSelection_TonsPercent="Tons",'Waste Characterization-Tons'!L68,'Waste Characterization-Percent'!L68) -> 1802.41738 | M72: =IF(UserSelection_TonsPercent="Tons",'Waste Characterization-Tons'!M68,'Waste Characterization-Percent'!M68) -> 0.9180035651 | N72: = | O72: =IF(UserSelection_TonsPercent="Tons",'Waste Characterization-Tons'!O68,'Waste Characterization-Percent'!O68) -> 2105.01278 | P72: =IF(UserSelection_TonsPercent="Tons",'Waste Characterization-Tons'!P68,'Waste Characterization-Percent'!P68) -> 0.09113047336
D73: Other / Undifferentiated | E73: =IF(UserSelection_TonsPercent="Tons",'Waste Characterization-Tons'!E69,'Waste Characterization-Percent'!E69) -> 3069.52 | F73: =IF(UserSelection_TonsPercent="Tons",'Waste Characterization-Tons'!F69,'Waste Characterization-Percent'!F69) -> 0.2470001287 | G73: =IF(UserSelection_TonsPercent="Tons",'Waste Characterization-Tons'!G69,'Waste Characterization-Percent'!G69) -> 851.31 | H73: =IF(UserSelection_TonsPercent="Tons",'Waste Characterization-Tons'!H69,'Waste Characterization-Percent'!H69) -> 0.3150001665 | I73: + | J73: =IF(UserSelection_TonsPercent="Tons",'Waste Characterization-Tons'!J69,'Waste Characterization-Percent'!J69) -> 449.92 | K73: =IF(UserSelection_TonsPercent="Tons",'Waste Characterization-Tons'!K69,'Waste Characterization-Percent'!K69) -> 0.0749153722 | L73: =IF(UserSelection_TonsPercent="Tons",'Waste Characterization-Tons'!L69,'Waste Characterization-Percent'!L69) -> 0 | M73: =IF(UserSelection_TonsPercent="Tons",'Waste Characterization-Tons'!M69,'Waste Characterization-Percent'!M69) -> 0 | N73: = | O73: =IF(UserSelection_TonsPercent="Tons",'Waste Characterization-Tons'!O69,'Waste Characterization-Percent'!O69) -> 4370.75 | P73: =IF(UserSelection_TonsPercent="Tons",'Waste Characterization-Tons'!P69,'Waste Characterization-Percent'!P69) -> 0.1892190491
D74: Total | E74: =IF(UserSelection_TonsPercent="Tons",'Waste Characterization-Tons'!E70,'Waste Characterization-Percent'!E70) -> 12427.2 | F74: =IF(UserSelection_TonsPercent="Tons",'Waste Characterization-Tons'!F70,'Waste Characterization-Percent'!F70) -> 1 | G74: =IF(UserSelection_TonsPercent="Tons",'Waste Characterization-Tons'!G70,'Waste Characterization-Percent'!G70) -> 2702.57 | H74: =IF(UserSelection_TonsPercent="Tons",'Waste Characterization-Tons'!H70,'Waste Characterization-Percent'!H70) -> 1 | I74: + | J74: =IF(UserSelection_TonsPercent="Tons",'Waste Characterization-Tons'!J70,'Waste Characterization-Percent'!J70) -> 6005.71 | K74: =IF(UserSelection_TonsPercent="Tons",'Waste Characterization-Tons'!K70,'Waste Characterization-Percent'!K70) -> 1 | L74: =IF(UserSelection_TonsPercent="Tons",'Waste Characterization-Tons'!L70,'Waste Characterization-Percent'!L70) -> 1963.41 | M74: =IF(UserSelection_TonsPercent="Tons",'Waste Characterization-Tons'!M70,'Waste Characterization-Percent'!M70) -> 1 | N74: = | O74: =IF(UserSelection_TonsPercent="Tons",'Waste Characterization-Tons'!O70,'Waste Characterization-Percent'!O70) -> 23098.89 | P74: =IF(UserSelection_TonsPercent="Tons",'Waste Characterization-Tons'!P70,'Waste Characterization-Percent'!P70) -> 1
D77: C&D
E79: Disposed | J79: Diverted | O79: Total Generated
E80: Landfilled | J80: Recycled | O80: Generated
E81: Tons | F81: % of Total Tons Landfiled | J81: Tons | K81: % of Total Tons Recycled/ Reused | O81: Tons | P81: % of Total Tons Generated
D82: Asphalt Concrete | E82: =IF(UserSelection_TonsPercent="Tons",'Waste Characterization-Tons'!E93,'Waste Characterization-Percent'!E93) -> 2085 | F82: =IF(UserSelection_TonsPercent="Tons",'Waste Characterization-Tons'!F93,'Waste Characterization-Percent'!F93) -> 0.1 | H82: + | J82: =IF(UserSelection_TonsPercent="Tons",'Waste Characterization-Tons'!G93,'Waste Characterization-Percent'!G93) -> 1283.5 | K82: =IF(UserSelection_TonsPercent="Tons",'Waste Characterization-Tons'!H93,'Waste Characterization-Percent'!H93) -> 0.17 | M82: = | O82: =IF(UserSelection_TonsPercent="Tons",'Waste Characterization-Tons'!J93,'Waste Characterization-Percent'!J93) -> 3368.5 | P82: =IF(UserSelection_TonsPercent="Tons",'Waste Characterization-Tons'!K93,'Waste Characterization-Percent'!K93) -> 0.1186091549 | Q82: =J82/O82 -> 0.3810301321
D83: Concrete | E83: =IF(UserSelection_TonsPercent="Tons",'Waste Characterization-Tons'!E94,'Waste Characterization-Percent'!E94) -> 2502 | F83: =IF(UserSelection_TonsPercent="Tons",'Waste Characterization-Tons'!F94,'Waste Characterization-Percent'!F94) -> 0.12 | H83: + | J83: =IF(UserSelection_TonsPercent="Tons",'Waste Characterization-Tons'!G94,'Waste Characterization-Percent'!G94) -> 4454.5 | K83: =IF(UserSelection_TonsPercent="Tons",'Waste Characterization-Tons'!H94,'Waste Characterization-Percent'!H94) -> 0.59 | M83: = | O83: =IF(UserSelection_TonsPercent="Tons",'Waste Characterization-Tons'!J94,'Waste Characterization-Percent'!J94) -> 6956.5 | P83: =IF(UserSelection_TonsPercent="Tons",'Waste Characterization-Tons'!K94,'Waste Characterization-Percent'!K94) -> 0.2449471831
D84: Drywall | E84: =IF(UserSelection_TonsPercent="Tons",'Waste Characterization-Tons'!E95,'Waste Characterization-Percent'!E95) -> 1688.85 | F84: =IF(UserSelection_TonsPercent="Tons",'Waste Characterization-Tons'!F95,'Waste Characterization-Percent'!F95) -> 0.081 | H84: + | J84: =IF(UserSelection_TonsPercent="Tons",'Waste Characterization-Tons'!G95,'Waste Characterization-Percent'!G95) -> 151 | K84: =IF(UserSelection_TonsPercent="Tons",'Waste Characterization-Tons'!H95,'Waste Characterization-Percent'!H95) -> 0.02 | M84: = | O84: =IF(UserSelection_TonsPercent="Tons",'Waste Characterization-Tons'!J95,'Waste Characterization-Percent'!J95) -> 1839.85 | P84: =IF(UserSelection_TonsPercent="Tons",'Waste Characterization-Tons'!K95,'Waste Characterization-Percent'!K95) -> 0.0647834507
D85: Dimensional lumber and General Wood Products | E85: =IF(UserSelection_TonsPercent="Tons",'Waste Characterization-Tons'!E96,'Waste Characterization-Percent'!E96) -> 3273.45 | F85: =IF(UserSelection_TonsPercent="Tons",'Waste Characterization-Tons'!F96,'Waste Characterization-Percent'!F96) -> 0.157 | H85: + | J85: =IF(UserSelection_TonsPercent="Tons",'Waste Characterization-Tons'!G96,'Waste Characterization-Percent'!G96) -> 377.5 | K85: =IF(UserSelection_TonsPercent="Tons",'Waste Characterization-Tons'!H96,'Waste Characterization-Percent'!H96) -> 0.05 | M85: = | O85: =IF(UserSelection_TonsPercent="Tons",'Waste Characterization-Tons'!J96,'Waste Characterization-Percent'!J96) -> 3650.95 | P85: =IF(UserSelection_TonsPercent="Tons",'Waste Characterization-Tons'!K96,'Waste Characterization-Percent'!K96) -> 0.1285545775
D86: Medium-Density Fiberboard, Plywood, and Related Products | E86: =IF(UserSelection_TonsPercent="Tons",'Waste Characterization-Tons'!E97,'Waste Characterization-Percent'!E97) -> 938.25 | F86: =IF(UserSelection_TonsPercent="Tons",'Waste Characterization-Tons'!F97,'Waste Characterization-Percent'!F97) -> 0.045 | H86: + | J86: =IF(UserSelection_TonsPercent="Tons",'Waste Characterization-Tons'!G97,'Waste Characterization-Percent'!G97) -> 151 | K86: =IF(UserSelection_TonsPercent="Tons",'Waste Characterization-Tons'!H97,'Waste Characterization-Percent'!H97) -> 0.02 | M86: = | O86: =IF(UserSelection_TonsPercent="Tons",'Waste Characterization-Tons'!J97,'Waste Characterization-Percent'!J97) -> 1089.25 | P86: =IF(UserSelection_TonsPercent="Tons",'Waste Characterization-Tons'!K97,'Waste Characterization-Percent'!K97) -> 0.03835387324
D87: Asphalt Shingles-Fiberglass | E87: =IF(UserSelection_TonsPercent="Tons",'Waste Characterization-Tons'!E98,'Waste Characterization-Percent'!E98) -> 3044.1 | F87: =IF(UserSelection_TonsPercent="Tons",'Waste Characterization-Tons'!F98,'Waste Characterization-Percent'!F98) -> 0.146 | H87: + | J87: =IF(UserSelection_TonsPercent="Tons",'Waste Characterization-Tons'!G98,'Waste Characterization-Percent'!G98) -> 377.5 | K87: =IF(UserSelection_TonsPercent="Tons",'Waste Characterization-Tons'!H98,'Waste Characterization-Percent'!H98) -> 0.05 | M87: = | O87: =IF(UserSelection_TonsPercent="Tons",'Waste Characterization-Tons'!J98,'Waste Characterization-Percent'!J98) -> 3421.6 | P87: =IF(UserSelection_TonsPercent="Tons",'Waste Characterization-Tons'!K98,'Waste Characterization-Percent'!K98) -> 0.1204788732
D88: Clay Bricks ǂ | E88: =IF(UserSelection_TonsPercent="Tons",'Waste Characterization-Tons'!E99,'Waste Characterization-Percent'!E99) -> 1334.4 | F88: =IF(UserSelection_TonsPercent="Tons",'Waste Characterization-Tons'!F99,'Waste Characterization-Percent'!F99) -> 0.064 | H88: + | J88: =IF(UserSelection_TonsPercent="Tons",'Waste Characterization-Tons'!G99,'Waste Characterization-Percent'!G99) -> 60.4 | K88: =IF(UserSelection_TonsPercent="Tons",'Waste Characterization-Tons'!H99,'Waste Characterization-Percent'!H99) -> 0.008 | M88: = | O88: =IF(UserSelection_TonsPercent="Tons",'Waste Characterization-Tons'!J99,'Waste Characterization-Percent'!J99) -> 1394.8 | P88: =IF(UserSelection_TonsPercent="Tons",'Waste Characterization-Tons'!K99,'Waste Characterization-Percent'!K99) -> 0.04911267606
D89: Ferrous Metals | E89: =IF(UserSelection_TonsPercent="Tons",'Waste Characterization-Tons'!E100,'Waste Characterization-Percent'!E100) -> 500.4 | F89: =IF(UserSelection_TonsPercent="Tons",'Waste Characterization-Tons'!F100,'Waste Characterization-Percent'!F100) -> 0.024 | H89: + | J89: =IF(UserSelection_TonsPercent="Tons",'Waste Characterization-Tons'!G100,'Waste Characterization-Percent'!G100) -> 377.5 | K89: =IF(UserSelection_TonsPercent="Tons",'Waste Characterization-Tons'!H100,'Waste Characterization-Percent'!H100) -> 0.05 | M89: = | O89: =IF(UserSelection_TonsPercent="Tons",'Waste Characterization-Tons'!J100,'Waste Characterization-Percent'!J100) -> 877.9 | P89: =IF(UserSelection_TonsPercent="Tons",'Waste Characterization-Tons'!K100,'Waste Characterization-Percent'!K100) -> 0.03091197183
D90: Non Ferrous Metals | E90: =IF(UserSelection_TonsPercent="Tons",'Waste Characterization-Tons'!E101,'Waste Characterization-Percent'!E101) -> 83.4 | F90: =IF(UserSelection_TonsPercent="Tons",'Waste Characterization-Tons'!F101,'Waste Characterization-Percent'!F101) -> 0.004 | H90: + | J90: =IF(UserSelection_TonsPercent="Tons",'Waste Characterization-Tons'!G101,'Waste Characterization-Percent'!G101) -> 30.2 | K90: =IF(UserSelection_TonsPercent="Tons",'Waste Characterization-Tons'!H101,'Waste Characterization-Percent'!H101) -> 0.004 | M90: = | O90: =IF(UserSelection_TonsPercent="Tons",'Waste Characterization-Tons'!J101,'Waste Characterization-Percent'!J101) -> 113.6 | P90: =IF(UserSelection_TonsPercent="Tons",'Waste Characterization-Tons'!K101,'Waste Characterization-Percent'!K101) -> 0.004
D91: Mixed Plastics | E91: =IF(UserSelection_TonsPercent="Tons",'Waste Characterization-Tons'!E102,'Waste Characterization-Percent'!E102) -> 166.8 | F91: =IF(UserSelection_TonsPercent="Tons",'Waste Characterization-Tons'!F102,'Waste Characterization-Percent'!F102) -> 0.008 | H91: + | J91: =IF(UserSelection_TonsPercent="Tons",'Waste Characterization-Tons'!G102,'Waste Characterization-Percent'!G102) -> 52.85 | K91: =IF(UserSelection_TonsPercent="Tons",'Waste Characterization-Tons'!H102,'Waste Characterization-Percent'!H102) -> 0.007 | M91: = | O91: =IF(UserSelection_TonsPercent="Tons",'Waste Characterization-Tons'!J102,'Waste Characterization-Percent'!J102) -> 219.65 | P91: =IF(UserSelection_TonsPercent="Tons",'Waste Characterization-Tons'!K102,'Waste Characterization-Percent'!K102) -> 0.00773415493
D92: Cardboard | E92: =IF(UserSelection_TonsPercent="Tons",'Waste Characterization-Tons'!E103,'Waste Characterization-Percent'!E103) -> 166.8 | F92: =IF(UserSelection_TonsPercent="Tons",'Waste Characterization-Tons'!F103,'Waste Characterization-Percent'!F103) -> 0.008 | H92: + | J92: =IF(UserSelection_TonsPercent="Tons",'Waste Characterization-Tons'!G103,'Waste Characterization-Percent'!G103) -> 90.6 | K92: =IF(UserSelection_TonsPercent="Tons",'Waste Characterization-Tons'!H103,'Waste Characterization-Percent'!H103) -> 0.012 | M92: = | O92: =IF(UserSelection_TonsPercent="Tons",'Waste Characterization-Tons'!J103,'Waste Characterization-Percent'!J103) -> 257.4 | P92: =IF(UserSelection_TonsPercent="Tons",'Waste Characterization-Tons'!K103,'Waste Characterization-Percent'!K103) -> 0.009063380282
D93: Carpet | E93: =IF(UserSelection_TonsPercent="Tons",'Waste Characterization-Tons'!E104,'Waste Characterization-Percent'!E104) -> 250.2 | F93: =IF(UserSelection_TonsPercent="Tons",'Waste Characterization-Tons'!F104,'Waste Characterization-Percent'!F104) -> 0.012 | H93: + | J93: =IF(UserSelection_TonsPercent="Tons",'Waste Characterization-Tons'!G104,'Waste Characterization-Percent'!G104) -> 15.1 | K93: =IF(UserSelection_TonsPercent="Tons",'Waste Characterization-Tons'!H104,'Waste Characterization-Percent'!H104) -> 0.002 | M93: = | O93: =IF(UserSelection_TonsPercent="Tons",'Waste Characterization-Tons'!J104,'Waste Characterization-Percent'!J104) -> 265.3 | P93: =IF(UserSelection_TonsPercent="Tons",'Waste Characterization-Tons'!K104,'Waste Characterization-Percent'!K104) -> 0.009341549296
B94: HIDE | D94: Vinyl Flooring | E94: =IF(UserSelection_TonsPercent="Tons",'Waste Characterization-Tons'!E105,'Waste Characterization-Percent'!E105) -> 0 | F94: =IF(UserSelection_TonsPercent="Tons",'Waste Characterization-Tons'!F105,'Waste Characterization-Percent'!F105) -> 0 | H94: + | J94: =IF(UserSelection_TonsPercent="Tons",'Waste Characterization-Tons'!G105,'Waste Characterization-Percent'!G105) -> 0 | K94: =IF(UserSelection_TonsPercent="Tons",'Waste Characterization-Tons'!H105,'Waste Characterization-Percent'!H105) -> 0 | M94: = | O94: =IF(UserSelection_TonsPercent="Tons",'Waste Characterization-Tons'!J105,'Waste Characterization-Percent'!J105) -> 0 | P94: =IF(UserSelection_TonsPercent="Tons",'Waste Characterization-Tons'!K105,'Waste Characterization-Percent'!K105) -> 0
B95: HIDE | D95: PVC | E95: =IF(UserSelection_TonsPercent="Tons",'Waste Characterization-Tons'!E106,'Waste Characterization-Percent'!E106) -> 0 | F95: =IF(UserSelection_TonsPercent="Tons",'Waste Characterization-Tons'!F106,'Waste Characterization-Percent'!F106) -> 0 | H95: + | J95: =IF(UserSelection_TonsPercent="Tons",'Waste Characterization-Tons'!G106,'Waste Characterization-Percent'!G106) -> 0 | K95: =IF(UserSelection_TonsPercent="Tons",'Waste Characterization-Tons'!H106,'Waste Characterization-Percent'!H106) -> 0 | M95: = | O95: =IF(UserSelection_TonsPercent="Tons",'Waste Characterization-Tons'!J106,'Waste Characterization-Percent'!J106) -> 0 | P95: =IF(UserSelection_TonsPercent="Tons",'Waste Characterization-Tons'!K106,'Waste Characterization-Percent'!K106) -> 0
B96: HIDE | D96: Fiberglass Insulation | E96: =IF(UserSelection_TonsPercent="Tons",'Waste Characterization-Tons'!E107,'Waste Characterization-Percent'!E107) -> 0 | F96: =IF(UserSelection_TonsPercent="Tons",'Waste Characterization-Tons'!F107,'Waste Characterization-Percent'!F107) -> 0 | H96: + | J96: =IF(UserSelection_TonsPercent="Tons",'Waste Characterization-Tons'!G107,'Waste Characterization-Percent'!G107) -> 0 | K96: =IF(UserSelection_TonsPercent="Tons",'Waste Characterization-Tons'!H107,'Waste Characterization-Percent'!H107) -> 0 | M96: = | O96: =IF(UserSelection_TonsPercent="Tons",'Waste Characterization-Tons'!J107,'Waste Characterization-Percent'!J107) -> 0 | P96: =IF(UserSelection_TonsPercent="Tons",'Waste Characterization-Tons'!K107,'Waste Characterization-Percent'!K107) -> 0
B97: HIDE | D97: Wood Flooring, Cabinets, Doors | E97: =IF(UserSelection_TonsPercent="Tons",'Waste Characterization-Tons'!E108,'Waste Characterization-Percent'!E108) -> 0 | F97: =IF(UserSelection_TonsPercent="Tons",'Waste Characterization-Tons'!F108,'Waste Characterization-Percent'!F108) -> 0 | H97: + | J97: =IF(UserSelection_TonsPercent="Tons",'Waste Characterization-Tons'!G108,'Waste Characterization-Percent'!G108) -> 0 | K97: =IF(UserSelection_TonsPercent="Tons",'Waste Characterization-Tons'!H108,'Waste Characterization-Percent'!H108) -> 0 | M97: = | O97: =IF(UserSelection_TonsPercent="Tons",'Waste Characterization-Tons'!J108,'Waste Characterization-Percent'!J108) -> 0 | P97: =IF(UserSelection_TonsPercent="Tons",'Waste Characterization-Tons'!K108,'Waste Characterization-Percent'!K108) -> 0
D98: Other / Undifferentiated | E98: =IF(UserSelection_TonsPercent="Tons",'Waste Characterization-Tons'!E109,'Waste Characterization-Percent'!E109) -> 4816.35 | F98: =IF(UserSelection_TonsPercent="Tons",'Waste Characterization-Tons'!F109,'Waste Characterization-Percent'!F109) -> 0.231 | H98: + | J98: =IF(UserSelection_TonsPercent="Tons",'Waste Characterization-Tons'!G109,'Waste Characterization-Percent'!G109) -> 128.35 | K98: =IF(UserSelection_TonsPercent="Tons",'Waste Characterization-Tons'!H109,'Waste Characterization-Percent'!H109) -> 0.017 | M98: = | O98: =IF(UserSelection_TonsPercent="Tons",'Waste Characterization-Tons'!J109,'Waste Characterization-Percent'!J109) -> 4944.7 | P98: =IF(UserSelection_TonsPercent="Tons",'Waste Characterization-Tons'!K109,'Waste Characterization-Percent'!K109) -> 0.1741091549
D99: Total | E99: =IF(UserSelection_TonsPercent="Tons",'Waste Characterization-Tons'!E110,'Waste Characterization-Percent'!E110) -> 20850 | H99: + | J99: =IF(UserSelection_TonsPercent="Tons",'Waste Characterization-Tons'!G110,'Waste Characterization-Percent'!G110) -> 7550 | M99: = | O99: =IF(UserSelection_TonsPercent="Tons",'Waste Characterization-Tons'!J110,'Waste Characterization-Percent'!J110) -> 28400 | P99: =IF(UserSelection_TonsPercent="Tons",'Waste Characterization-Tons'!K110,'Waste Characterization-Percent'!K110) -> 1

Sheet PAYT
U1: HIDE | V1: HIDE | W1: HIDE | X1: HIDE | Y1: HIDE | Z1: HIDE | AA1: HIDE | AB1: HIDE | AC1: HIDE | AD1: HIDE | AE1: HIDE | AF1: HIDE | AG1: HIDE | AH1: HIDE | AI1: HIDE | AJ1: HIDE | AK1: HIDE | AL1: HIDE | AM1: HIDE | AN1: HIDE | AO1: HIDE | AP1: HIDE | AQ1: HIDE | AR1: HIDE | AS1: HIDE | AT1: HIDE | AU1: HIDE | AV1: HIDE | AW1: HIDE
B3: Implement Pay-As-You-Throw (for Single-Family Homes) | W3: Any rate >100%? | X3: =IF(OR(U13,U14,U15,AV16,AV17,AV18,AV19,AV20,AV21,AV22,AV35,AV36,AV37,AV38),TRUE) -> FALSE
B4: Enter information into the yellow cells below or skip if your community has already implemented PAYT
W5: =V22 -> 6314.478594 | X5: Current Tons recycled
C6: In a Pay-As-You-Throw (PAYT) program, residents are charged based on the amount of ordinary household trash thrown away, rather than a fixed bill. | W6: ='Annual Calcs'!L109 -> 22062.14265 | X6: Total Tons generated
W7: =W5*(1-PAYT_SourceReduction) -> 5935.609878 | X7: After Source Reduction Tons recycled
W8: =W6*(1-PAYT_SourceReduction) -> 20738.41409 | X8: After Source Reduction Tons generated
W9: =W8*PAYT_Recycling -> 1244.304845 | X9: <- Total Additional Tons Recycled Necessary to meet the overall target diversion rate
C10: Note: Use backspace, not the space bar, to clear values. Clearing cell contents by using the space bar will create calculation errors. | W10: =AB22*PAYT_Recycling -> 935.1404109 | X10: alternative value?
C11: Effects of Implementing PAYT for Single-Family Homes1 | V11: 1st Year of Implementation
V12: BAU | Z12: After PAYT Source Reduction | AD12: After PAYT Source Reduction and Recycling
I13: Annual increase in source reduction* due to PAYT | J13: 0.06 | P13: ="Assumptions #" & TEXT(Assumptions!$C$32,"0") & " and #" & TEXT(Assumptions!$C$36,"0") -> Assumptions #19 and #22 | U13: =IF(PAYT_SourceReduction>1,TRUE,FALSE) -> FALSE | V13: tons recycled | W13: % breakdown | X13: tons generated | Y13: % recycled | Z13: tons recycled | AA13: % breakdown | AB13: tons generated | AC13: % recycled | AD13: % of Total Waste Stream | AE13: Additional Tons to Recycle | AF13: New Tons Recycled 1 | AG13: New Recycling Rate | AH13: New Recycling Rate (doesn’t allow >100%) | AI13: New Tons Recycled 2 | AJ13: Additional Tons Recycled to Distribute | AK13: Tons to Eliminate from Total Waste Stream | AL13: New % of Recycled Stream with Waste Eliminated | AM13: New Tons Recycled 3 | AN13: New Target Recycling Rate | AO13: New Tons Recycled 4 | AP13: New Target Recycling Rate | AQ13: Additional Tons Recycled to Distribute | AR13: Tons to Eliminate from Total Waste Stream | AS13: New % of Recycled Stream with Waste Eliminated | AT13: New Tons Recycled 5 | AU13: New Target Recycling Rate
I14: Annual increase* in recycling due to PAYT | J14: 0.06 | P14: ="Assumptions #" & TEXT(Assumptions!$C$33,"0") & " and #" & TEXT(Assumptions!$C$37,"0") -> Assumptions #20 and #23 | U14: =IF(PAYT_Recycling>1,TRUE,FALSE) -> FALSE | AW14: QA
I15: Annual increase* in composting (yard trimmings) due to PAYT | J15: 0.05 | P15: ="Assumptions #" & TEXT(Assumptions!$C$34,"0") & " and #" & TEXT(Assumptions!$C$38,"0") -> Assumptions #21 and #24 | U15: =IF(PAYT_Composting>1,TRUE,FALSE) -> FALSE | AW15: should be zero
H16: * For example, if your single-family home recycling or composting rate increases from 30% to 35%, enter 5%. | U16: Metal | V16: ='Annual Calcs'!F101 -> 767.6079311 | W16: =IF(V$22=0,0,V16/V$22) -> 0.1215631536 | X16: ='Annual Calcs'!L101 -> 1286.750328 | Y16: =IF(X16=0,0,V16/X16) -> 0.5965476866 | Z16: =V16*(1-PAYT_SourceReduction) -> 721.5514553 | AA16: =IF(Z$22=0,0,Z16/Z$22) -> 0.1215631536 | AB16: =X16*(1-PAYT_SourceReduction) -> 1209.545308 | AC16: =IF(AB16=0,0,Z16/AB16) -> 0.5965476866 | AD16: =AB16/AB$22 -> 0.07760622644 | AE16: =AD16*$W$9 -> 96.56580359 | AF16: =AE16+Z16 -> 818.1172589 | AG16: =IF(AB16=0,"",AF16/AB16) -> 0.6763841366 | AH16: =IF(AG16>1,1,AG16) -> 0.6763841366 | AI16: =AH16*AB16 -> 818.1172589 | AJ16: =AF16-AI16 -> 0 | AK16: =IF(AH16<>1,0,AB16) -> 0 | AL16: =IF(AH16<>1,AB16,0)/($AB$22-$AK$22) -> 0.07760622644 | AM16: =AI16+AL16*$AJ$22 -> 818.1172589 | AN16: =IF(AB16=0,"",AM16/AB16) -> 0.6763841366 | AO16: =IF(AM16>AB16,AB16,AM16) -> 818.1172589 | AP16: =IF(AB16=0,0,AO16/AB16) -> 0.6763841366 | AQ16: =AM16-AO16 -> 0 | AR16: =AK16+IF(AQ16=0,0,AB16) -> 0 | AS16: =IF(AP16<>1,AB16,0)/($AB$22-$AR$22) -> 0.07760622644 | AT16: =AO16+AS16*$AQ$22 -> 818.1172589 | AU16: =IF(AB16=0,0,AT16/AB16) -> 0.6763841366 | AV16: =IF(ISERROR(IF(AU16>1,TRUE,FALSE)),TRUE,IF(AU16>1,TRUE,FALSE)) -> FALSE | AW16: =AT16-'Annual Calcs'!T101 -> -96.76362464
J17: WARNING: A value that you entered either exceeds 100% or causes the total diversion rate (composting + recycling) to exceed 100% of total waste generated. Please revise your entries. | U17: Glass | V17: ='Annual Calcs'!F102 -> 307.2382444 | W17: 0.04865615423 | X17: ='Annual Calcs'!L102 -> 660.6968973 | Y17: 0.4650214729 | Z17: =V17*(1-PAYT_SourceReduction) -> 288.8039497 | AA17: 0.04865615423 | AB17: 621.0550835 | AC17: 0.4650214729 | AD17: 0.03984781812 | AE17: 49.58283316 | AF17: 338.3867829 | AG17: =IF(AB17=0,"",AF17/AB17) -> 0.544857923 | AH17: 0.544857923 | AI17: 338.3867829 | AJ17: 0 | AK17: 0 | AL17: 0.03984781812 | AM17: 338.3867829 | AN17: =IF(AB17=0,"",AM17/AB17) -> 0.544857923 | AO17: 338.3867829 | AP17: 0.544857923 | AQ17: 0 | AR17: 0 | AS17: 0.03984781812 | AT17: 338.3867829 | AU17: 0.544857923 | AV17: =IF(ISERROR(IF(AU17>1,TRUE,FALSE)),TRUE,IF(AU17>1,TRUE,FALSE)) -> FALSE | AW17: =AT17-'Annual Calcs'!T102 -> -49.68440668
U18: Plastic | V18: ='Annual Calcs'!F103 -> 292.6078518 | W18: 0.0463391945 | X18: ='Annual Calcs'!L103 -> 1846.682915 | Y18: 0.1584505111 | Z18: 275.0513807 | AA18: 0.0463391945 | AB18: 1735.88194 | AC18: 0.1584505111 | AD18: 0.1113767678 | AE18: 138.5866519 | AF18: 413.6380325 | AG18: 0.2382869612 | AH18: 0.2382869612 | AI18: 413.6380325 | AJ18: 0 | AK18: 0 | AL18: 0.1113767678 | AM18: 413.6380325 | AN18: 0.2382869612 | AO18: 413.6380325 | AP18: 0.2382869612 | AQ18: 0 | AR18: 0 | AS18: 0.1113767678 | AT18: 413.6380325 | AU18: 0.2382869612 | AV18: FALSE | AW18: =AT18-'Annual Calcs'!T103 -> -138.8705552
U19: Paper | V19: ='Annual Calcs'!F104 -> 4233.060256 | W19: 0.6703736805 | X19: ='Annual Calcs'!L104 -> 7123.094584 | Y19: 0.5942726445 | Z19: 3979.07664 | AA19: 0.6703736805 | AB19: 6695.708909 | AC19: 0.5942726445 | AD19: 0.429606645 | AE19: 534.56163 | AF19: 4513.63827 | AG19: 0.6741090946 | AH19: 0.6741090946 | AI19: 4513.63827 | AJ19: 0 | AK19: 0 | AL19: 0.429606645 | AM19: 4513.63827 | AN19: 0.6741090946 | AO19: 4513.63827 | AP19: 0.6741090946 | AQ19: 0 | AR19: 0 | AS19: 0.429606645 | AT19: 4513.63827 | AU19: 0.6741090946 | AV19: FALSE | AW19: =AT19-'Annual Calcs'!T104 -> -535.6567127
U20: Wood | V20: ='Annual Calcs'!F105 -> 240.913798 | W20: 0.03815260348 | X20: ='Annual Calcs'!L105 -> 1045.215805 | Y20: 0.2304919203 | Z20: 226.4589701 | AA20: 0.03815260348 | AB20: 982.5028562 | AC20: 0.2304919203 | AD20: 0.06303884496 | AE20: 78.43954023 | AF20: 304.8985103 | AG20: 0.3103283704 | AH20: 0.3103283704 | AI20: 304.8985103 | AJ20: 0 | AK20: 0 | AL20: 0.06303884496 | AM20: 304.8985103 | AN20: 0.3103283704 | AO20: 304.8985103 | AP20: 0.3103283704 | AQ20: 0 | AR20: 0 | AS20: 0.06303884496 | AT20: 304.8985103 | AU20: 0.3103283704 | AV20: FALSE | AW20: =AT20-'Annual Calcs'!T105 -> -78.6002285
I21: Results of your selections: | J21: Current Value | K21: Value after PAYT | U21: Other | V21: ='Annual Calcs'!F108 -> 473.0505133 | W21: 0.0749152137 | X21: ='Annual Calcs'!L108 -> 4618.06321 | Y21: 0.1024348286 | Z21: 444.6674825 | AA21: 0.0749152137 | AB21: 4340.979418 | AC21: 0.1024348286 | AD21: 0.2785236976 | AE21: 346.5683865 | AF21: 791.235869 | AG21: 0.1822712786 | AH21: 0.1822712786 | AI21: 791.235869 | AJ21: 0 | AK21: 0 | AL21: 0.2785236976 | AM21: 791.235869 | AN21: 0.1822712786 | AO21: 791.235869 | AP21: 0.1822712786 | AQ21: 0 | AR21: 0 | AS21: 0.2785236976 | AT21: 791.235869 | AU21: 0.1822712786 | AV21: FALSE | AW21: =AT21-'Annual Calcs'!T108 -> -347.2783534
I22: Single Family Home Disposal rate | J22: =IF(ISERROR((W6-W5-V25)/W6),"",(W6-W5-V25)/W6) -> 0.6179018007 | K22: =IF(ISERROR((W8-AT22-AT38)/W8),"",(W8-AT22-AT38)/W8) -> 0.5079018007 | U22: Total | V22: ='Annual Calcs'!F109 -> 6314.478594 | W22: 1 | X22: =SUM(X16:X21) -> 16580.50374 | Y22: 0.3808375604 | Z22: 5935.609878 | AA22: 1 | AB22: =SUM(AB16:AB21) -> 15585.67351 | AC22: 0.3808375604 | AD22: 1 | AE22: =SUM(AE16:AE21) -> 1244.304845 | AF22: =SUM(AF16:AF21) -> 7179.914724 | AG22: 0.4606740105 | AH22: 0.4606740105 | AI22: =SUM(AI16:AI21) -> 7179.914724 | AJ22: =SUM(AJ16:AJ21) -> 0 | AK22: =SUM(AK16:AK21) -> 0 | AL22: =SUM(AL16:AL21) -> 1 | AM22: =SUM(AM16:AM21) -> 7179.914724 | AN22: 0.4606740105 | AO22: =SUM(AO16:AO21) -> 7179.914724 | AP22: 0.4606740105 | AQ22: =SUM(AQ16:AQ21) -> 0 | AR22: =SUM(AR16:AR21) -> 0 | AS22: =SUM(AS16:AS21) -> 1 | AT22: =SUM(AT16:AT21) -> 7179.914724 | AU22: 0.4606740105 | AV22: FALSE | AW22: =AT22-'Annual Calcs'!T109 -> -1246.853881
I23: Single-Family Home recycling rate | J23: =IF(ISERROR(W5/W6),"",W5/W6) -> 0.2862132974 | K23: =IF(ISERROR(AT22/W8),"",AT22/W8) -> 0.3462132974 | U23: QA: | V23: =V22-SUM(V16:V21) -> 0 | W23: =W22-SUM(W16:W21) -> 0 | X23: =X22-SUM(X16:X21) -> 0 | AD23: =AD22-SUM(AD16:AD21) -> 0 | AE23: 0 | AF23: 0 | AG23: -2.165563754 | AH23: -2.165563754 | AI23: 0 | AJ23: 0 | AK23: 0 | AL23: 0 | AM23: 0 | AN23: -2.165563754 | AO23: 0 | AP23: -2.165563754 | AQ23: 0 | AR23: 0 | AS23: 0 | AT23: 0 | AU23: -2.165563754
I24: Single-Family Home composting rate | J24: =IF(ISERROR(V25/V26),"",V25/V26) -> 0.09588490196 | K24: =IF(ISERROR(AT38/V28),"",AT38/V28) -> 0.145884902
V25: =V38 -> 2115.426385 | W25: Current Tons Composted
V26: ='Annual Calcs'!L109 -> 22062.14265 | W26: Total Tons generated
C27: 1 Note: Increases in source reduction, recycling, and composting from policy/program implementation are assumed to occur in full beginning 1 year after the Base Year and every year thereafter. | V27: =V25*(1-PAYT_SourceReduction) -> 1988.500802 | W27: After Source Reduction Tons composted
V28: =V26*(1-PAYT_SourceReduction) -> 20738.41409 | W28: After Source Reduction Tons generated
V29: =V28*PAYT_Composting -> 1036.920704 | W29: <- Total Additional Tons Composted Necessary to meet the overall target diversion rate
V30: =AB38*PAYT_Composting -> 435.1242062 | W30: alternative value?
V31: BAU | Z31: After PAYT Source Reduction and Recycling (for other) | AD31: After PAYT Source Reduction and Composting
V32: tons composted | W32: % breakdown | X32: tons generated | Y32: % Composted | Z32: tons composted | AA32: % breakdown | AB32: tons generated (other waste: removes tonnage already recycled) | AC32: % Composted | AD32: % of Total Waste Stream | AE32: Additional Tons to Compost | AF32: New Tons Composted 1 | AG32: New Composting Rate | AH32: New Composting Rate (doesn’t allow >100%) | AI32: New Tons Composted 2 | AJ32: Additional Tons Composted to Distribute | AK32: Tons to Eliminate from Total Waste Stream | AL32: New % of Composted Stream with Waste Eliminated | AM32: New Tons Composted 3 | AN32: New Target Composting Rate | AO32: New Tons Composted 4 | AP32: New Target Composting Rate | AQ32: Additional Tons Composted to Distribute | AR32: Tons to Eliminate from Total Waste Stream | AS32: New % of Composted Stream with Waste Eliminated | AT32: New Tons Composted 5 | AU32: New Target Composting Rate
U35: Food | V35: ='Annual Calcs'!H106 -> 84.61699936 | W35: =IF(V$38=0,0,V35/V$38) -> 0.03999997351 | X35: ='Annual Calcs'!L106 -> 1693.221012 | Y35: =IF(X35=0,0,V35/X35) -> 0.04997398375 | Z35: =V35*(1-PAYT_SourceReduction) -> 79.5399794 | AA35: =IF(Z$38=0,0,Z35/Z$38) -> 0.03999997351 | AB35: =X35*(1-PAYT_SourceReduction) -> 1591.627752 | AC35: =IF(AB35=0,0,Z35/AB35) -> 0.04997398375 | AD35: =AB35/AB$38 -> 0.1828934968 | AE35: 0 | AF35: =AE35+Z35 -> 79.5399794 | AG35: =IF(AB35=0,"",AF35/AB35) -> 0.04997398375 | AH35: =IF(AG35>1,1,AG35) -> 0.04997398375 | AI35: =AH35*AB35 -> 79.5399794 | AJ35: =AF35-AI35 -> 0 | AK35: =IF(AH35<>1,0,AB35) -> 0 | AL35: =IF(AH35<>1,AB35,0)/($AB$38-$AK$38) -> 0.1828934968 | AM35: =AI35+AL35*$AJ$38 -> 79.5399794 | AN35: =IF(AB35=0,"",AM35/AB35) -> 0.04997398375 | AO35: =IF(AM35>AB35,AB35,AM35) -> 79.5399794 | AP35: =IF(AB35=0,0,AO35/AB35) -> 0.04997398375 | AQ35: =AM35-AO35 -> 0 | AR35: =AK35+IF(AQ35=0,0,AB35) -> 0 | AS35: =IF(AP35<>1,AB35,0)/($AB$38-$AR$38) -> 0.1828934968 | AT35: =AO35+AS35*$AQ$38 -> 79.5399794 | AU35: =IF(AB35=0,0,AT35/AB35) -> 0.04997398375 | AV35: =IF(ISERROR(IF(AU35>1,TRUE,FALSE)),TRUE,IF(AU35>1,TRUE,FALSE)) -> FALSE | AW35: =AT35-'Annual Calcs'!V106 -> -238.7441628
U36: Yard | V36: ='Annual Calcs'!H107 -> 1798.111237 | W36: =IF(V$38=0,0,V36/V$38) -> 0.8499994372 | X36: ='Annual Calcs'!L107 -> 3788.417897 | Y36: =IF(X36=0,0,V36/X36) -> 0.4746338143 | Z36: =V36*(1-PAYT_SourceReduction) -> 1690.224562 | AA36: =IF(Z$38=0,0,Z36/Z$38) -> 0.8499994372 | AB36: =X36*(1-PAYT_SourceReduction) -> 3561.112823 | AC36: =IF(AB36=0,0,Z36/AB36) -> 0.4746338143 | AD36: =AB36/SUM(AB$36:AB$37) -> 0.5007994307 | AE36: =AD36*$V$29 -> 519.2892985 | AF36: =AE36+Z36 -> 2209.513861 | AG36: =IF(AB36=0,"",AF36/AB36) -> 0.6204560121 | AH36: =IF(AG36>1,1,AG36) -> 0.6204560121 | AI36: =AH36*AB36 -> 2209.513861 | AJ36: =AF36-AI36 -> 0 | AK36: =IF(AH36<>1,0,AB36) -> 0 | AL36: =IF(AH36<>1,AB36,0)/($AB$38-$AK$38) -> 0.4092064717 | AM36: =AI36+AL36*$AJ$38 -> 2209.513861 | AN36: =IF(AB36=0,"",AM36/AB36) -> 0.6204560121 | AO36: =IF(AM36>AB36,AB36,AM36) -> 2209.513861 | AP36: =IF(AB36=0,0,AO36/AB36) -> 0.6204560121 | AQ36: =AM36-AO36 -> 0 | AR36: =AK36+IF(AQ36=0,0,AB36) -> 0 | AS36: =IF(AP36<>1,AB36,0)/($AB$38-$AR$38) -> 0.4092064717 | AT36: =AO36+AS36*$AQ$38 -> 2209.513861 | AU36: =IF(AB36=0,0,AT36/AB36) -> 0.6204560121 | AV36: =IF(ISERROR(IF(AU36>1,TRUE,FALSE)),TRUE,IF(AU36>1,TRUE,FALSE)) -> FALSE | AW36: =AT36-'Annual Calcs'!V107 -> 0
U37: Other | V37: ='Annual Calcs'!H108 -> 232.698149 | W37: =IF(V$38=0,0,V37/V$38) -> 0.1100005893 | X37: ='Annual Calcs'!L108 -> 4618.06321 | Y37: =IF(X37=0,0,V37/X37) -> 0.0503886886 | Z37: =V37*(1-PAYT_SourceReduction) -> 218.7362601 | AA37: =IF(Z$38=0,0,Z37/Z$38) -> 0.1100005893 | AB37: =X37*(1-PAYT_SourceReduction)-IF(ISERROR(AT21),0,AT21) -> 3549.743549 | AC37: =IF(AB37=0,0,Z37/AB37) -> 0.06162029935 | AD37: =AB37/SUM(AB$36:AB$37) -> 0.4992005693 | AE37: =AD37*$V$29 -> 517.6314059 | AF37: =AE37+Z37 -> 736.367666 | AG37: =IF(AB37=0,"",AF37/AB37) -> 0.2074424972 | AH37: =IF(AG37>1,1,AG37) -> 0.2074424972 | AI37: =AH37*AB37 -> 736.367666 | AJ37: =AF37-AI37 -> 0 | AK37: =IF(AH37<>1,0,AB37) -> 0 | AL37: =IF(AH37<>1,AB37,0)/($AB$38-$AK$38) -> 0.4079000316 | AM37: =AI37+AL37*$AJ$38 -> 736.367666 | AN37: =IF(AB37=0,"",AM37/AB37) -> 0.2074424972 | AO37: =IF(AM37>AB37,AB37,AM37) -> 736.367666 | AP37: =IF(AB37=0,0,AO37/AB37) -> 0.2074424972 | AQ37: =AM37-AO37 -> 0 | AR37: =AK37+IF(AQ37=0,0,AB37) -> 0 | AS37: =IF(AP37<>1,AB37,0)/($AB$38-$AR$38) -> 0.4079000316 | AT37: =AO37+AS37*$AQ$38 -> 736.367666 | AU37: =IF(AB37=0,0,AT37/AB37) -> 0.2074424972 | AV37: =IF(ISERROR(IF(AU37>1,TRUE,FALSE)),TRUE,IF(AU37>1,TRUE,FALSE)) -> FALSE | AW37: =AT37-'Annual Calcs'!V108 -> 72.04028884
U38: Total | V38: ='Annual Calcs'!H109 -> 2115.426385 | W38: =IF(V$38=0,0,V38/V$38) -> 1 | X38: =SUM(X35:X37) -> 10099.70212 | Y38: =IF(X38=0,0,V38/X38) -> 0.2094543344 | Z38: =V38*(1-PAYT_SourceReduction) -> 1988.500802 | AA38: =IF(Z$38=0,0,Z38/Z$38) -> 1 | AB38: =SUM(AB35:AB37) -> 8702.484123 | AC38: =IF(AB38=0,0,Z38/AB38) -> 0.2284980672 | AD38: =AB38/AB$38 -> 1 | AE38: =SUM(AE35:AE37) -> 1036.920704 | AF38: =SUM(AF35:AF37) -> 3025.421506 | AG38: =IF(AB38=0,"",AF38/AB38) -> 0.3476503333 | AH38: =IF(AG38>1,1,AG38) -> 0.3476503333 | AI38: =SUM(AI35:AI37) -> 3025.421506 | AJ38: =SUM(AJ35:AJ37) -> 0 | AK38: =SUM(AK35:AK37) -> 0 | AL38: =SUM(AL35:AL37) -> 1 | AM38: =SUM(AM35:AM37) -> 3025.421506 | AN38: =IF(AB38=0,"",AM38/AB38) -> 0.3476503333 | AO38: =SUM(AO35:AO37) -> 3025.421506 | AP38: =IF(AB38=0,0,AO38/AB38) -> 0.3476503333 | AQ38: =SUM(AQ35:AQ37) -> 0 | AR38: =SUM(AR35:AR37) -> 0 | AS38: =SUM(AS35:AS37) -> 1 | AT38: =SUM(AT35:AT37) -> 3025.421506 | AU38: =IF(AB38=0,0,AT38/AB38) -> 0.3476503333 | AV38: =IF(ISERROR(IF(AU38>1,TRUE,FALSE)),TRUE,IF(AU38>1,TRUE,FALSE)) -> FALSE | AW38: =AT38-'Annual Calcs'!V109 -> -166.7038739
U40: QA: | V40: =V38-SUM(V35:V37) -> 0 | W40: =W38-SUM(W35:W37) -> 0 | X40: =X38-SUM(X35:X37) -> 0 | Y40: =Y38-SUM(Y35:Y37) -> -0.3655421523 | AD40: =AD38-SUM(AD35:AD37) -> -0.1828934968 | AE40: 0 | AF40: 0 | AG40: -0.5302221597 | AH40: -0.5302221597 | AI40: 0 | AJ40: 0 | AK40: 0 | AL40: 0 | AM40: 0 | AN40: -0.5302221597 | AO40: 0 | AP40: -0.5302221597 | AQ40: 0 | AR40: 0 | AS40: 0 | AT40: 0 | AU40: -0.5302221597
AE42: =$V$29*AA35 -> 41.47680071 | AF42: =AE42+Z35 -> 121.0167801 | AG42: =AF42/AB35 -> 0.07603334384
AE43: =$V$29*AA36 -> 881.3820152 | AF43: =AE43+Z36 -> 2571.606577 | AG43: =AF43/AB36 -> 0.7221356653

Sheet Recycling (Other)
T1: HIDE | U1: HIDE | V1: HIDE | W1: HIDE | X1: HIDE | Y1: HIDE | Z1: HIDE | AA1: HIDE | AB1: HIDE | AC1: HIDE | AD1: HIDE
B3: Implement Other Recycling Measure (for Single-Family Homes)*
B4: Enter information into the yellow cells or skip to the next measure
C6: This tab features a social marketing / media recycling campaign, however, it may be used for other measures such as switching to single-stream recycling, expanding recycling services to additional residences, replacing bins with carts, etc.
C10: *This tab is intended to address measures other than Pay-As-You-Throw (PAYT).
C11: Note: Use backspace, not the space bar, to clear values. Clearing cell contents by using the space bar will create calculation errors. | W11: =W31 -> 7179.914724 | X11: Current Tons recycled, after PAYT
C12: Effects of Implementing (non-PAYT) Measures to Increase Single-Family Home Recycling | W12: =PAYT!AB22 -> 15585.67351 | X12: Total Tons generated after PAYT for recyclable materials
W13: =PAYT!W8 -> 20738.41409 | X13: Total Tons generated after PAYT for all materials
D14: Implement a social marketing/media campaign OR implement other measure.1 | W14: =IF(W12=0,0,W11/W12) -> 0.4606740105 | X14: Current recycling rate after PAYT for recyclable materials
W15: =W11/W13 -> 0.3462132974 | X15: Current recycling rate after PAYT for all materials
W16: =AC31 -> 1246.853881 | X16: <- Total Additional Tons Recycled Necessary to meet the overall target diversion rate
W17: =IF(W12=0,0,AB31/W12) -> 0.5406740105 | X17: New recycling rate after SF Recycling for recyclable materials
U18: Any rate >100%? | V18: =IF(OR(T25,T26,T27,T28,T29,T30),TRUE) -> FALSE | W18: =AB31/W13 -> 0.4063362111 | X18: New recycling rate after SF Recycling for all materials
D19: Enter an annual increase in recycling:2 | H19: 0.08 | N19: ="Assumptions #" & TEXT(Assumptions!$C$41,"0") & " and #" & TEXT(Assumptions!$C$43,"0") -> Assumptions #25 and #26 | W19: =W17-W14 -> 0.08 | X19: Increase is recycling rate after SF Recycling for all materials
W20: 1st Year of Implementation
W21: After PAYT
D22: Alternatively, enter estimates projecting an annual increase in recycling by material type: | W22: tons recycled | X22: % breakdown | Y22: tons generated | Z22: % recycled | AA22: Target % Recycled | AB22: Target tons recycled | AC22: New tons recycled
F24: Recycling Rate w/o this measure3 | H24: Increase in Recycling* | J24: Target Recycling Rate | AD24: should be zero
E25: Metal | F25: =PAYT!AU16 -> 0.6763841366 | H25: 0.08 | J25: =F25+H25 -> 0.7563841366 | T25: =IF(J25>1,TRUE,FALSE) -> FALSE | V25: Metal | W25: =PAYT!AT16 -> 818.1172589 | X25: =IF(W$31=0,0,W25/W$31) -> 0.1139452612 | Y25: =PAYT!AB16 -> 1209.545308 | Z25: =IF(Y25=0,0,W25/Y25) -> 0.6763841366 | AA25: =J25 -> 0.7563841366 | AB25: =AA25*Y25 -> 914.8808835 | AC25: =AB25-W25 -> 96.76362464 | AD25: =AB25-'Annual Calcs'!T101 -> 0
E26: Glass | F26: =PAYT!AU17 -> 0.544857923 | H26: 0.08 | J26: 0.624857923 | T26: FALSE | V26: Glass | W26: =PAYT!AT17 -> 338.3867829 | X26: 0.04712963815 | Y26: =PAYT!AB17 -> 621.0550835 | Z26: 0.544857923 | AA26: 0.624857923 | AB26: 388.0711895 | AC26: 49.68440668 | AD26: =AB26-'Annual Calcs'!T102 -> 0
E27: Plastic | F27: =PAYT!AU18 -> 0.2382869612 | H27: 0.08 | J27: 0.3182869612 | T27: FALSE | V27: Plastic | W27: =PAYT!AT18 -> 413.6380325 | X27: 0.05761043807 | Y27: =PAYT!AB18 -> 1735.88194 | Z27: 0.2382869612 | AA27: 0.3182869612 | AB27: 552.5085878 | AC27: 138.8705552 | AD27: =AB27-'Annual Calcs'!T103 -> 0
E28: Paper | F28: =PAYT!AU19 -> 0.6741090946 | H28: 0.08 | J28: 0.7541090946 | T28: FALSE | V28: Paper | W28: =PAYT!AT19 -> 4513.63827 | X28: 0.628647894 | Y28: =PAYT!AB19 -> 6695.708909 | Z28: 0.6741090946 | AA28: 0.7541090946 | AB28: 5049.294983 | AC28: 535.6567127 | AD28: =AB28-'Annual Calcs'!T104 -> 0
E29: Wood | F29: =PAYT!AU20 -> 0.3103283704 | H29: 0.08 | J29: 0.3903283704 | T29: FALSE | V29: Wood | W29: =PAYT!AT20 -> 304.8985103 | X29: 0.04246547794 | Y29: =PAYT!AB20 -> 982.5028562 | Z29: 0.3103283704 | AA29: 0.3903283704 | AB29: 383.4987388 | AC29: 78.6002285 | AD29: =AB29-'Annual Calcs'!T105 -> 0
E30: Other | F30: =PAYT!AU21 -> 0.1822712786 | H30: 0.08 | J30: 0.2622712786 | T30: FALSE | V30: Other | W30: =PAYT!AT21 -> 791.235869 | X30: 0.1102012906 | Y30: =PAYT!AB21 -> 4340.979418 | Z30: 0.1822712786 | AA30: 0.2622712786 | AB30: 1138.514222 | AC30: 347.2783534 | AD30: =AB30-'Annual Calcs'!T108 -> 0
F31: WARNING: A value that you entered either exceeds 100% or causes the diversion rate to exceed 100% of waste generated. Please revise your entries. | V31: Total | W31: =PAYT!AT22 -> 7179.914724 | X31: 1 | Y31: =SUM(Y25:Y30) -> 15585.67351 | Z31: 0.4606740105 | AA31: =AB31/Y31 -> 0.5406740105 | AB31: =SUM(AB25:AB30) -> 8426.768605 | AC31: =SUM(AC25:AC30) -> 1246.853881 | AD31: =AB31-'Annual Calcs'!T109 -> 0
V32: QA: | W32: =W31-SUM(W25:W30) -> 0 | X32: =X31-SUM(X25:X30) -> 0 | Y32: =Y31-SUM(Y25:Y30) -> 0
E33: 1 Note: calculated results assume new tons recycled. In estimating the net effect of programs that add or expand curbside collection, include a qualifier in the estimate to avoid double-counting material already recycled from an existing drop-off program.
E35: 2 The overall percentage increase in recycling is applied equally across material types, but may be adjusted.
E36: 3 These values are calculated after implementation of the PAYT measure (if applicable).

Sheet Food Waste Collection
U1: HIDE | V1: HIDE | W1: HIDE | X1: HIDE | Y1: HIDE | Z1: HIDE | AA1: HIDE | AB1: HIDE | AC1: HIDE | AD1: HIDE | AE1: HIDE | AF1: HIDE
B3: Institute Curbside Food Waste Collection (for Single-Family Homes)
B4: Enter information into the yellow cell or skip to the next measure
U5: Error? | V5: =IF($J$19>1,TRUE) -> FALSE
C6: Food waste can be collected separately or in combination with existing yard waste collection. Note: only Food Waste, not yard waste, is addressed in this tab's calculations. | W6: After PAYT Source Reduction and Composting | Y6: =SUM(Y11:Y13)-Y14 -> 0 | AA6: =SUM(AA11:AA13)-AA14 -> 0 | AC6: =SUM(AC11:AC13)-AC14 -> 0
C8: Note: Use backspace, not the space bar, to clear values. Clearing cell contents by using the space bar will create calculation errors. | W8: 1st Year of Implementation - After PAYT Source Reduction and Composting
C9: Effects of Implementing a Curbside Food Waste Collection Program for Single-Family Homes | W9: tons composted | X9: % breakdown | Y9: tons generated (other waste: removes tonnage already recycled) | Z9: % composted | AA9: tons composted | AB9: % breakdown | AC9: tons generated | AD9: % composted | AE9: QA
AE10: should be zero
V11: Food | W11: =PAYT!AT35 -> 79.5399794 | X11: =IF(W$14=0,0,W11/W$14) -> 0.02629054472 | Y11: =PAYT!AB35 -> 1591.627752 | Z11: =IF(Y11=0,0,W11/Y11) -> 0.04997398375 | AA11: =AC11*AD11 -> 318.2841422 | AB11: =IF(AA$14=0,0,AA11/AA$14) -> 0.09750857476 | AC11: =Y11 -> 1591.627752 | AD11: =Z11+FoodScrapsCollection_Voluntary_RateIncrease+FoodScrapsCollection_Mandatory_RateIncrease -> 0.1999739838 | AE11: =AA11-'Annual Calcs'!V106 -> 0 | AF11: ='Annual Calcs'!V106 -> 318.2841422
C12: Select one of two options below. | V12: Yard | W12: =PAYT!AT36 -> 2209.513861 | X12: =IF(W$14=0,0,W12/W$14) -> 0.7303160423 | Y12: =PAYT!AB36 -> 3561.112823 | Z12: =IF(Y12=0,0,W12/Y12) -> 0.6204560121 | AA12: =AC12*AD12 -> 2209.513861 | AB12: =IF(AA$14=0,0,AA12/AA$14) -> 0.6769000366 | AC12: =Y12 -> 3561.112823 | AD12: =Z12 -> 0.6204560121 | AE12: =AA12-'Annual Calcs'!V107 -> 0 | AF12: ='Annual Calcs'!V107 -> 2209.513861
V13: Other | W13: =PAYT!AT37 -> 736.367666 | X13: =IF(W$14=0,0,W13/W$14) -> 0.243393413 | Y13: =PAYT!AB37 -> 3549.743549 | Z13: =IF(Y13=0,0,W13/Y13) -> 0.2074424972 | AA13: =AC13*AD13 -> 736.367666 | AB13: =IF(AA$14=0,0,AA13/AA$14) -> 0.2255913886 | AC13: =Y13 -> 3549.743549 | AD13: =Z13 -> 0.2074424972 | AE13: =AA13-'Annual Calcs'!V108 -> 72.04028884 | AF13: ='Annual Calcs'!V108 -> 664.3273772
V14: Total | W14: =SUM(W11:W13) -> 3025.421506 | X14: =IF(W$14=0,0,W14/W$14) -> 1 | Y14: =SUM(Y11:Y13) -> 8702.484123 | Z14: =IF(Y14=0,0,W14/Y14) -> 0.3476503333 | AA14: =SUM(AA11:AA13) -> 3264.165669 | AB14: =IF(AA$14=0,0,AA14/AA$14) -> 1 | AC14: =Y14 -> 8702.484123 | AD14: =IF(AC14=0,0,AA14/AC14) -> 0.3750843578 | AE14: =AA14-'Annual Calcs'!V109 -> 72.04028884 | AF14: ='Annual Calcs'!V109 -> 3192.12538
Y15: ="For cell " & CELL("address",Y13) & ":" -> For cell $Y$13:
Y16: =PAYT!X37 -> 4618.06321 | Z16: original value
I17: Percentage of single-family home food waste composted without this program | J17: =IF(ISERROR(Z11),0,Z11) -> 0.04997398375 | Y17: =PAYT!AB21 -> 4340.979418 | Z17: cascadia suggested value
I18: Annual increase1 in food waste composting due to implementation of curbside collection | J18: 0.15 | Q18: ="Assumption #" & TEXT(Assumptions!$C$46,"0") & " and #" & TEXT(Assumptions!$C$50,"0") -> Assumption #27 and #29 | Y18: =PAYT!AB37 -> 3549.743549 | Z18: alternative value: refers to "other" waste after PAYT source reduction and recycling (some of the "other" waste is recycled, and some will be composted).
I19: Percentage of food waste composted after implementation of curbside composting | J19: =SUM(J17:J18) -> 0.1999739838
J20: =IF(J19>1,"WARNING: The value you have entered produces a value that is greater than 100%. Please revise so that this value is less than 100%.","") -> 
H22: 1 For example, if your food waste composting rate increases from 2% to 7%, please enter 5%.
I28: Percentage of single-family home food waste composted without this program1 | J28: =IF(ISERROR(Z11),0,Z11) -> 0.04997398375
I29: Annual increase2 in food waste composting due to implementation of curbside collection | Q29: ="Assumptions #" & TEXT(Assumptions!$C$47,"0") & " and #" & TEXT(Assumptions!$C$50,"0") -> Assumptions #28 and #29
I30: Percentage of food waste composted after implementation of curbside composting | J30: =SUM(J28:J29) -> 0.04997398375
J31: =IF(J30>1,"WARNING: The value you have entered produces a value that is greater than 100%. Please revise so that this value is less than 100%.","") -> 
H33: 1 This value is calculated after the implementation of the PAYT measure.
H34: 2 For example, if your food waste composting rate increases from 2% to 7%, enter 5%.

Sheet Multi-Family Recycling
U1: HIDE | V1: HIDE | W1: HIDE | X1: HIDE | Y1: HIDE | Z1: HIDE | AA1: HIDE | AB1: HIDE | AC1: HIDE | AD1: HIDE | AE1: HIDE | AF1: HIDE | AG1: HIDE | AH1: HIDE | AI1: HIDE | AJ1: HIDE | AK1: HIDE | AL1: HIDE | AM1: HIDE | AN1: HIDE | AO1: HIDE | AP1: HIDE | AQ1: HIDE | AR1: HIDE | AS1: HIDE | AT1: HIDE | AU1: HIDE | AV1: HIDE | AW1: HIDE | AX1: HIDE | AY1: HIDE | AZ1: HIDE | BA1: HIDE | BB1: HIDE | BC1: HIDE | BG1: HIDE | BH1: HIDE | BI1: HIDE
B3: Increase Recycling at Multi-Family Homes
B4: Enter information into the yellow cell or skip to the next measure
U5: Error? | V5: =IF(OR(U16,BH20,BH21,BH22,BH23,BH24,BH25,BH26),TRUE) -> FALSE
C6: Recycling services can be expanded to multi-family homes (i.e. apartment complexes and condominiums) or communities can take steps to increase the recycling rate of multi-family home units that already have collection service. | V6: ="Based on your entries for residential waste characterization, recylcable materials for Multifamily homes represent " & TEXT(W13,"0%") & " of the total waste stream. Therefore, your maximum reycling rate is approximately " & TEXT(W13,"0%") & "." -> Based on your entries for residential waste characterization, recylcable materials for Multifamily homes represent 68% of the total waste stream. Therefore, your maximum reycling rate is approximately 68%.
W8: =V26 -> 195.2931616 | X8: Current Tons recycled
C9: Note: Use backspace, not the space bar, to clear values. Clearing cell contents by using the space bar will create calculation errors. | W9: ='Annual Calcs'!L121 -> 2975.440731 | X9: Total Tons generated (includes compostable materials)
C10: Effects of Increasing Recycling at Multi-Family Homes (MFH)1 | W10: =IF(W9=0,0,W8/W9) -> 0.06563503671 | X10: Current recycling rate
W11: =W9*MultifamRecy_RateIncrease -> 0 | X11: <- Total Additional Tons Recycled Necessary to meet the overall target diversion rate
I12: Percentage of waste from multi-family homes currently recycled | J12: =IF(ISERROR(MFH_recycled/MFH_total),"",MFH_recycled/MFH_total) -> 0.06563501881 | W12: =Y26 -> 2232.083578 | X12: Current Tons recyclable
I13: Annual increase* in multi-family home recycling due to implementation of this measure | W13: =IF(W9=0,0,(W12-W8)/W9) -> 0.6845340238 | X13: Maximum additional recycling rate (includes compostable materials)
I14: Percentage of multi-family home waste recycled after implementation of this measure | J14: =SUM(J12:J13) -> 0.06563501881 | W14: =IF(W9=0,0,W12/W9) -> 0.7501690605 | X14: Maximum overall recycling rate (includes compostable materials)
L15: ="Assumptions #" & TEXT(Assumptions!$C$53,"0") & " and #" & TEXT(Assumptions!$C$56,"0") -> Assumptions #30 and #31 | V15: 1st Year of Implementation
C16: ="* For example, if your recycling rate increases from 5% to 10%, enter 5%." -> * For example, if your recycling rate increases from 5% to 10%, enter 5%. | J16: ="WARNING: based on your entries for waste stream characterization, the maximum % increase in recycling for Multi-Family Homes possible is " & TEXT(W13,"0.0%") & ", as some material in the waste stream is compostable, not recyclable. The value you entered causes the total diversion rate (composting + recycling) to exceed 100% of total waste generated. Please enter a number smaller than " & TEXT(W13,"0.0%") & "." -> WARNING: based on your entries for waste stream characterization, the maximum % increase in recycling for Multi-Family Homes possible is 68.5%, as some material in the waste stream is compostable, not recyclable. The value you entered causes the total diversion rate (composting + recycling) to exceed 100% of total waste generated. Please enter a number smaller than 68.5%. | U16: =IF(J14>1,TRUE,FALSE) -> FALSE | V16: BAU | AA16: After Multi-Family Recycling | AC16: Step 1 | AL16: Step 2 | AS16: Step 3 | AZ16: Step 4
V17: tons recycled | W17: % breakdown | X17: tons generated | Y17: tons generated (other waste: removes tonnage already composted) | Z17: % recycled | AA17: % of Total Waste Stream | AB17: Additional Tons to Recycle | AC17: New Tons Recycled 1 | AD17: New Recycling Rate | AE17: New Recycling Rate (doesn’t allow >100%) | AF17: New Tons Recycled 2 | AG17: Additional Tons Recycled to Distribute | AH17: Tons to Eliminate from Total Waste Stream | AI17: New % of Recycled Stream with Waste Eliminated | AJ17: New Tons Recycled 3 | AK17: New Target Recycling Rate | AL17: New Tons Recycled 4 | AM17: New Target Recycling Rate (doesn’t allow >100%) | AN17: Additional Tons Recycled to Distribute | AO17: Tons to Eliminate from Total Waste Stream | AP17: New % of Recycled Stream with Waste Eliminated | AQ17: New Tons Recycled 5 | AR17: New Target Recycling Rate | AS17: New Tons Recycled 6 | AT17: New Target Recycling Rate | AU17: Additional Tons Recycled to Distribute | AV17: Tons to Eliminate from Total Waste Stream | AW17: New % of Recycled Stream with Waste Eliminated | AX17: New Tons Recycled 7 | AY17: New Target Recycling Rate | AZ17: New Tons Recycled 8 | BA17: New Target Recycling Rate | BB17: Additional Tons Recycled to Distribute | BC17: Tons to Eliminate from Total Waste Stream | BD17: New % of Recycled Stream with Waste Eliminated | BE17: New Tons Recycled 9 | BF17: New Target Recycling Rate | BG17: New Target Recycling Rate
BI18: QA
C19: 1 Note that the default for this measure is a post-implementation target (between 15-40%), rather than an annual recycling increase. | BI19: should be zero
U20: Metal | V20: ='Annual Calcs'!F113 -> 23.7404526 | W20: =IF(V$26=0,0,V20/V$26) -> 0.1215631536 | X20: ='Annual Calcs'!L113 -> 137.6984983 | Y20: =X20 -> 137.6984983 | Z20: =IF(Y20=0,0,V20/Y20) -> 0.1724089433 | AA20: =Y20/Y$26 -> 0.06169056559 | AB20: =AA20*$W$11 -> 0 | AC20: =AB20+V20 -> 23.7404526 | AD20: =IF(Y20=0,"",AC20/Y20) -> 0.1724089433 | AE20: =IF(AD20>1,1,AD20) -> 0.1724089433 | AF20: =AE20*Y20 -> 23.7404526 | AG20: =AC20-AF20 -> 0 | AH20: =IF(AE20<>1,0,Y20) -> 0 | AI20: =IF(AE20<>1,Y20,0)/($Y$26-$AH$26) -> 0.06169056559 | AJ20: =AF20+AI20*$AG$26 -> 23.7404526 | AK20: =IF(Y20=0,"",AJ20/Y20) -> 0.1724089433 | AL20: =IF(AJ20>Y20,Y20,AJ20) -> 23.7404526 | AM20: =IF(Y20=0,0,AL20/Y20) -> 0.1724089433 | AN20: =AJ20-AL20 -> 0 | AO20: =AH20+IF(AN20=0,0,Y20) -> 0 | AP20: =IF(AM20<>1,Y20,0)/($Y$26-$AO$26) -> 0.06169056559 | AQ20: =AL20+AP20*$AN$26 -> 23.7404526 | AR20: =IF($Y20=0,"",AQ20/$Y20) -> 0.1724089433 | AS20: =IF(AQ20>$Y20,$Y20,AQ20) -> 23.7404526 | AT20: =IF($Y20=0,0,AS20/$Y20) -> 0.1724089433 | AU20: =AQ20-AS20 -> 0 | AV20: =AO20+IF(AU20=0,0,$Y20) -> 0 | AW20: =IF(AT20<>1,$Y20,0)/($Y$26-AV$26) -> 0.06169056559 | AX20: =AS20+AW20*AU$26 -> 23.7404526 | AY20: =IF($Y20=0,"",AX20/$Y20) -> 0.1724089433 | AZ20: =IF(AX20>$Y20,$Y20,AX20) -> 23.7404526 | BA20: =IF($Y20=0,0,AZ20/$Y20) -> 0.1724089433 | BB20: =AX20-AZ20 -> 0 | BC20: =AV20+IF(BB20=0,0,$Y20) -> 0 | BD20: =IF(BA20<>1,$Y20,0)/($Y$26-BC$26) -> 0.06169056559 | BE20: =AZ20+BD20*BB$26 -> 23.7404526 | BF20: =IF($Y20=0,0,BE20/$Y20) -> 0.1724089433 | BG20: =BF20 -> 0.1724089433 | BH20: =IF(ISERROR(IF(BG20>1,TRUE,FALSE)),TRUE,IF(BG20>1,TRUE,FALSE)) -> FALSE | BI20: =BE20-'Annual Calcs'!T113 -> 0
U21: Glass | V21: ='Annual Calcs'!F114 -> 9.502214191 | W21: =IF(V$26=0,0,V21/V$26) -> 0.04865615423 | X21: ='Annual Calcs'!L114 -> 87.09067087 | Y21: =X21 -> 87.09067087 | Z21: 0.109107142 | AA21: =Y21/Y$26 -> 0.03901765675 | AB21: 0 | AC21: 9.502214191 | AD21: 0.109107142 | AE21: 0.109107142 | AF21: 9.502214191 | AG21: 0 | AH21: 0 | AI21: 0.03901765675 | AJ21: 9.502214191 | AK21: =IF(Y21=0,"",AJ21/Y21) -> 0.109107142 | AL21: 9.502214191 | AM21: =IF(Y21=0,0,AL21/Y21) -> 0.109107142 | AN21: 0 | AO21: 0 | AP21: 0.03901765675 | AQ21: 9.502214191 | AR21: 0.109107142 | AS21: 9.502214191 | AT21: =IF($Y21=0,0,AS21/$Y21) -> 0.109107142 | AU21: 0 | AV21: 0 | AW21: 0.03901765675 | AX21: 9.502214191 | AY21: =IF($Y21=0,"",AX21/$Y21) -> 0.109107142 | AZ21: 9.502214191 | BA21: =IF($Y21=0,0,AZ21/$Y21) -> 0.109107142 | BB21: 0 | BC21: 0 | BD21: 0.03901765675 | BE21: 9.502214191 | BF21: =IF($Y21=0,0,BE21/$Y21) -> 0.109107142 | BG21: =BF21 -> 0.109107142 | BH21: =IF(ISERROR(IF(BG21>1,TRUE,FALSE)),TRUE,IF(BG21>1,TRUE,FALSE)) -> FALSE | BI21: =BE21-'Annual Calcs'!T114 -> 0
U22: Plastic | V22: ='Annual Calcs'!F115 -> 9.049727801 | W22: 0.0463391945 | X22: ='Annual Calcs'!L115 -> 324.5309004 | Y22: =X22 -> 324.5309004 | Z22: 0.02788556587 | AA22: 0.1453937046 | AB22: 0 | AC22: 9.049727801 | AD22: 0.02788556587 | AE22: 0.02788556587 | AF22: =AE22*Y22 -> 9.049727801 | AG22: 0 | AH22: 0 | AI22: 0.1453937046 | AJ22: 9.049727801 | AK22: 0.02788556587 | AL22: 9.049727801 | AM22: 0.02788556587 | AN22: 0 | AO22: 0 | AP22: 0.1453937046 | AQ22: 9.049727801 | AR22: 0.02788556587 | AS22: 9.049727801 | AT22: 0.02788556587 | AU22: 0 | AV22: 0 | AW22: 0.1453937046 | AX22: 9.049727801 | AY22: 0.02788556587 | AZ22: 9.049727801 | BA22: 0.02788556587 | BB22: 0 | BC22: 0 | BD22: 0.1453937046 | BE22: 9.049727801 | BF22: 0.02788556587 | BG22: 0.02788556587 | BH22: FALSE | BI22: =BE22-'Annual Calcs'!T115 -> 0
U23: Paper | V23: ='Annual Calcs'!F116 -> 130.9193955 | W23: 0.6703736805 | X23: ='Annual Calcs'!L116 -> 717.6036815 | Y23: =X23 -> 717.6036815 | Z23: 0.1824396932 | AA23: 0.3214949873 | AB23: 0 | AC23: 130.9193955 | AD23: 0.1824396932 | AE23: 0.1824396932 | AF23: 130.9193955 | AG23: 0 | AH23: 0 | AI23: 0.3214949873 | AJ23: 130.9193955 | AK23: 0.1824396932 | AL23: 130.9193955 | AM23: 0.1824396932 | AN23: 0 | AO23: 0 | AP23: 0.3214949873 | AQ23: 130.9193955 | AR23: 0.1824396932 | AS23: 130.9193955 | AT23: 0.1824396932 | AU23: 0 | AV23: 0 | AW23: 0.3214949873 | AX23: 130.9193955 | AY23: 0.1824396932 | AZ23: 130.9193955 | BA23: 0.1824396932 | BB23: 0 | BC23: 0 | BD23: 0.3214949873 | BE23: 130.9193955 | BF23: 0.1824396932 | BG23: 0.1824396932 | BH23: FALSE | BI23: =BE23-'Annual Calcs'!T116 -> 0
U24: Wood | V24: ='Annual Calcs'!F117 -> 7.450942556 | W24: 0.03815260348 | X24: ='Annual Calcs'!L117 -> 170.7262863 | Y24: =X24 -> 170.7262863 | Z24: 0.0436426207 | AA24: 0.07648740755 | AB24: 0 | AC24: 7.450942556 | AD24: 0.0436426207 | AE24: 0.0436426207 | AF24: 7.450942556 | AG24: 0 | AH24: 0 | AI24: 0.07648740755 | AJ24: 7.450942556 | AK24: 0.0436426207 | AL24: 7.450942556 | AM24: 0.0436426207 | AN24: 0 | AO24: 0 | AP24: 0.07648740755 | AQ24: 7.450942556 | AR24: 0.0436426207 | AS24: 7.450942556 | AT24: 0.0436426207 | AU24: 0 | AV24: 0 | AW24: 0.07648740755 | AX24: 7.450942556 | AY24: 0.0436426207 | AZ24: 7.450942556 | BA24: 0.0436426207 | BB24: 0 | BC24: 0 | BD24: 0.07648740755 | BE24: 7.450942556 | BF24: 0.0436426207 | BG24: 0.0436426207 | BH24: FALSE | BI24: =BE24-'Annual Calcs'!T117 -> 0
U25: Other | V25: ='Annual Calcs'!F120 -> 14.63042894 | W25: 0.0749152137 | X25: ='Annual Calcs'!L120 -> 795.838157 | Y25: =X25-'Annual Calcs'!H120 -> 794.4335403 | Z25: 0.0184161773 | AA25: 0.3559156782 | AB25: 0 | AC25: 14.63042894 | AD25: 0.0184161773 | AE25: 0.0184161773 | AF25: 14.63042894 | AG25: 0 | AH25: 0 | AI25: 0.3559156782 | AJ25: 14.63042894 | AK25: 0.0184161773 | AL25: 14.63042894 | AM25: 0.0184161773 | AN25: 0 | AO25: 0 | AP25: 0.3559156782 | AQ25: 14.63042894 | AR25: 0.0184161773 | AS25: 14.63042894 | AT25: 0.0184161773 | AU25: 0 | AV25: 0 | AW25: 0.3559156782 | AX25: 14.63042894 | AY25: 0.0184161773 | AZ25: 14.63042894 | BA25: 0.0184161773 | BB25: 0 | BC25: 0 | BD25: 0.3559156782 | BE25: 14.63042894 | BF25: 0.0184161773 | BG25: 0.0184161773 | BH25: FALSE | BI25: =BE25-'Annual Calcs'!T120 -> -0.02586767033
U26: Total | V26: ='Annual Calcs'!F121 -> 195.2931616 | W26: 1 | X26: =SUM(X20:X25) -> 2233.488194 | Y26: =SUM(Y20:Y25) -> 2232.083578 | Z26: 0.08749365998 | AA26: 1 | AB26: =SUM(AB20:AB25) -> 0 | AC26: =SUM(AC20:AC25) -> 195.2931616 | AD26: 0.08749365998 | AE26: 0.08749365998 | AF26: =SUM(AF20:AF25) -> 195.2931616 | AG26: =SUM(AG20:AG25) -> 0 | AH26: =SUM(AH20:AH25) -> 0 | AI26: =SUM(AI20:AI25) -> 1 | AJ26: =SUM(AJ20:AJ25) -> 195.2931616 | AK26: 0.08749365998 | AL26: =SUM(AL20:AL25) -> 195.2931616 | AM26: 0.08749365998 | AN26: =SUM(AN20:AN25) -> 0 | AO26: =SUM(AO20:AO25) -> 0 | AP26: =SUM(AP20:AP25) -> 1 | AQ26: =SUM(AQ20:AQ25) -> 195.2931616 | AR26: 0.08749365998 | AS26: =SUM(AS20:AS25) -> 195.2931616 | AT26: 0.08749365998 | AU26: =SUM(AU20:AU25) -> 0 | AV26: =SUM(AV20:AV25) -> 0 | AW26: =SUM(AW20:AW25) -> 1 | AX26: =SUM(AX20:AX25) -> 195.2931616 | AY26: 0.08749365998 | AZ26: =SUM(AZ20:AZ25) -> 195.2931616 | BA26: 0.08749365998 | BB26: =SUM(BB20:BB25) -> 0 | BC26: =SUM(BC20:BC25) -> 0 | BD26: =SUM(BD20:BD25) -> 1 | BE26: =SUM(BE20:BE25) -> 195.2931616 | BF26: 0.08749365998 | BG26: 0.08749365998 | BH26: FALSE | BI26: =BE26-'Annual Calcs'!T121 -> -0.02586767033
U27: QA: | V27: =V26-SUM(V20:V25) -> 0 | W27: =W26-SUM(W20:W25) -> 0 | Y27: =Y26-SUM(Y20:Y25) -> 0 | AA27: =AA26-SUM(AA20:AA25) -> 0 | AB27: =AB26-SUM(AB20:AB25) -> 0 | AC27: 0 | AD27: -0.4664064824 | AE27: -0.4664064824 | AF27: 0 | AG27: 0 | AH27: 0 | AI27: 0 | AJ27: 0 | AK27: -0.4664064824 | AL27: 0 | AM27: -0.4664064824 | AN27: 0 | AO27: 0 | AP27: 0 | AQ27: 0 | BG27: -0.4664064824
Y29: ='Annual Calcs'!X120 -> 120.2981175 | AA29: ='Annual Calcs'!R120 -> 659.4791263
Y30: ='Annual Calcs'!X890 -> 1205.968423 | AA30: ='Annual Calcs'!R890 -> 6611.167475

Sheet Commercial Diversion
U1: HIDE | V1: HIDE | W1: HIDE | X1: HIDE | Y1: HIDE | Z1: HIDE | AA1: HIDE | AB1: HIDE
B3: Increase Commercial Recycling and/or Composting
B4: Enter information into the yellow cells or skip to the next measure | W4: Any rate >100%? | X4: =IF(OR(X17,X36,X55,X82),TRUE,FALSE) -> FALSE
C6: This tab relates to policies & programs affecting businesses (and institutions if included in commercial sector tonnage). You may select a combination of defaults or use the tables provided to enter recycling and/or composting rate increases from implementing the example measures provided or other measures not listed.
C8: Note: Use backspace, not the space bar, to clear values. Clearing cell contents by using the space bar will create calculation errors.
C9: Effects of Implementing a Policy or Program to Increase Commercial Recycling1
C13: Example Measures
C15: Measure 1: Provide Direct Technical Assistance
H16: ="Assumptions #" & TEXT(Assumptions!$C$60,"0") & " through #" & TEXT(Assumptions!C63,"0") -> Assumptions #32 through #35
W17: Any rate >100%? | X17: =IF(OR(W20,W21,W22,W23,W24,X25,X26,W27,W28),TRUE) -> FALSE
I18: Current Commercial Diversion | K18: Additional Annual Commercial Diversion * | M18: Target Commercial Diversion | O18: =+IF(X17,"User-entered target rates exceeding 100% diversion:","") ->  | Z18: New Diverted Waste (tons)
I19: Recycled | J19: Composted | K19: Recycled | L19: Composted | M19: Recycled | N19: Composted | O19: =+IF(X17,"Recycled","") ->  | P19: =+IF(X17,"Composted","") ->  | U19: Not Blank? | W19: Not Blank AND >100%? | Z19: Recycled | AA19: Composted
H20: Metal | I20: =IF('Waste Characterization-MODEL'!O66=0,0,'Waste Characterization-MODEL'!J66/'Waste Characterization-MODEL'!O66) -> 0.5503428754 | M20: =IF(I20+K20>1,1,I20+K20) -> 0.5503428754 | O20: =IF(I20+K20>1,I20+K20,"") ->  | U20: =IF(M20="",FALSE,TRUE) -> TRUE | W20: =IF(AND(U20,O20>1,O20<>""),TRUE,FALSE) -> FALSE | Z20: =M20*'Waste Characterization-MODEL'!O66 -> 730.0731804
H21: Glass | I21: =IF('Waste Characterization-MODEL'!O67=0,0,'Waste Characterization-MODEL'!J67/'Waste Characterization-MODEL'!O67) -> 0.5403791903 | M21: =IF(I21+K21>1,1,I21+K21) -> 0.5403791903 | O21: =IF(I21+K21>1,I21+K21,"") ->  | U21: =IF(M21="",FALSE,TRUE) -> TRUE | W21: =IF(AND(U21,O21>1,O21<>""),TRUE,FALSE) -> FALSE | Z21: =M21*'Waste Characterization-MODEL'!O67 -> 292.2148054
H22: Plastic | I22: =IF('Waste Characterization-MODEL'!O68=0,0,'Waste Characterization-MODEL'!J68/'Waste Characterization-MODEL'!O68) -> 0.1014044996 | M22: 0.1014044996 | O22: =IF(I22+K22>1,I22+K22,"") ->  | U22: =IF(M22="",FALSE,TRUE) -> TRUE | W22: =IF(AND(U22,O22>1,O22<>""),TRUE,FALSE) -> FALSE | Z22: =M22*'Waste Characterization-MODEL'!O68 -> 278.2998146
H23: Paper | I23: =IF('Waste Characterization-MODEL'!O69=0,0,'Waste Characterization-MODEL'!J69/'Waste Characterization-MODEL'!O69) -> 0.5156001627 | M23: 0.5156001627 | O23: =IF(I23+K23>1,I23+K23,"") ->  | U23: =IF(M23="",FALSE,TRUE) -> TRUE | W23: =IF(AND(U23,O23>1,O23<>""),TRUE,FALSE) -> FALSE | Z23: =M23*'Waste Characterization-MODEL'!O69 -> 4026.070652
H24: Wood | I24: =IF('Waste Characterization-MODEL'!O70=0,0,'Waste Characterization-MODEL'!J70/'Waste Characterization-MODEL'!O70) -> 0.1154798077 | M24: 0.1154798077 | O24: =IF(I24+K24>1,I24+K24,"") ->  | U24: =IF(M24="",FALSE,TRUE) -> TRUE | W24: =IF(AND(U24,O24>1,O24<>""),TRUE,FALSE) -> FALSE | Z24: =M24*'Waste Characterization-MODEL'!O70 -> 229.1335141
B25: HIDE | H25: Food Waste | J25: =IF('Waste Characterization-MODEL'!O71=0,0,'Waste Characterization-MODEL'!L71/'Waste Characterization-MODEL'!O71) -> 0.07256360791 | N25: 0.07256360791 | P25: =IF(J25+L25>1,J25+L25,"") ->  | V25: =IF(N25="",FALSE,TRUE) -> TRUE | X25: =IF(AND(V25,P25>1,P25<>""),TRUE,FALSE) -> FALSE | AA25: =N25*'Waste Characterization-MODEL'!O71 -> 160.9926203
B26: HIDE | H26: Yard Trimmings | J26: =IF('Waste Characterization-MODEL'!O72=0,0,'Waste Characterization-MODEL'!L72/'Waste Characterization-MODEL'!O72) -> 0.8562500889 | N26: 0.8562500889 | P26: =IF(J26+L26>1,J26+L26,"") ->  | V26: =IF(N26="",FALSE,TRUE) -> TRUE | X26: =IF(AND(V26,P26>1,P26<>""),TRUE,FALSE) -> FALSE | AA26: =N26*'Waste Characterization-MODEL'!O72 -> 1802.41738
H27: Other / Undifferentiated | I27: =IF(ISERROR('Waste Characterization-MODEL'!J73/'Waste Characterization-MODEL'!O73),0,'Waste Characterization-MODEL'!J73/'Waste Characterization-MODEL'!O73) -> 0.1029388549 | J27: =IF('Waste Characterization-MODEL'!O73=0,0,'Waste Characterization-MODEL'!L73/'Waste Characterization-MODEL'!O73) -> 0 | M27: =IF(SUM($I27:$L27)>1,(I27+K27)/SUM($I$27:$L$27),I27+K27) -> 0.1029388549 | N27: =IF((J27+L27)>1,1,J27+L27) -> 0 | O27: =IF(SUM($I27:$L27)>1,I27+K27,"") ->  | P27: =IF(SUM($I27:$L27)>1,J27+L27,"") ->  | Q27: =IF(SUM($I27:$L27)>1,"Sum of recycling + composting cannot exceed 100%","") ->  | U27: =IF(M27="",FALSE,TRUE) -> TRUE | V27: =IF(N27="",FALSE,TRUE) -> TRUE | W27: =IF(AND(U27,SUM(O27:P27)>1),TRUE,FALSE) -> FALSE | Z27: =M27*'Waste Characterization-MODEL'!O73 -> 449.92 | AA27: =N27*'Waste Characterization-MODEL'!O73 -> 0
H28: Total % of Waste that is Diverted | I28: =IF('Waste Characterization-MODEL'!O74=0,0,'Basic Information'!H24/'Waste Characterization-MODEL'!O74) -> 0.259999941 | J28: =IF('Waste Characterization-MODEL'!O74=0,0,'Basic Information'!I24/'Waste Characterization-MODEL'!O74) -> 0.08499998071 | M28: =IF(ISERROR(Z29),"",Z29) -> 0.2600000245 | N28: =IF(ISERROR(AA29),"",AA29) -> 0.08500018832 | U28: =IF(SUM(M28:N29)="",FALSE,TRUE) -> TRUE | W28: =IF(U28,IF(SUM(M28:N28)>1,TRUE),FALSE) -> FALSE | Z28: =SUM(Z20:Z27) -> 6005.711966 | AA28: =SUM(AA20:AA27) -> 1963.41
H29: TOTAL Diversion (recycling + composting) | I29: =IF(ISERROR(Z32),"",Z32) -> 0.3450001277 | M29: =IF(ISERROR(Z33),"",Z33) -> 0.3450002128 | Z29: =Z28/'Waste Characterization-MODEL'!$O$74 -> 0.2600000245 | AA29: =AA28/'Waste Characterization-MODEL'!$O$74 -> 0.08500018832
I30: * For example, if your diversion rate increases from 10% to 15%, enter 5%. | Y30: Total Generated Waste | Z30: ='Waste Characterization-MODEL'!$O$74 -> 23098.89
H31: WARNING: One or more of the values entered produces a diversion rate that is >100%. This tool caps diversion rate at 100% for purposes of calculating results, however, you may wish to adjust the value(s) entered for % recycled and % composted. | Y31: Original Diverted Waste | Z31: ='Waste Characterization-MODEL'!$J$74 -> 6005.71 | AA31: ='Waste Characterization-MODEL'!$L$74 -> 1963.41
Y32: Original Diversion Rate | Z32: =SUM(Z31:AA31)/Z30 -> 0.3450001277
Y33: New Diversion Rate | Z33: =SUM(Z28:AA28)/Z30 -> 0.3450002128
B34: HIDE | C34: Measure 2: Require all commercial haulers to provide recycling services to all of their customers, upon request.
B35: HIDE | H35: ="Assumptions #" & TEXT(Assumptions!$C$66,"0") & " through #" & TEXT(Assumptions!C68,"0") -> Assumptions #37 through #39
B36: HIDE | W36: Any rate >100%? | X36: =IF(OR(W39,W40,W41,W42,W43,X44,X45,W46,W47),TRUE) -> FALSE
B37: HIDE | I37: Current Commercial Diversion | K37: Additional Annual Commercial Diversion * | M37: Target Commercial Diversion | O37: =+IF(X36,"User-entered target rates exceeding 100% diversion","") ->  | Z37: New Diverted Waste (tons)
B38: HIDE | I38: Recycled | J38: Composted | K38: Recycled | L38: Composted | M38: Recycled | N38: Composted | O38: =+IF(X36,"Recycled","") ->  | P38: =+IF(X36,"Composted","") ->  | U38: Not Blank? | W38: Not Blank AND >100%? | Z38: Recycled | AA38: Composted
B39: HIDE | H39: Metal | I39: =M20 -> 0.5503428754 | M39: =IF(I39+K39>1,1,I39+K39) -> 0.5503428754 | O39: =IF(I39+K39>1,I39+K39,"") ->  | U39: =IF(M39="",FALSE,TRUE) -> TRUE | W39: =IF(AND(U39,O39>1,O39<>""),TRUE,FALSE) -> FALSE | Z39: =M39*'Waste Characterization-MODEL'!O66 -> 730.0731804
B40: HIDE | H40: Glass | I40: =M21 -> 0.5403791903 | M40: =IF(I40+K40>1,1,I40+K40) -> 0.5403791903 | O40: =IF(I40+K40>1,I40+K40,"") ->  | U40: =IF(M40="",FALSE,TRUE) -> TRUE | W40: =IF(AND(U40,O40>1,O40<>""),TRUE,FALSE) -> FALSE | Z40: =M40*'Waste Characterization-MODEL'!O67 -> 292.2148054
B41: HIDE | H41: Plastic | I41: 0.1014044996 | M41: =IF(I41+K41>1,1,I41+K41) -> 0.1014044996 | O41: =IF(I41+K41>1,I41+K41,"") ->  | U41: =IF(M41="",FALSE,TRUE) -> TRUE | W41: =IF(AND(U41,O41>1,O41<>""),TRUE,FALSE) -> FALSE | Z41: =M41*'Waste Characterization-MODEL'!O68 -> 278.2998146
B42: HIDE | H42: Paper | I42: 0.5156001627 | M42: 0.5156001627 | O42: =IF(I42+K42>1,I42+K42,"") ->  | U42: =IF(M42="",FALSE,TRUE) -> TRUE | W42: =IF(AND(U42,O42>1,O42<>""),TRUE,FALSE) -> FALSE | Z42: =M42*'Waste Characterization-MODEL'!O69 -> 4026.070652
B43: HIDE | H43: Wood | I43: 0.1154798077 | M43: 0.1154798077 | O43: =IF(I43+K43>1,I43+K43,"") ->  | U43: =IF(M43="",FALSE,TRUE) -> TRUE | W43: =IF(AND(U43,O43>1,O43<>""),TRUE,FALSE) -> FALSE | Z43: =M43*'Waste Characterization-MODEL'!O70 -> 229.1335141
B44: HIDE | H44: Food Waste | J44: 0.07256360791 | M44: 0 | N44: 0.07256360791 | O44: =IF(J44+L44>1,J44+L44,"") ->  | V44: =IF(N44="",FALSE,TRUE) -> TRUE | X44: =IF(AND(V44,O44>1,O44<>""),TRUE,FALSE) -> FALSE | Z44: =M44*'Waste Characterization-MODEL'!O71 -> 0 | AA44: =N44*'Waste Characterization-MODEL'!O71 -> 160.9926203
B45: HIDE | H45: Yard Trimmings | J45: 0.8562500889 | M45: =IF(I45+K45>1,1,I45+K45) -> 0 | N45: =IF(J45+L45>1,1,J45+L45) -> 0.8562500889 | O45: =IF(J45+L45>1,J45+L45,"") ->  | V45: =IF(N45="",FALSE,TRUE) -> TRUE | X45: =IF(AND(V45,O45>1,O45<>""),TRUE,FALSE) -> FALSE | Z45: =M45*'Waste Characterization-MODEL'!O72 -> 0 | AA45: =N45*'Waste Characterization-MODEL'!O72 -> 1802.41738
B46: HIDE | H46: Other / Undifferentiated | I46: 0.1029388549 | J46: 0 | M46: =IF(SUM($I46:$L46)>1,1-J46,I46+K46) -> 0.1029388549 | N46: =J46 -> 0 | O46: =IF(SUM($I46:$L46)>1,I46+K46,"") ->  | P46: =IF(SUM($I46:$L46)>1,J46+L46,"") ->  | Q46: =IF(SUM($I46:$L46)>1,"Sum of recycling + composting cannot exceed 100%","") ->  | U46: =IF(M46="",FALSE,TRUE) -> TRUE | V46: =IF(N46="",FALSE,TRUE) -> TRUE | W46: =IF(AND(U46,SUM(O46:P46)>1),TRUE,FALSE) -> FALSE | Z46: =M46*'Waste Characterization-MODEL'!O73 -> 449.92 | AA46: =N46*'Waste Characterization-MODEL'!O73 -> 0
B47: HIDE | H47: Total % of Waste that is Diverted | I47: =M28 -> 0.2600000245 | J47: =N28 -> 0.08500018832 | M47: =IF(ISERROR(Z48),"",Z48) -> 0.2600000245 | N47: =IF(ISERROR(AA48),"",AA48) -> 0.08500018832 | U47: =IF(SUM(M47:N48)="",FALSE,TRUE) -> TRUE | W47: =IF(U47,IF(SUM(M47:N47)>1,TRUE),FALSE) -> FALSE | Z47: =SUM(Z39:Z46) -> 6005.711966 | AA47: =SUM(AA39:AA46) -> 1963.41
B48: HIDE | H48: TOTAL Diversion (recycling + composting) | I48: =M29 -> 0.3450002128 | M48: =IF(ISERROR(Z52),"",Z52) -> 0.3450002128 | Z48: =Z47/'Waste Characterization-MODEL'!$O$74 -> 0.2600000245 | AA48: =AA47/'Waste Characterization-MODEL'!$O$74 -> 0.08500018832
B49: HIDE | I49: * For example, if your diversion rate increases from 10% to 15%, please enter 5%. | Y49: Total Generated Waste | Z49: ='Waste Characterization-MODEL'!$O$74 -> 23098.89
B50: HIDE | H50: WARNING: One or more of the values entered produces a diversion rate that is >100%. This tool caps diversion rate at 100% for purposes of calculating results, however, you may wish to adjust the value(s) entered for % recycled. | Y50: Original Diverted Waste | Z50: ='Waste Characterization-MODEL'!$J$74 -> 6005.71 | AA50: ='Waste Characterization-MODEL'!$L$74 -> 1963.41
B51: HIDE | Y51: Original Diversion Rate | Z51: =SUM(Z50:AA50)/Z49 -> 0.3450001277
B52: HIDE | Y52: New Diversion Rate | Z52: =SUM(Z47:AA47)/Z49 -> 0.3450002128
C53: Measure 2: Require all businesses to have recycling services
H54: ="Assumptions #" & TEXT(Assumptions!$C$70,"0") & " through #" & TEXT(Assumptions!C72,"0") -> Assumptions #36 through #38
W55: Any rate >100%? | X55: =IF(OR(W58,W59,W60,W61,W62,X63,X64,W65,W66),TRUE) -> FALSE
I56: Current Commercial Diversion | K56: Additional Annual Commercial Diversion * | M56: Target Commercial Diversion | O56: =+IF(X55,"User-entered target rates exceeding 100% diversion","") ->  | Z56: New Diverted Waste (tons)
I57: Recycled | J57: Composted | K57: Recycled | L57: Composted | M57: Recycled | N57: Composted | O57: =+IF(X55,"Recycled","") ->  | P57: =+IF(X55,"Composted","") ->  | U57: Not Blank? | W57: Not Blank AND >100%? | Z57: Recycled | AA57: Composted
H58: Metal | I58: =M39 -> 0.5503428754 | K58: 0.15 | M58: =IF(I58+K58>1,1,I58+K58) -> 0.7003428754 | O58: =IF(I58+K58>1,I58+K58,"") ->  | U58: =IF(M58="",FALSE,TRUE) -> TRUE | W58: =IF(AND(U58,O58>1,O58<>""),TRUE,FALSE) -> FALSE | Z58: =M58*'Waste Characterization-MODEL'!O66 -> 929.0599975
H59: Glass | I59: =M40 -> 0.5403791903 | K59: 0.15 | M59: =IF(I59+K59>1,1,I59+K59) -> 0.6903791903 | O59: =IF(I59+K59>1,I59+K59,"") ->  | U59: =IF(M59="",FALSE,TRUE) -> TRUE | W59: =IF(AND(U59,O59>1,O59<>""),TRUE,FALSE) -> FALSE | Z59: =M59*'Waste Characterization-MODEL'!O67 -> 373.3286262
H60: Plastic | I60: 0.1014044996 | K60: 0.05 | M60: 0.1514044996 | O60: =IF(I60+K60>1,I60+K60,"") ->  | U60: =IF(M60="",FALSE,TRUE) -> TRUE | W60: =IF(AND(U60,O60>1,O60<>""),TRUE,FALSE) -> FALSE | Z60: =M60*'Waste Characterization-MODEL'!O68 -> 415.5224309
H61: Paper | I61: 0.5156001627 | K61: 0.2 | M61: 0.7156001627 | O61: =IF(I61+K61>1,I61+K61,"") ->  | U61: =IF(M61="",FALSE,TRUE) -> TRUE | W61: =IF(AND(U61,O61>1,O61<>""),TRUE,FALSE) -> FALSE | Z61: =M61*'Waste Characterization-MODEL'!O69 -> 5587.773282
H62: Wood | I62: 0.1154798077 | K62: 0.15 | M62: 0.2654798077 | O62: =IF(I62+K62>1,I62+K62,"") ->  | U62: =IF(M62="",FALSE,TRUE) -> TRUE | W62: =IF(AND(U62,O62>1,O62<>""),TRUE,FALSE) -> FALSE | Z62: =M62*'Waste Characterization-MODEL'!O70 -> 526.7615392
B63: HIDE | H63: Food Waste | J63: 0.07256360791 | M63: 0 | N63: 0.07256360791 | O63: =IF(J63+L63>1,J63+L63,"") ->  | V63: =IF(N63="",FALSE,TRUE) -> TRUE | X63: =IF(AND(V63,O63>1,O63<>""),TRUE,FALSE) -> FALSE | Z63: =M63*'Waste Characterization-MODEL'!O71 -> 0 | AA63: =N63*'Waste Characterization-MODEL'!O71 -> 160.9926203
B64: HIDE | H64: Yard Trimmings | J64: 0.8562500889 | M64: 0 | N64: 0.8562500889 | O64: =IF(J64+L64>1,J64+L64,"") ->  | V64: =IF(N64="",FALSE,TRUE) -> TRUE | X64: =IF(AND(V64,O64>1,O64<>""),TRUE,FALSE) -> FALSE | Z64: =M64*'Waste Characterization-MODEL'!O72 -> 0 | AA64: =N64*'Waste Characterization-MODEL'!O72 -> 1802.41738
H65: Other / Undifferentiated | I65: 0.1029388549 | J65: =N46 -> 0 | K65: 0.15 | M65: =IF(SUM($I65:$L65)>1,1-J65,I65+K65) -> 0.2529388549 | N65: =IF((J65+L65)>1,1,J65+L65) -> 0 | O65: =IF(SUM($I65:$L65)>1,I65+K65,"") ->  | P65: =IF(SUM($I65:$L65)>1,J65+L65,"") ->  | Q65: =IF(SUM($I65:$L65)>1,"Sum of recycling + composting cannot exceed 100%","") ->  | U65: =IF(M65="",FALSE,TRUE) -> TRUE | V65: =IF(N65="",FALSE,TRUE) -> TRUE | W65: =IF(AND(U65,SUM(O65:P65)>1),TRUE,FALSE) -> FALSE | Z65: =M65*'Waste Characterization-MODEL'!O73 -> 1105.5325 | AA65: =N65*'Waste Characterization-MODEL'!O73 -> 0
H66: Total % of Waste that is Diverted | I66: =M47 -> 0.2600000245 | J66: =N47 -> 0.08500018832 | M66: =IF(ISERROR(Z67),"",Z67) -> 0.3869440642 | N66: =IF(ISERROR(AA67),"",AA67) -> 0.08500018832 | U66: =IF(SUM(M66:N66)="",FALSE,TRUE) -> TRUE | W66: =IF(U66,IF(SUM(M66:N66)>1,TRUE),FALSE) -> FALSE | Z66: =SUM(Z58:Z65) -> 8937.978376 | AA66: =SUM(AA58:AA65) -> 1963.41
H67: TOTAL Diversion (recycling + composting) | I67: =M48 -> 0.3450002128 | M67: =IF(ISERROR(Z71),"",Z71) -> 0.4719442526 | Z67: =Z66/'Waste Characterization-MODEL'!$O$74 -> 0.3869440642 | AA67: =AA66/'Waste Characterization-MODEL'!$O$74 -> 0.08500018832
I68: * For example, if your diversion rate increases from 10% to 15%, please enter 5%. | Y68: Total Generated Waste | Z68: ='Waste Characterization-MODEL'!$O$74 -> 23098.89
H69: WARNING: One or more of the values entered produces a diversion rate that is >100%. This tool caps diversion rate at 100% for purposes of calculating results, however, you may wish to adjust the value(s) entered for % recycled. | Y69: Original Diverted Waste | Z69: ='Waste Characterization-MODEL'!$J$74 -> 6005.71 | AA69: ='Waste Characterization-MODEL'!$L$74 -> 1963.41
Y70: Original Diversion Rate | Z70: =SUM(Z69:AA69)/Z68 -> 0.3450001277
Y71: New Diversion Rate | Z71: =SUM(Z66:AA66)/Z68 -> 0.4719442526
C72: Effects of Implementing a Policy or Program to Increase Commercial Composting1
C76: Measure 3: Commercial Sector Composting Program
D77: If you would like to use default diversion rates, please select from the following two options:
D79: OPTION #1: Implement a non-mandatory commercial sector organics program. | P79: ="Assumptions #" & TEXT(Assumptions!$C$74,"0") & " and #" & TEXT(Assumptions!$C$75,"0") -> Assumptions #39 and #40
D80: OPTION #2: Implement a mandatory commercial sector organics program. | P80: ="Assumptions #" & TEXT(Assumptions!$C$76,"0") & " and #" & TEXT(Assumptions!$C$77,"0") -> Assumptions #41 and #42
W82: Any rate >100%? | X82: =IF(OR(W85,W86,W87,W88,W89,X90,X91,W92,W93),TRUE) -> FALSE
I83: Current Commercial Diversion | K83: Additional Annual Commercial Diversion * | M83: Target Commercial Diversion | O83: =+IF(X82,"User-entered target rates exceeding 100% diversion","") ->  | Z83: New Diverted Waste (tons)
I84: Recycled | J84: Composted | K84: Recycled | L84: Composted | M84: Recycled | N84: Composted | O84: =+IF(X82,"Recycled","") ->  | P84: =+IF(X82,"Composted","") ->  | U84: Not Blank? | W84: Not Blank AND >100%? | Z84: Recycled | AA84: Composted
B85: HIDE | H85: Metal | I85: =M58 -> 0.7003428754 | M85: =IF(I85+K85<1, I85+K85, 1) -> 0.7003428754 | O85: =IF(I85+K85>1,I85+K85,"") ->  | U85: =IF(M85="",FALSE,TRUE) -> TRUE | W85: =IF(AND(U85,O85>1,O85<>""),TRUE,FALSE) -> FALSE | Z85: =M85*'Waste Characterization-MODEL'!O66 -> 929.0599975
B86: HIDE | H86: Glass | I86: =M59 -> 0.6903791903 | M86: =IF(I86+K86<1, I86+K86, 1) -> 0.6903791903 | O86: =IF(I86+K86>1,I86+K86,"") ->  | U86: =IF(M86="",FALSE,TRUE) -> TRUE | W86: =IF(AND(U86,O86>1,O86<>""),TRUE,FALSE) -> FALSE | Z86: =M86*'Waste Characterization-MODEL'!O67 -> 373.3286262
B87: HIDE | H87: Plastic | I87: =M60 -> 0.1514044996 | M87: 0.1514044996 | O87: =IF(I87+K87>1,I87+K87,"") ->  | U87: =IF(M87="",FALSE,TRUE) -> TRUE | W87: =IF(AND(U87,O87>1,O87<>""),TRUE,FALSE) -> FALSE | Z87: =M87*'Waste Characterization-MODEL'!O68 -> 415.5224309
B88: HIDE | H88: Paper | I88: =M61 -> 0.7156001627 | M88: 0.7156001627 | O88: =IF(I88+K88>1,I88+K88,"") ->  | U88: =IF(M88="",FALSE,TRUE) -> TRUE | W88: =IF(AND(U88,O88>1,O88<>""),TRUE,FALSE) -> FALSE | Z88: =M88*'Waste Characterization-MODEL'!O69 -> 5587.773282
B89: HIDE | H89: Wood | I89: =M62 -> 0.2654798077 | M89: 0.2654798077 | O89: =IF(I89+K89>1,I89+K89,"") ->  | U89: =IF(M89="",FALSE,TRUE) -> TRUE | W89: =IF(AND(U89,O89>1,O89<>""),TRUE,FALSE) -> FALSE | Z89: =M89*'Waste Characterization-MODEL'!O70 -> 526.7615392
H90: Food Waste | J90: =N63 -> 0.07256360791 | L90: 0.2 | N90: 0.2725636079 | P90: =IF(J90+L90>1,J90+L90,"") ->  | V90: =IF(N90="",FALSE,TRUE) -> TRUE | X90: =IF(AND(V90,P90>1,P90<>""),TRUE,FALSE) -> FALSE | AA90: =N90*'Waste Characterization-MODEL'!O71 -> 604.7208884
H91: Yard Trimmings | J91: =N64 -> 0.8562500889 | L91: 0 | N91: 0.8562500889 | P91: =IF(J91+L91>1,J91+L91,"") ->  | V91: =IF(N91="",FALSE,TRUE) -> TRUE | X91: =IF(AND(V91,P91>1,P91<>""),TRUE,FALSE) -> FALSE | AA91: =N91*'Waste Characterization-MODEL'!O72 -> 1802.41738
H92: Other / Undifferentiated | I92: =M65 -> 0.2529388549 | J92: =N65 -> 0 | M92: =IF((I92+K92)>1,1,I92+K92) -> 0.2529388549 | N92: =IF(SUM($I92:$L92)>1,1-I92,J92+L92) -> 0 | O92: =IF(SUM($I92:$L92)>1,I92+K92,"") ->  | P92: =IF(SUM($I92:$L92)>1,J92+L92,"") ->  | Q92: =IF(SUM($I92:$L92)>1,"Sum of recycling + composting cannot exceed 100%","") ->  | U92: =IF(M92="",FALSE,TRUE) -> TRUE | V92: =IF(N92="",FALSE,TRUE) -> TRUE | W92: =IF(AND(U92,SUM(O92:P92)>1),TRUE,FALSE) -> FALSE | Z92: =M92*'Waste Characterization-MODEL'!O73 -> 1105.5325 | AA92: =N92*'Waste Characterization-MODEL'!O73 -> 0
H93: Total % of Waste that is Diverted | I93: =M66 -> 0.3869440642 | J93: =N66 -> 0.08500018832 | M93: =IF(ISERROR(Z94),"",Z94) -> 0.3869440642 | N93: =IF(ISERROR(AA94),"",AA94) -> 0.1042101273 | U93: =IF(SUM(M93:N93)="",FALSE,TRUE) -> TRUE | W93: =IF(U93,IF(SUM(M93:N93)>1,TRUE),FALSE) -> FALSE | Z93: =SUM(Z85:Z92) -> 8937.978376 | AA93: =SUM(AA85:AA92) -> 2407.138268
H94: TOTAL Diversion (recycling + composting) | I94: =M67 -> 0.4719442526 | M94: =IF(ISERROR(Z98),"",Z98) -> 0.4911541916 | P94: ="Assumption #" & TEXT(Assumptions!C79,"0") -> Assumption #43 | Z94: =Z93/'Waste Characterization-MODEL'!$O$74 -> 0.3869440642 | AA94: =AA93/'Waste Characterization-MODEL'!$O$74 -> 0.1042101273
I95: * For example, if your diversion rate increases from 10% to 15%, please enter 5%. | Y95: Total Generated Waste | Z95: ='Waste Characterization-MODEL'!$O$74 -> 23098.89
H96: WARNING: One or more of the values entered produces a diversion rate that is >100%. This tool caps diversion rate at 100% for purposes of calculating results, however, you may wish to adjust the value(s) entered for % composted | Y96: Original Diverted Waste | Z96: ='Waste Characterization-MODEL'!$J$74 -> 6005.71 | AA96: ='Waste Characterization-MODEL'!$L$74 -> 1963.41
Y97: Original Diversion Rate | Z97: =SUM(Z96:AA96)/Z95 -> 0.3450001277
C98: 1 Note: calculated results assume new tons recycled. In estimating the net effect of programs that add or expand curbside collection, include a qualifier in the estimate to avoid double-counting material already recycled from an existing drop-off program. | Y98: New Diversion Rate | Z98: =SUM(Z93:AA93)/Z95 -> 0.4911541916
Z102: NEW DIVERSION RATE AFTER ALL POLICIES - used in annual waste calcs
Z103: Recycled | AA103: Composted
Y104: Metal | Z104: =M85 -> 0.7003428754
Y105: Glass | Z105: =M86 -> 0.6903791903
Y106: Plastic | Z106: 0.1514044996
Y107: Paper | Z107: 0.7156001627
Y108: Wood | Z108: 0.2654798077
Y109: Food Waste | AA109: 0.2725636079
Y110: Yard Trimmings | AA110: 0.8562500889
Y111: Other | Z111: 0.2529388549 | AA111: 0
Y113: Total Generated Waste | Z113: =SUM('Waste Characterization-MODEL'!O66:O70,'Waste Characterization-MODEL'!O73) -> 18775.2399 | AA113: =SUM('Waste Characterization-MODEL'!O71:O72) -> 4323.65412 | AB113: Other waste is included in the recycled category
Y114: Original Diverted Waste | Z114: =Z96 -> 6005.71 | AA114: =AA96 -> 1963.41
Y115: Original Diversion Rate | Z115: =IF(Z113=0,0,Z114/Z113) -> 0.3198739421 | AA115: =IF(AA113=0,0,AA114/AA113) -> 0.4541089425
Y116: New Diverted Waste | Z116: =Z93 -> 8937.978376 | AA116: =AA93 -> 2407.138268
Y117: New Diversion Rate | Z117: =IF(Z113=0,0,Z116/Z113) -> 0.4760513541 | AA117: =IF(AA113=0,0,AA116/AA113) -> 0.5567370102
Y118: Change in Diversion Rates | Z118: =Z117-Z115 -> 0.156177412 | AA118: =AA117-AA115 -> 0.1026280678

Sheet C&D Recycling
P1: HIDE | Q1: HIDE | R1: HIDE | S1: HIDE | U1: HIDE | V1: HIDE | W1: HIDE | X1: HIDE | Y1: HIDE | Z1: HIDE | AA1: HIDE | AB1: HIDE | AC1: HIDE | AD1: HIDE | AE1: HIDE | AF1: HIDE | AG1: HIDE | AH1: HIDE | AI1: HIDE | AJ1: HIDE | AK1: HIDE | AL1: HIDE | AM1: HIDE | AN1: HIDE | AO1: HIDE | AP1: HIDE | AQ1: HIDE | AR1: HIDE | AS1: HIDE | AT1: HIDE | AU1: HIDE | AV1: HIDE | AW1: HIDE | AX1: HIDE | AY1: HIDE
B3: Implement Construction & Demolition Requirements
B4: Enter information into the yellow cells or proceed to Program Implementation Summary | Q4: Any rate >100%? | R4: =IF(OR(R13,R36,R39,R40,R71,R73),TRUE,FALSE) -> FALSE
C6: Construction & Demolition (C&D) requirements are typically implemented as a local ordinance or refundable deposit program. This tab can be used for new C&D requirements or for expanding existing C&D requirements to set higher recycling targets or to encompass a wider universe of C&D projects or materials.
C7: Note: Use backspace, not the space bar, to clear values. Clearing cell contents by using the space bar will create calculation errors.
C8: Effects of Implementing New or Expanded C&D Requirements
C10: STEP 1. [Coverage] Which projects will be subject to requirements? Estimate how much of the C&D generated in your community’s base year comes from projects that would be subject to a new or expanded C&D ordinance, e.g., 90%.
B13: * | C13: 0.9 | D13: = | E13: =TEXT(IF(ISERROR(CD_total*CDRecy_Penetration),"",CD_total*CDRecy_Penetration),"0,0") & " tons subject to the C&D ordinance." -> 25,560 tons subject to the C&D ordinance. | Q13: Penetration rate <100%? | R13: =IF(C13>1,TRUE,FALSE) -> FALSE
C14: *If no value is entered, 100% is assumed
C15: WARNING: You have entered a value that is >100%.
C28: STEP 2. [Recycling/Reuse Targets] Enter minimum target diversion rate(s) for a new or expanded C&D ordinance, i.e., the percentage (%) of C&D debris that projects subject to an ordinance would be required to divert. | Q28: FALSE | R28: Has waste info on the Basic Information tab been updated without these values changing?
C29: (This step assumes that the amount of C&D recycled in the base year, as a percentage of C&D generated, will continue into future years as a minimum recycling rate. Note: the baseline recycling rate should only include C&D from building projects unless requirements will apply to other C&D sources.)
C30: NOTE: You updated a value for C&D waste on the Basic Information tab that might make your overall diversion rate and the material-specific rates below outdated. Please re-enter diversion rates (red percents) if necessary.
AA31: 0.5 | AB31: <- CDRecy_OverallRecyRateTarget
AA32: =CD_recycled -> 7550 | AB32: <- Current tons recycled
AA33: =IF(CDRecy_PenetrationUser="",100%,CDRecy_PenetrationUser) -> 0.9 | AB33: <- Penetration Rate (% of C&D waste applicable)
AA34: =CD_total*CDRecy_Penetration -> 25560 | AB34: <- Tons of waste subject to measure
C35: Option 1: | AA35: =IF(ISERROR(AA32/AA34),"",AA32/AA34) -> 0.2953834116 | AB35: <- Recycling rate for projects subject to measure
C36: Enter an average percentage (%) diversion rate to be applied across C&D materials, e.g., 50%. | K36: ="Assumptions #" & TEXT(Assumptions!$C$86,"0") & " through #" & TEXT(Assumptions!$C$87,"0") -> Assumptions #46 through #47 | Q36: Diversion rate <100%? | R36: =IF(CDRecy_OverallRecyRateTarget>1,TRUE,FALSE) -> FALSE | AA36: =AA34*CDRecy_OverallRecyRateTarget -> 12780 | AB36: <- Target tons of waste recycled after the measure
AA37: =IF(AA36=0,0,AA36-AA32) -> 5230 | AB37: <- Total Additional Tons Recycled Necessary to meet the overall target diversion rate = target tons recycled - current tons recycled
C38: Diversion rate* | F38: 0.5 | G38: = | H38: =TEXT(IF(ISERROR(CD_total*CDRecy_OverallRecyRateTarget*CDRecy_Penetration),"",CD_total*CDRecy_OverallRecyRateTarget*CDRecy_Penetration),"0,0") & " tons of required diversion (" & TEXT(CDRecy_TotalAdditionalTonsRecycled,"0,0") & " tons in addition to the baseline recycled tonnage of " & TEXT(CD_recycled,"0,0") & " tons)." -> 12,780 tons of required diversion (5,230 tons in addition to the baseline recycled tonnage of 7,550 tons). | AA38: =IF(CDRecy_RecoveryRate_User="",Default_CDRecy_RecoveryRate,CDRecy_RecoveryRate_User) -> 0.75 | AB38: <- Recovery Rate at C&D processing facilities
F39: ="* This value must be greater than the current C&D recycling rate of "&TEXT(AA35,"0%") & " for projects subject to an ordinance." -> * This value must be greater than the current C&D recycling rate of 30% for projects subject to an ordinance. | Q39: Any rate >100%? | R39: =IF(OR(S42,U42),TRUE) -> FALSE | AA39: =IF(CDRecy_ADCpercent_User="",0,CDRecy_ADCpercent_User) -> 0.1 | AB39: <- C&D residuals used as ADC
B40: OR | Q40: Any rate >current%? | R40: =IF(OR(T43,V43),TRUE) -> FALSE | AA40: =CDRecy_TotalAdditionalTonsRecycled*CDRecy_RecoveryRate*(1-CDRecy_ADCpercent) -> 3530.25 | AB40: <- Target tons of waste recycled after the measure
C41: Option 2: | AA41: =AA40+AA32 -> 11080.25 | AB41: <- Total new tons of waste recycled after the measure
C42: Enter directly in the table below specific recycling/reuse targets for C&D materials, e.g., 75% for concrete & asphalt. | R42: Any rate >100%? | S42: =IF(OR(S45>1,S46>1,S47>1,S48>1,S49>1,S50>1,S51>1,S52>1,S53>1,S54>1,S55>1,S56>1,S57>1,S58>1,S59>1,S60>1,S61>1),TRUE) -> FALSE | U42: =IF(OR(U45>1,U46>1,U47>1,U48>1,U49>1,U50>1,U51>1,U52>1,U53>1,U54>1,U55>1,U56>1,U57>1,U58>1,U59>1,U60>1,U61>1),TRUE) -> FALSE
R43: Any rate >current%? | T43: =IF(OR(T45,T46,T47,T48,T49,T50,T51,T52,T53,T54,T55,T56,T57,T58,T59,T60,T61),TRUE) -> FALSE | V43: =IF(OR(V45,V46,V47,V48,V49,V50,V51,V52,V53,V54,V55,V56,V57,V58,V59,V60,V61),TRUE) -> FALSE | AA43: Table for Calculating New Target C&D Recycling Rate by Material Type when the user enters an overall recycling rate | AS43: After Step 2 | AU43: After Step 3 (Recovery Rate and ADC)
I44: Current C&D Recycling / Reuse Rates | J44: Incremental % Targeted for Recycling / Reuse | K44: Target C&D Recycling / Reuse Rates1 | Q44: Total Generation (before step 1) | R44: New Total Tons Recycled (after Step 1) | S44: New Recycling Rate (post-step 1 tons compared to baseline generation) | T44: Any Rate < current rate? | U44: Target C&D Recycling Rates, After Step 3 (used in Annual Waste Calcs tab) | V44: Any Rate < current rate? | Y44: tons recycled under target diversion | AA44: Total Tons Generated (BAU) | AB44: Total Tons Recycled (BAU) | AC44: % of Total Waste Stream | AD44: Additional Tons to Recycle | AE44: New Tons Recycled 1 | AF44: New Recycling Rate | AG44: New Recycling Rate (doesn’t allow >100%) | AH44: New Tons Recycled 2 | AI44: Additional Tons Recycled to Distribute | AJ44: Tons to Eliminate from Total Waste Stream | AK44: New % of Recycled Stream with Waste Eliminated | AL44: New Tons Recycled 3 | AM44: New Target Recycling Rate | AN44: New Tons Recycled 4 | AO44: New Target Recycling Rate | AP44: Additional Tons Recycled to Distribute | AQ44: Tons to Eliminate from Total Waste Stream | AR44: New % of Recycled Stream with Waste Eliminated | AS44: New Tons Recycled 5 | AT44: New Target Recycling Rate (for table) | AU44: New Incremental Tons Recycled (before Recovery Rate and ADC) | AV44: New Incremental Tons Recycled After Recovery Rate and ADC | AW44: New Total Tons Recycled After Recovery Rate and ADC | AX44: New Target Recycling Rate After Recovery Rate and ADC | AY44: Waste Type
H45: Asphalt Concrete | I45: =IF('Waste Characterization-MODEL'!O82=0,0,'Waste Characterization-MODEL'!J82/'Waste Characterization-MODEL'!O82) -> 0.3810301321 | J45: =IF(K45<>"",K45-I45,0) -> 0.1841549296 | K45: 0.5651850617 | P45: =AT45 -> 0.5651850617 | Q45: ='Waste Characterization-MODEL'!O82 -> 3368.5 | R45: =IF(K45="",I45,K45)*Q45 -> 1903.82588 | S45: =IF(R45=0,0,R45/Q45) -> 0.5651850617 | T45: =IF(S45<I45,TRUE) -> FALSE | U45: =IF(K45=I45,K45,IF(K45="",I45,AX45)) -> 0.5053347096 | V45: =IF(U45<I45,TRUE) -> FALSE | X45: Asphalt | Y45: =U45*'Waste Characterization-MODEL'!O82 -> 1702.219969 | AA45: ='Waste Characterization-MODEL'!O82 -> 3368.5 | AB45: ='Waste Characterization-MODEL'!J82 -> 1283.5 | AC45: =AA45/$AA$62 -> 0.1186091549 | AD45: =AC45*$AA$37 -> 620.3258803 | AE45: =AD45+AB45 -> 1903.82588 | AF45: =IF(AA45=0,"",AE45/AA45) -> 0.5651850617 | AG45: =IF(AF45>1,1,AF45) -> 0.5651850617 | AH45: =AG45*AA45 -> 1903.82588 | AI45: =AE45-AH45 -> 0 | AJ45: =IF(AG45<>1,0,AA45) -> 0 | AK45: =IF(AG45<>1,AA45,0)/IF(($AA$62-$AJ$62)=0,1,($AA$62-$AJ$62)) -> 0.1186091549 | AL45: =AH45+AK45*$AI$62 -> 1903.82588 | AM45: =IF(AA45=0,0,AL45/AA45) -> 0.5651850617 | AN45: =IF(AL45>AA45,AA45,AL45) -> 1903.82588 | AO45: =IF(AA45=0,0,AN45/AA45) -> 0.5651850617 | AP45: =AL45-AN45 -> 0 | AQ45: =AJ45+IF(AP45=0,0,AA45) -> 0 | AR45: =IF(AO45<>1,AA45,0)/IF(($AA$62-$AQ$62)=0,1,($AA$62-$AQ$62)) -> 0.1186091549 | AS45: =AN45+AR45*$AP$62 -> 1903.82588 | AT45: =IF(AA45=0,0,AS45/AA45) -> 0.5651850617 | AU45: =AS45-AB45 -> 620.3258803 | AV45: =AU45*CDRecy_RecoveryRate*(1-CDRecy_ADCpercent) -> 418.7199692 | AW45: =AB45+AV45 -> 1702.219969 | AX45: =IF(AA45=0,0,AW45/AA45) -> 0.5053347096 | AY45: Asphalt
H46: Concrete | I46: =IF('Waste Characterization-MODEL'!O83=0,0,'Waste Characterization-MODEL'!J83/'Waste Characterization-MODEL'!O83) -> 0.6403363761 | J46: =IF(K46<>"",K46-I46,0) -> 0.1841549296 | K46: 0.8244913056 | P46: =AT46 -> 0.8244913056 | Q46: ='Waste Characterization-MODEL'!O83 -> 6956.5 | R46: 5735.573768 | S46: =IF(R46=0,0,R46/Q46) -> 0.8244913056 | T46: FALSE | U46: =IF(K46=I46,K46,IF(K46="",I46,AX46)) -> 0.7646409535 | V46: FALSE | X46: Concrete | Y46: =U46*'Waste Characterization-MODEL'!O83 -> 5319.224793 | AA46: ='Waste Characterization-MODEL'!O83 -> 6956.5 | AB46: ='Waste Characterization-MODEL'!J83 -> 4454.5 | AC46: =AA46/$AA$62 -> 0.2449471831 | AD46: 1281.073768 | AE46: 5735.573768 | AF46: =IF(AA46=0,"",AE46/AA46) -> 0.8244913056 | AG46: =IF(AF46>1,1,AF46) -> 0.8244913056 | AH46: =AG46*AA46 -> 5735.573768 | AI46: =AE46-AH46 -> 0 | AJ46: =IF(AG46<>1,0,AA46) -> 0 | AK46: =IF(AG46<>1,AA46,0)/IF(($AA$62-$AJ$62)=0,1,($AA$62-$AJ$62)) -> 0.2449471831 | AL46: =AH46+AK46*$AI$62 -> 5735.573768 | AM46: =IF(AA46=0,0,AL46/AA46) -> 0.8244913056 | AN46: 5735.573768 | AO46: 0.8244913056 | AP46: 0 | AQ46: =AJ46+IF(AP46=0,0,AA46) -> 0 | AR46: =IF(AO46<>1,AA46,0)/IF(($AA$62-$AQ$62)=0,1,($AA$62-$AQ$62)) -> 0.2449471831 | AS46: =AN46+AR46*$AP$62 -> 5735.573768 | AT46: =IF(AA46=0,0,AS46/AA46) -> 0.8244913056 | AU46: =AS46-AB46 -> 1281.073768 | AV46: 864.7247931 | AW46: =AB46+AV46 -> 5319.224793 | AX46: =IF(AA46=0,0,AW46/AA46) -> 0.7646409535 | AY46: Concrete
H47: Drywall | I47: =IF('Waste Characterization-MODEL'!O84=0,0,'Waste Characterization-MODEL'!J84/'Waste Characterization-MODEL'!O84) -> 0.08207190804 | J47: 0.1841549296 | K47: 0.2662268376 | P47: 0.2662268376 | Q47: ='Waste Characterization-MODEL'!O84 -> 1839.85 | R47: 489.8174472 | S47: 0.2662268376 | T47: FALSE | U47: 0.2063764855 | V47: FALSE | X47: Drywall | Y47: =U47*'Waste Characterization-MODEL'!O84 -> 379.7017768 | AA47: ='Waste Characterization-MODEL'!O84 -> 1839.85 | AB47: ='Waste Characterization-MODEL'!J84 -> 151 | AC47: 0.0647834507 | AD47: 338.8174472 | AE47: 489.8174472 | AF47: 0.2662268376 | AG47: 0.2662268376 | AH47: 489.8174472 | AI47: 0 | AJ47: 0 | AK47: 0.0647834507 | AL47: =AH47+AK47*$AI$62 -> 489.8174472 | AM47: =IF(AA47=0,0,AL47/AA47) -> 0.2662268376 | AN47: 489.8174472 | AO47: 0.2662268376 | AP47: 0 | AQ47: 0 | AR47: 0.0647834507 | AS47: 489.8174472 | AT47: 0.2662268376 | AU47: 338.8174472 | AV47: 228.7017768 | AW47: 379.7017768 | AX47: 0.2063764855 | AY47: Drywall
H48: Dimensional lumber and General Wood Products | I48: =IF('Waste Characterization-MODEL'!O85=0,0,'Waste Characterization-MODEL'!J85/'Waste Characterization-MODEL'!O85) -> 0.1033977458 | J48: 0.1841549296 | K48: 0.2875526754 | P48: =AT48 -> 0.2875526754 | Q48: ='Waste Characterization-MODEL'!O85 -> 3650.95 | R48: 1049.84044 | S48: 0.2875526754 | T48: FALSE | U48: 0.2277023233 | V48: FALSE | X48: Dimensional lumber and General Wood Products | Y48: =U48*'Waste Characterization-MODEL'!O85 -> 831.3297971 | AA48: ='Waste Characterization-MODEL'!O85 -> 3650.95 | AB48: ='Waste Characterization-MODEL'!J85 -> 377.5 | AC48: 0.1285545775 | AD48: 672.3404401 | AE48: 1049.84044 | AF48: 0.2875526754 | AG48: 0.2875526754 | AH48: 1049.84044 | AI48: 0 | AJ48: 0 | AK48: 0.1285545775 | AL48: 1049.84044 | AM48: 0.2875526754 | AN48: 1049.84044 | AO48: 0.2875526754 | AP48: 0 | AQ48: 0 | AR48: 0.1285545775 | AS48: 1049.84044 | AT48: 0.2875526754 | AU48: 672.3404401 | AV48: 453.8297971 | AW48: 831.3297971 | AX48: 0.2277023233 | AY48: Dimensional lumber and General Wood Products
H49: Medium-Density Fiberboard, Plywood, and Related Products | I49: =IF('Waste Characterization-MODEL'!O86=0,0,'Waste Characterization-MODEL'!J86/'Waste Characterization-MODEL'!O86) -> 0.138627496 | J49: 0.1841549296 | K49: 0.3227824256 | P49: 0.3227824256 | Q49: ='Waste Characterization-MODEL'!O86 -> 1089.25 | R49: 351.590757 | S49: =IF(R49=0,0,R49/Q49) -> 0.3227824256 | T49: FALSE | U49: 0.2629320734 | V49: FALSE | X49: Medium-Density Fiberboard, Plywood, and Related Products | Y49: =U49*'Waste Characterization-MODEL'!O86 -> 286.398761 | AA49: ='Waste Characterization-MODEL'!O86 -> 1089.25 | AB49: ='Waste Characterization-MODEL'!J86 -> 151 | AC49: 0.03835387324 | AD49: 200.590757 | AE49: 351.590757 | AF49: 0.3227824256 | AG49: 0.3227824256 | AH49: 351.590757 | AI49: 0 | AJ49: 0 | AK49: 0.03835387324 | AL49: 351.590757 | AM49: 0.3227824256 | AN49: 351.590757 | AO49: 0.3227824256 | AP49: 0 | AQ49: 0 | AR49: 0.03835387324 | AS49: 351.590757 | AT49: 0.3227824256 | AU49: 200.590757 | AV49: 135.398761 | AW49: 286.398761 | AX49: 0.2629320734 | AY49: Medium-Density Fiberboard, Plywood, and Related Products
H50: Asphalt Shingles-Fiberglass | I50: =IF('Waste Characterization-MODEL'!O87=0,0,'Waste Characterization-MODEL'!J87/'Waste Characterization-MODEL'!O87) -> 0.1103285013 | J50: 0.1841549296 | K50: 0.2944834309 | P50: 0.2944834309 | Q50: ='Waste Characterization-MODEL'!O87 -> 3421.6 | R50: 1007.604507 | S50: 0.2944834309 | T50: FALSE | U50: 0.2346330788 | V50: FALSE | X50: Asphalt Shingles-Fiberglass | Y50: =U50*'Waste Characterization-MODEL'!O87 -> 802.8205423 | AA50: ='Waste Characterization-MODEL'!O87 -> 3421.6 | AB50: ='Waste Characterization-MODEL'!J87 -> 377.5 | AC50: 0.1204788732 | AD50: 630.104507 | AE50: 1007.604507 | AF50: 0.2944834309 | AG50: 0.2944834309 | AH50: 1007.604507 | AI50: 0 | AJ50: 0 | AK50: 0.1204788732 | AL50: =AH50+AK50*$AI$62 -> 1007.604507 | AM50: 0.2944834309 | AN50: 1007.604507 | AO50: 0.2944834309 | AP50: 0 | AQ50: 0 | AR50: 0.1204788732 | AS50: 1007.604507 | AT50: 0.2944834309 | AU50: 630.104507 | AV50: 425.3205423 | AW50: 802.8205423 | AX50: 0.2346330788 | AY50: Asphalt Shingles-Fiberglass
H51: Clay Bricks | I51: =IF('Waste Characterization-MODEL'!O88=0,0,'Waste Characterization-MODEL'!J88/'Waste Characterization-MODEL'!O88) -> 0.04330369946 | J51: 0.1841549296 | K51: 0.227458629 | P51: 0.227458629 | Q51: ='Waste Characterization-MODEL'!O88 -> 1394.8 | R51: 317.2592958 | S51: 0.227458629 | T51: FALSE | U51: 0.1676082769 | V51: FALSE | X51: Clay Bricks | Y51: =U51*'Waste Characterization-MODEL'!O88 -> 233.7800246 | AA51: ='Waste Characterization-MODEL'!O88 -> 1394.8 | AB51: ='Waste Characterization-MODEL'!J88 -> 60.4 | AC51: 0.04911267606 | AD51: 256.8592958 | AE51: 317.2592958 | AF51: 0.227458629 | AG51: 0.227458629 | AH51: 317.2592958 | AI51: 0 | AJ51: 0 | AK51: 0.04911267606 | AL51: 317.2592958 | AM51: 0.227458629 | AN51: 317.2592958 | AO51: 0.227458629 | AP51: 0 | AQ51: 0 | AR51: 0.04911267606 | AS51: 317.2592958 | AT51: 0.227458629 | AU51: 256.8592958 | AV51: 173.3800246 | AW51: 233.7800246 | AX51: 0.1676082769 | AY51: Clay Bricks *
H52: Ferrous Metals | I52: =IF('Waste Characterization-MODEL'!O89=0,0,'Waste Characterization-MODEL'!J89/'Waste Characterization-MODEL'!O89) -> 0.4300034172 | J52: 0.1841549296 | K52: 0.6141583468 | P52: 0.6141583468 | Q52: ='Waste Characterization-MODEL'!O89 -> 877.9 | R52: 539.1696127 | S52: 0.6141583468 | T52: FALSE | U52: 0.5543079947 | V52: FALSE | X52: Ferrous Metals | Y52: =U52*'Waste Characterization-MODEL'!O89 -> 486.6269886 | AA52: ='Waste Characterization-MODEL'!O89 -> 877.9 | AB52: ='Waste Characterization-MODEL'!J89 -> 377.5 | AC52: 0.03091197183 | AD52: 161.6696127 | AE52: 539.1696127 | AF52: 0.6141583468 | AG52: 0.6141583468 | AH52: 539.1696127 | AI52: 0 | AJ52: 0 | AK52: 0.03091197183 | AL52: 539.1696127 | AM52: 0.6141583468 | AN52: 539.1696127 | AO52: 0.6141583468 | AP52: 0 | AQ52: 0 | AR52: 0.03091197183 | AS52: 539.1696127 | AT52: 0.6141583468 | AU52: 161.6696127 | AV52: 109.1269886 | AW52: 486.6269886 | AX52: 0.5543079947 | AY52: Ferrous Metals
H53: Non Ferrous Metals | I53: =IF('Waste Characterization-MODEL'!O90=0,0,'Waste Characterization-MODEL'!J90/'Waste Characterization-MODEL'!O90) -> 0.2658450704 | J53: 0.1841549296 | K53: 0.45 | P53: 0.45 | Q53: ='Waste Characterization-MODEL'!O90 -> 113.6 | R53: 51.12 | S53: 0.45 | T53: FALSE | U53: 0.3901496479 | V53: FALSE | X53: Non Ferrous Metals | Y53: =U53*'Waste Characterization-MODEL'!O90 -> 44.321 | AA53: ='Waste Characterization-MODEL'!O90 -> 113.6 | AB53: ='Waste Characterization-MODEL'!J90 -> 30.2 | AC53: 0.004 | AD53: 20.92 | AE53: 51.12 | AF53: =IF(AA53=0,"",AE53/AA53) -> 0.45 | AG53: 0.45 | AH53: =AG53*AA53 -> 51.12 | AI53: 0 | AJ53: 0 | AK53: 0.004 | AL53: =AH53+AK53*$AI$62 -> 51.12 | AM53: 0.45 | AN53: 51.12 | AO53: 0.45 | AP53: 0 | AQ53: 0 | AR53: 0.004 | AS53: 51.12 | AT53: 0.45 | AU53: 20.92 | AV53: 14.121 | AW53: 44.321 | AX53: 0.3901496479 | AY53: Non Ferrous Metals
H54: Mixed Plastics | I54: =IF('Waste Characterization-MODEL'!O91=0,0,'Waste Characterization-MODEL'!J91/'Waste Characterization-MODEL'!O91) -> 0.2406100615 | J54: 0.1841549296 | K54: 0.424764991 | P54: 0.424764991 | Q54: ='Waste Characterization-MODEL'!O91 -> 219.65 | R54: 93.29963028 | S54: 0.424764991 | T54: FALSE | U54: 0.3649146389 | V54: FALSE | X54: Mixed Plastics | Y54: =U54*'Waste Characterization-MODEL'!O91 -> 80.15350044 | AA54: ='Waste Characterization-MODEL'!O91 -> 219.65 | AB54: ='Waste Characterization-MODEL'!J91 -> 52.85 | AC54: 0.00773415493 | AD54: 40.44963028 | AE54: 93.29963028 | AF54: 0.424764991 | AG54: 0.424764991 | AH54: 93.29963028 | AI54: =AE54-AH54 -> 0 | AJ54: 0 | AK54: 0.00773415493 | AL54: =AH54+AK54*$AI$62 -> 93.29963028 | AM54: 0.424764991 | AN54: 93.29963028 | AO54: 0.424764991 | AP54: 0 | AQ54: 0 | AR54: 0.00773415493 | AS54: 93.29963028 | AT54: 0.424764991 | AU54: 40.44963028 | AV54: 27.30350044 | AW54: 80.15350044 | AX54: 0.3649146389 | AY54: Mixed Plastics
H55: Cardboard | I55: =IF('Waste Characterization-MODEL'!O92=0,0,'Waste Characterization-MODEL'!J92/'Waste Characterization-MODEL'!O92) -> 0.351981352 | J55: 0.1841549296 | K55: 0.5361362816 | P55: 0.5361362816 | Q55: ='Waste Characterization-MODEL'!O92 -> 257.4 | R55: 138.0014789 | S55: 0.5361362816 | T55: FALSE | U55: 0.4762859294 | V55: FALSE | X55: Cardboard | Y55: =U55*'Waste Characterization-MODEL'!O92 -> 122.5959982 | AA55: ='Waste Characterization-MODEL'!O92 -> 257.4 | AB55: ='Waste Characterization-MODEL'!J92 -> 90.6 | AC55: 0.009063380282 | AD55: 47.40147887 | AE55: 138.0014789 | AF55: 0.5361362816 | AG55: 0.5361362816 | AH55: 138.0014789 | AI55: 0 | AJ55: 0 | AK55: 0.009063380282 | AL55: 138.0014789 | AM55: 0.5361362816 | AN55: 138.0014789 | AO55: 0.5361362816 | AP55: 0 | AQ55: 0 | AR55: 0.009063380282 | AS55: 138.0014789 | AT55: 0.5361362816 | AU55: 47.40147887 | AV55: 31.99599824 | AW55: 122.5959982 | AX55: 0.4762859294 | AY55: Cardboard
H56: Carpet | I56: =IF('Waste Characterization-MODEL'!O93=0,0,'Waste Characterization-MODEL'!J93/'Waste Characterization-MODEL'!O93) -> 0.05691669808 | J56: 0.1841549296 | K56: 0.2410716277 | P56: 0.2410716277 | Q56: ='Waste Characterization-MODEL'!O93 -> 265.3 | R56: 63.95630282 | S56: 0.2410716277 | T56: FALSE | U56: =IF(K56=I56,K56,IF(K56="",I56,AX56)) -> 0.1812212755 | V56: FALSE | X56: Carpet | Y56: =U56*'Waste Characterization-MODEL'!O93 -> 48.0780044 | AA56: ='Waste Characterization-MODEL'!O93 -> 265.3 | AB56: ='Waste Characterization-MODEL'!J93 -> 15.1 | AC56: 0.009341549296 | AD56: 48.85630282 | AE56: 63.95630282 | AF56: 0.2410716277 | AG56: 0.2410716277 | AH56: 63.95630282 | AI56: 0 | AJ56: 0 | AK56: 0.009341549296 | AL56: 63.95630282 | AM56: 0.2410716277 | AN56: 63.95630282 | AO56: 0.2410716277 | AP56: 0 | AQ56: 0 | AR56: 0.009341549296 | AS56: 63.95630282 | AT56: 0.2410716277 | AU56: 48.85630282 | AV56: 32.9780044 | AW56: 48.0780044 | AX56: 0.1812212755 | AY56: Carpet
B57: HIDE | H57: Vinyl Flooring | J57: 1 | K57: 1 | P57: 0 | Q57: ='Waste Characterization-MODEL'!O94 -> 0 | R57: 0 | S57: 0 | T57: FALSE | U57: 0 | V57: FALSE | X57: Vinyl Flooring | Y57: =U57*'Waste Characterization-MODEL'!O94 -> 0 | AA57: ='Waste Characterization-MODEL'!O94 -> 0 | AB57: ='Waste Characterization-MODEL'!J94 -> 0 | AC57: 0 | AD57: 0 | AE57: 0 | AG57: 1 | AH57: 0 | AI57: 0 | AJ57: 0 | AK57: 0 | AL57: 0 | AM57: 0 | AN57: 0 | AO57: 0 | AP57: 0 | AQ57: 0 | AR57: 0 | AS57: 0 | AT57: 0 | AU57: 0 | AV57: 0 | AW57: 0 | AX57: 0 | AY57: Vinyl Flooring
B58: HIDE | H58: PVC | J58: 1 | K58: 1 | P58: 0 | Q58: ='Waste Characterization-MODEL'!O95 -> 0 | R58: 0 | S58: 0 | T58: FALSE | U58: 0 | V58: FALSE | X58: PVC | Y58: =U58*'Waste Characterization-MODEL'!O95 -> 0 | AA58: ='Waste Characterization-MODEL'!O95 -> 0 | AB58: ='Waste Characterization-MODEL'!J95 -> 0 | AC58: 0 | AD58: 0 | AE58: 0 | AG58: 1 | AH58: 0 | AI58: 0 | AJ58: 0 | AK58: 0 | AL58: 0 | AM58: 0 | AN58: 0 | AO58: 0 | AP58: 0 | AQ58: 0 | AR58: 0 | AS58: 0 | AT58: 0 | AU58: 0 | AV58: 0 | AW58: 0 | AX58: 0 | AY58: PVC
B59: HIDE | H59: Fiberglass Insulation | J59: 1 | K59: 1 | P59: 0 | Q59: ='Waste Characterization-MODEL'!O96 -> 0 | R59: 0 | S59: 0 | T59: FALSE | U59: 0 | V59: FALSE | X59: Fiberglass Insulation | Y59: =U59*'Waste Characterization-MODEL'!O96 -> 0 | AA59: ='Waste Characterization-MODEL'!O96 -> 0 | AB59: ='Waste Characterization-MODEL'!J96 -> 0 | AC59: 0 | AD59: 0 | AE59: 0 | AG59: 1 | AH59: 0 | AI59: 0 | AJ59: 0 | AK59: 0 | AL59: 0 | AM59: 0 | AN59: 0 | AO59: 0 | AP59: 0 | AQ59: 0 | AR59: 0 | AS59: 0 | AT59: 0 | AU59: 0 | AV59: 0 | AW59: 0 | AX59: 0 | AY59: Fiberglass Insulation
B60: HIDE | H60: Wood Flooring, Cabinets, Doors | J60: 1 | K60: 1 | P60: 0 | Q60: ='Waste Characterization-MODEL'!O97 -> 0 | R60: 0 | S60: 0 | T60: FALSE | U60: 0 | V60: FALSE | X60: Wood Flooring, Cabinets, Doors | Y60: =U60*'Waste Characterization-MODEL'!O97 -> 0 | AA60: ='Waste Characterization-MODEL'!O97 -> 0 | AB60: ='Waste Characterization-MODEL'!J97 -> 0 | AC60: 0 | AD60: 0 | AE60: 0 | AG60: 1 | AH60: 0 | AI60: 0 | AJ60: 0 | AK60: 0 | AL60: 0 | AM60: 0 | AN60: 0 | AO60: 0 | AP60: 0 | AQ60: 0 | AR60: 0 | AS60: 0 | AT60: 0 | AU60: 0 | AV60: 0 | AW60: 0 | AX60: 0 | AY60: Wood Flooring, Cabinets, Doors
H61: Other / Undifferentiated | I61: =IF('Waste Characterization-MODEL'!O98=0,0,'Waste Characterization-MODEL'!J98/'Waste Characterization-MODEL'!O98) -> 0.02595708536 | J61: 0.1841549296 | K61: 0.2101120149 | P61: 0.2101120149 | Q61: ='Waste Characterization-MODEL'!O98 -> 4944.7 | R61: 1038.94088 | S61: 0.2101120149 | T61: FALSE | U61: 0.1502616628 | V61: FALSE | X61: Other | Y61: =U61*'Waste Characterization-MODEL'!O98 -> 742.9988442 | AA61: ='Waste Characterization-MODEL'!O98 -> 4944.7 | AB61: ='Waste Characterization-MODEL'!J98 -> 128.35 | AC61: 0.1741091549 | AD61: 910.5908803 | AE61: 1038.94088 | AF61: 0.2101120149 | AG61: 0.2101120149 | AH61: 1038.94088 | AI61: 0 | AJ61: 0 | AK61: 0.1741091549 | AL61: 1038.94088 | AM61: 0.2101120149 | AN61: 1038.94088 | AO61: 0.2101120149 | AP61: 0 | AQ61: 0 | AR61: 0.1741091549 | AS61: 1038.94088 | AT61: 0.2101120149 | AU61: 910.5908803 | AV61: 614.6488442 | AW61: 742.9988442 | AX61: 0.1502616628 | AY61: Other
H62: Average Diversion Rate Across Materials (percent) | I62: =IF(ISERROR(I63/I64),"",I63/I64) -> 0.2953834116 | J62: 0.2046165884 | K62: =IF(CDRecy_OverallRecyRateTarget_calc=0,"",CDRecy_OverallRecyRateTarget_calc) -> 0.5 | P62: TOTAL | Q62: ='Waste Characterization-MODEL'!O99 -> 28400 | R62: =SUM(R45:R61) -> 12780 | S62: =IF(R62=0,0,R62/Q62) -> 0.45 | T62: FALSE | U62: 0.3901496479 | V62: FALSE | X62: TOTAL | Y62: =SUM(Y45:Y61) -> 11080.25 | AA62: ='Waste Characterization-MODEL'!O99 -> 28400 | AB62: ='Waste Characterization-MODEL'!J99 -> 7550 | AC62: 1 | AD62: =SUM(AD45:AD61) -> 5230 | AE62: =SUM(AE45:AE61) -> 12780 | AF62: 0.45 | AH62: =SUM(AH45:AH61) -> 12780 | AI62: =SUM(AI45:AI61) -> 0 | AJ62: =SUM(AJ45:AJ61) -> 0 | AK62: =SUM(AK45:AK61) -> 1 | AL62: =SUM(AL45:AL61) -> 12780 | AM62: 0.45 | AN62: =SUM(AN45:AN61) -> 12780 | AO62: =AN62/AA62 -> 0.45 | AP62: =SUM(AP45:AP61) -> 0 | AQ62: =SUM(AQ45:AQ61) -> 0 | AR62: =SUM(AR45:AR61) -> 1 | AS62: =SUM(AS45:AS61) -> 12780 | AT62: 0.45 | AU62: =SUM(AU45:AU61) -> 5230 | AV62: =SUM(AV45:AV61) -> 3530.25 | AW62: =SUM(AW45:AW61) -> 11080.25 | AX62: 0.3901496479
H63: Total C&D Debris Recycled or Reused (tons) | I63: ='Waste Characterization-MODEL'!J99 -> 7550 | J63: =IF(K63=0,"",K63-I63) -> 5230 | K63: =AA36 -> 12780 | S63: =IF(ISERROR(R62/AA34),0,R62/AA34) -> 0.5 | T63: <- Calculated overall recycling rate, after Step 1 penetration rate | AH63: =AH62/AA62 -> 0.45 | AS63: =AS62-AA32 -> 5230 | AW63: =AW62-AA32 -> 3530.25
B64: HIDE | H64: Total C&D Waste Generated | I64: =AA34 -> 25560 | J64: =I64 -> 25560 | K64: =J64 -> 25560
B65: HIDE | H65: % of C&D Waste that is Recycled | I65: =IF(ISERROR(I63/I64),0,I63/I64) -> 0.2953834116 | J65: =IF(ISERROR(K63/J64),0,K63/J64) -> 0.5 | K65: =IF(J65="","",J65-I65) -> 0.2046165884
H66: 1 Percentages in table can be adjusted to better reflect projected recycling rates for a given material(s).
H67: =IF(R39,"WARNING: You have entered a diversion rate value that is >100%. Please revise your inputs so that all diversion rates are less than or equal to 100%.",IF(R40,"WARNING: You have entered a diversion rate value or a penetration rate that produces a target diversion rate that is less than a current diversion rate value. " & "Please revise your inputs so that all target diversion rates are greater than or equal to the current diversion rates. " & "(Note: recycling rates are rounded to the nearest whole number [e.g., a current recyling rate of 26.4% for concrete is displayed as 26%].")) -> FALSE
C69: STEP 3. [Capture Efficiency] Estimate recovery rate of C&D delivered to processing facilities and the amount of C&D debris used as Alternative Daily Cover (ADC) on landfills. 1
E71: Assume a | F71: 0.75 | G71: recovery rate at C&D processing facilities.2 | J71: ="Assumption #" & TEXT(Assumptions!C82,"0") -> Assumption #44 | Q71: Recovery rate <100%? | R71: =IF(F71>1,TRUE,FALSE) -> FALSE
E73: Assume | F73: 0.1 | G73: of C&D residuals are used as ADC on landfills.3 | Q73: ADC rate <100%? | R73: =IF(F73>1,TRUE,FALSE) -> FALSE
F74: If no value is entered, 0% is assumed
E76: 1 These percentages are applied to the incremental tonnage targeted for recycling / reuse.
E77: 2 A portion of C&D debris delivered to processing facilities is not recycled due to contamination or lack of markets.
E78: 3 In some areas, C&D residuals (fines) are beneficially used as ADC. ADC refers to materials other than soil used as an overlay on an exposed landfill face. For purposes of this tool’s calculations, C&D residuals used as ADC should be excluded from the C&D recovery rate since EPA’s WARM emission factors do not apply to ADC.
C80: Summary of Results
I82: Percentage | J82: Tonnage
H83: Baseline C&D Recycling | I83: =IF(ISERROR(CD_recycled/CD_total),0,CD_recycled/CD_total) -> 0.2658450704 | J83: =CD_recycled -> 7550
H84: Increase in C&D Recycling or Reuse | I84: =IF(ISERROR(AX62-I83),0,AX62-I83) -> 0.1243045775 | J84: =CDRecy_TotalIncrementalTonsRecycled -> 3530.25 | K84: Assumption #48
H85: Total C&D Recycling or Reuse After Implementation | I85: =SUM(I83:I84) -> 0.3901496479 | J85: =SUM(J83:J84) -> 11080.25

Sheet Program Implementation Summary
D3: Policy & Program Implementation Summary and Notes
C4: This table displays the assumptions you entered for policy & program implementation. You may use the space available for additional details on the policies & programs or assumptions entered.
C6: Assumptions for This Scenario (by Sector and Measure) | E6: Optional Notes for This Scenario (fill in)
C7: =PAYT_SourceReduction -> 0.06 | D7: Single-Family Home PAYT source reduction
C8: =PAYT_Recycling -> 0.06 | D8: Single-Family Home PAYT recycling increase
C9: =PAYT_Composting -> 0.05 | D9: Single-Family Home PAYT composting increase
C10: ='Recycling (Other)'!W19 -> 0.08 | D10: Single-Family Home Recycling (Other) measure(s) recycling increase | E10: Along with PAYT, this scenario models switching from bins to carts and implement other streamlining expected to increase the recycling rate.
C11: =FoodScrapsCollection_Voluntary_RateIncrease+FoodScrapsCollection_Mandatory_RateIncrease -> 0.15 | D11: Single-Family Home Food Waste Collection composting increase | E11: Assumes low-end default for increase in food waste composting from expanding curbside collection program to include a green bin for food waste.
C12: =MultifamRecy_RateIncrease -> 0 | D12: Multi-Family Home recycling increase
C13: ='Commercial Diversion'!Z118 -> 0.156177412 | D13: Commercial Diversion recycling increase | E13: Looking at requiring all businesses to subsribe to recycling collection service
C14: ='Commercial Diversion'!AA118 -> 0.1026280678 | D14: Commercial Diversion composting increase | E14: This increase represents a 20% increase in food waste composting from implementing a voluntary sign-up program for food waste collection. (Note: including existing yard trimmings diversion, this would constitute an overall 10% increase in organics diversion.)
C15: ='C&D Recycling'!I84 -> 0.1243045775 | D15: Construction & Demolition recycling / reuse increase | E15: Assumes adopting a local ordinance with a requirement for 50% C&D debris diversion from landfill
D16: Other Notes: | E16: 1. For single-family home waste characterization, used the U.S. defaults for recycled materials. Adjusted the U.S. defaults for food waste and yard trimmings to more accurately reflect local estimates. 2. For C&D total tonnage, only building-related C&D debris is included in the baseline year.

Sheet Results
U1: HIDE | V1: HIDE | W1: HIDE | X1: HIDE | Y1: HIDE | Z1: HIDE
B2: Results
B3: Note: formatting issues might occur with the charts below if data are missing or entered incorrectly on previous tabs
B4: ="Program implementation is assumed to begin one year following the Base Year of " & TEXT(Base_Yr,"0") -> Program implementation is assumed to begin one year following the Base Year of 2016
C5: ="WARNING: A value you entered on the " & W6 & " tab has produced a negative tonnage number or a percentage value greater than 100%. Please review your entries to make sure there are no errors or error messages on any tab." -> WARNING: A value you entered on the tab has produced a negative tonnage number or a percentage value greater than 100%. Please review your entries to make sure there are no errors or error messages on any tab. | V5: Error on any sheet? | W5: =IF(OR(#REF!,W10,W11,W12,W13,W14,W15,W16),TRUE,FALSE) ->  | X5: selection: | Y5: =UserSelection_TonsPercent -> Percent
V6: Error Tab: | W6: =IF(ISERROR(MATCH(TRUE,W7:W16,0)),"",OFFSET(V6,MATCH(TRUE,W7:W16,0),0)) ->  | Y6: ='Waste Characterization-Tons'!X7 -> FALSE | Z6: Tons tab
D8: Tonnage Reductions | J8: Greenhouse Gas Reductions*
C10: 10-Year Accumulative Benefits | V10: Waste Characterization-Percent | W10: =IF($Y$5="Percent",#REF!,FALSE) -> 
V11: PAYT | W11: =PAYT!X3 -> FALSE
V12: Single-Family Recycling | W12: ='Recycling (Other)'!V18 -> FALSE
C13: Tons | J13: GHGs | V13: Food Waste Collection | W13: ='Food Waste Collection'!V5 -> FALSE
V14: Multi-Family Recycling | W14: ='Multi-Family Recycling'!V5 -> FALSE
C15: Over 10 years, these measures would result in: | J15: Over 10 years, these measures would result in: | V15: Commercial Diversion | W15: ='Commercial Diversion'!X4 -> FALSE
D16: Additional diversion of | E16: =SUM('Annual Calcs'!AF867:AM867,'Annual Calcs'!AF904:AM904,'Annual Calcs'!AF927:AM927) + IF(MFH_ResorCom="commercial",SUM('Annual Calcs'!AF891:AM891)) -> 127267.23 | F16: total tons of waste | K16: Total reductions of | L16: =-SUM('Annual Calcs'!AO867:AV867,'Annual Calcs'!AO904:AV904,'Annual Calcs'!AO927:AV927) - IF(MFH_ResorCom="commercial",SUM('Annual Calcs'!AO891:AV891)) -> 155089.1 | M16: metric tons of life-cycle CO2e | V16: C&D Recycling | W16: ='C&D Recycling'!R4 -> FALSE
E17: ...compared to a Business as Usual baseline of:
E18: =TEXT(SUM(MSW_recycled,MSW_composted,CD_recycled),"0,0") -> 24,152 | F18: total tons of waste diverted
D19: out of: | E19: =TEXT(SUM('Annual Calcs'!L867,'Annual Calcs'!L904,'Annual Calcs'!L927),"0,0") -> 839,006 | F19: total tons of waste generated
D21: Source reduction (from PAYT) of | E21: ='Annual Calcs'!AF867+'Annual Calcs'!AI867+'Annual Calcs'!AL867+'Annual Calcs'!AM867 -> 12073.02 | F21: tons of residential waste | K21: GHG reductions due to source reduction (from PAYT) of | L21: =-SUM('Annual Calcs'!AO867,'Annual Calcs'!AR867,'Annual Calcs'!AU867,'Annual Calcs'!AV867) -> 23316.18 | M21: metric tons of life-cycle CO2e in the residential waste sector
E22: ='Annual Calcs'!AF904+'Annual Calcs'!AI904+'Annual Calcs'!AL904+'Annual Calcs'!AM904 -> 0 | F22: tons of commercial waste | L22: =-SUM('Annual Calcs'!AO904,'Annual Calcs'!AR904,'Annual Calcs'!AU904,'Annual Calcs'!AV904) -> 0 | M22: metric tons of life-cycle CO2e in the commercial waste sector
E23: ='Annual Calcs'!AF927+'Annual Calcs'!AI927+'Annual Calcs'!AL927+'Annual Calcs'!AM927 -> 0 | F23: tons of C&D waste | L23: =-SUM('Annual Calcs'!AO927,'Annual Calcs'!AR927,'Annual Calcs'!AU927,'Annual Calcs'!AV927) -> 0 | M23: metric tons of life-cycle CO2e in the C&D waste sector
E24: =SUM(E21:E23) -> 12073.02 | F24: total tons | L24: =SUM(L21:L23) -> 23316.18 | M24: total metric tons of life-cycle CO2e
D26: Increased recycling of | E26: ='Annual Calcs'!AG867+'Annual Calcs'!AJ867 -> 24973.71 | F26: tons of residential waste | K26: GHG reductions due to increased recycling of | L26: =-SUM('Annual Calcs'!AP867,'Annual Calcs'!AS867) -> 46665.93 | M26: metric tons of life-cycle CO2e in the residential waste sector
E27: ='Annual Calcs'!AG904+'Annual Calcs'!AJ904 -> 29411.68 | F27: tons of commercial waste | L27: =-SUM('Annual Calcs'!AP904,'Annual Calcs'!AS904) -> 62025.68 | M27: metric tons of life-cycle CO2e in the commercial waste sector
E28: ='Annual Calcs'!AG927+'Annual Calcs'!AJ927 -> 44291.94 | F28: tons of C&D waste | L28: =-SUM('Annual Calcs'!AP927,'Annual Calcs'!AS927) -> 19183.25 | M28: metric tons of life-cycle CO2e in the C&D waste sector
E29: =SUM(E26:E28) -> 98677.33 | F29: total tons | L29: =SUM(L26:L28) -> 127874.86 | M29: total metric tons of life-cycle CO2e
D31: Increased composting of | E31: ='Annual Calcs'!AH867+'Annual Calcs'!AK867 -> 12066.13 | F31: tons of residential waste | K31: GHG reductions due to increased composting of | L31: =-SUM('Annual Calcs'!AQ867,'Annual Calcs'!AT867) -> 1240.97 | M31: metric tons of life-cycle CO2e in the residential waste sector
E32: ='Annual Calcs'!AH904+'Annual Calcs'!AK904 -> 4450.75 | F32: tons of commercial waste | L32: =-SUM('Annual Calcs'!AQ904,'Annual Calcs'!AT904) -> 2657.09 | M32: metric tons of life-cycle CO2e in the commercial waste sector
E33: ='Annual Calcs'!AH927+'Annual Calcs'!AK927 -> 0 | F33: tons of C&D waste | L33: =-SUM('Annual Calcs'!AQ927,'Annual Calcs'!AT927) -> 0 | M33: metric tons of life-cycle CO2e in the C&D waste sector
E34: =SUM(E31:E33) -> 16516.88 | F34: total tons | L34: =SUM(L31:L33) -> 3898.06 | M34: total metric tons of life-cycle CO2e
F69: Tons Diverted | M69: GHG reductions
D70: Source Reduction (tons) | F70: Increased Recycling (tons) | H70: Increased Composting (tons) | K70: Source Reduction (MTCO2e) | M70: Increased Recycling (MTCO2e) | O70: Increased Composting (MTCO2e)
D71: ='Annual Calcs'!D942 -> 12073.02 | F71: ='Annual Calcs'!D943 -> 24973.45 | H71: ='Annual Calcs'!D944 -> 12066.13 | K71: ='Annual Calcs'!D961 -> 23316.18 | M71: ='Annual Calcs'!D962 -> 46665.93 | O71: ='Annual Calcs'!D963 -> 1240.97
D72: N/A | F72: ='Annual Calcs'!D947 -> 0.26 | H72: N/A | K72: N/A | M72: ='Annual Calcs'!D966 -> 0 | O72: N/A
D73: N/A | F73: ='Annual Calcs'!D951 -> 29411.68 | H73: ='Annual Calcs'!D952 -> 4450.75 | K73: N/A | M73: ='Annual Calcs'!D970 -> 62025.68 | O73: ='Annual Calcs'!D971 -> 2657.09
D74: N/A | F74: ='Annual Calcs'!D955 -> 44291.94 | H74: N/A | K74: N/A | M74: ='Annual Calcs'!D974 -> 19183.25 | O74: N/A
D76: =SUM(D71:D74) -> 12073.02 | E76: Total | F76: =SUM(F71:F74) -> 98677.33 | G76: Total | H76: =SUM(H71:H74) -> 16516.88 | I76: Total | K76: =SUM(K71:K74) -> 23316.18 | L76: Total | M76: =SUM(M71:M74) -> 127874.86 | N76: Total | O76: =SUM(O71:O74) -> 3898.06 | P76: Total
C82: ='Annual Calcs'!C981 -> Total New Tons Diverted by Sector | K82: ='Annual Calcs'!C987 -> Total MTCO2e Saved by Sector
F86: Legend: Tons Diverted | M86: Legend: MTCO2e Saved
F88: ='Annual Calcs'!D982 -> 49112.6 | G88: Single-Family Homes | M88: ='Annual Calcs'!D988 -> 71223.08 | N88: Single-Family Homes
F89: ='Annual Calcs'!D983 -> 0.26 | G89: Multi-Family Homes | M89: ='Annual Calcs'!D989 -> 0 | N89: Multi-Family Homes
F90: ='Annual Calcs'!D984 -> 33862.43 | G90: Commercial | M90: ='Annual Calcs'!D990 -> 64682.77 | N90: Commercial
F91: ='Annual Calcs'!D985 -> 44291.94 | G91: C&D | M91: ='Annual Calcs'!D991 -> 19183.25 | N91: C&D
F93: =SUM(F88:F91) -> 127267.23 | G93: Total Tons Diverted | M93: =SUM(M88:M91) -> 155089.1 | N93: Total MTCO2e Saved
C103: Annual Benefits
O135: Annual GHG | P135: Cumulative GHG
C136: Tons Landfilled | E136: Tons Combusted | G136: Tons Recycled | I136: Tons Composted | O136: Reductions | P136: Reductions
B137: Year | C137: BAU | D137: With Strategies | E137: BAU | F137: With Strategies | G137: BAU | H137: With Strategies | I137: BAU | J137: With Strategies | N137: Year | O137: (MTCO2e) | P137: (MTCO2e)
B138: ='Annual Calcs'!C1075 -> 2016 | C138: ='Annual Calcs'!J1031 -> 46740.00072 | D138: ='Annual Calcs'!K1031 -> N/A* | E138: ='Annual Calcs'!H1031 -> 5630.355972 | F138: ='Annual Calcs'!I1031 -> N/A* | G138: ='Annual Calcs'!D1031 -> 20061.89873 | H138: ='Annual Calcs'!E1031 -> N/A* | I138: ='Annual Calcs'!F1031 -> 4090.433542 | J138: ='Annual Calcs'!G1031 -> N/A* | N138: ='Annual Calcs'!C1016 -> 2016 | O138: ='Annual Calcs'!D1016 -> N/A* | P138: ='Annual Calcs'!E1016 -> N/A*
B139: ='Annual Calcs'!C1076 -> 2017 | C139: ='Annual Calcs'!J1032 -> 47606.13056 | D139: ='Annual Calcs'!K1032 -> 37468.58958 | E139: ='Annual Calcs'!H1032 -> 5633.45837 | F139: ='Annual Calcs'!I1032 -> 4205.916335 | G139: ='Annual Calcs'!D1032 -> 20377.26173 | H139: ='Annual Calcs'!E1032 -> 29097.94442 | I139: ='Annual Calcs'!F1032 -> 4092.687423 | J139: ='Annual Calcs'!G1032 -> 5613.359186 | N139: ='Annual Calcs'!C1017 -> 2017 | O139: ='Annual Calcs'!D1017 -> 15148.37 | P139: ='Annual Calcs'!E1017 -> 15148.37
B140: ='Annual Calcs'!C1077 -> 2018 | C140: ='Annual Calcs'!J1033 -> 48507.0727 | D140: ='Annual Calcs'!K1033 -> 38215.84283 | E140: ='Annual Calcs'!H1033 -> 5636.562477 | F140: ='Annual Calcs'!I1033 -> 4208.233848 | G140: ='Annual Calcs'!D1033 -> 20705.23157 | H140: ='Annual Calcs'!E1033 -> 29578.82244 | I140: ='Annual Calcs'!F1033 -> 4094.942546 | J140: ='Annual Calcs'!G1033 -> 5616.452219 | N140: ='Annual Calcs'!C1018 -> 2018 | O140: ='Annual Calcs'!D1018 -> 15220.87 | P140: ='Annual Calcs'!E1018 -> 30369.24
B141: ='Annual Calcs'!C1078 -> 2019 | C141: ='Annual Calcs'!J1034 -> 49444.24914 | D141: ='Annual Calcs'!K1034 -> 38993.19469 | E141: ='Annual Calcs'!H1034 -> 5639.668294 | F141: ='Annual Calcs'!I1034 -> 4210.552639 | G141: ='Annual Calcs'!D1034 -> 21046.32318 | H141: ='Annual Calcs'!E1034 -> 30078.9575 | I141: ='Annual Calcs'!F1034 -> 4097.198911 | J141: ='Annual Calcs'!G1034 -> 5619.546955 | N141: ='Annual Calcs'!C1019 -> 2019 | O141: ='Annual Calcs'!D1019 -> 15296.01 | P141: ='Annual Calcs'!E1019 -> 45665.25
B142: ='Annual Calcs'!C1079 -> 2020 | C142: ='Annual Calcs'!J1035 -> 50419.13997 | D142: ='Annual Calcs'!K1035 -> 39801.87464 | E142: ='Annual Calcs'!H1035 -> 5642.775823 | F142: ='Annual Calcs'!I1035 -> 4212.872707 | G142: ='Annual Calcs'!D1035 -> 21401.07251 | H142: ='Annual Calcs'!E1035 -> 30599.13615 | I142: ='Annual Calcs'!F1035 -> 4099.45652 | J142: ='Annual Calcs'!G1035 -> 5622.643397 | N142: ='Annual Calcs'!C1020 -> 2020 | O142: ='Annual Calcs'!D1020 -> 15373.94 | P142: ='Annual Calcs'!E1020 -> 61039.19
B143: ='Annual Calcs'!C1080 -> 2021 | C143: ='Annual Calcs'!J1036 -> 51433.28578 | D143: ='Annual Calcs'!K1036 -> 40643.16241 | E143: ='Annual Calcs'!H1036 -> 5645.885064 | F143: ='Annual Calcs'!I1036 -> 4215.194053 | G143: ='Annual Calcs'!D1036 -> 21770.03743 | H143: ='Annual Calcs'!E1036 -> 31140.1771 | I143: ='Annual Calcs'!F1036 -> 4101.715373 | J143: ='Annual Calcs'!G1036 -> 5625.741545 | N143: ='Annual Calcs'!C1021 -> 2021 | O143: ='Annual Calcs'!D1021 -> 15454.74 | P143: ='Annual Calcs'!E1021 -> 76493.93
B144: ='Annual Calcs'!C1081 -> 2022 | C144: ='Annual Calcs'!J1037 -> 52488.29006 | D144: ='Annual Calcs'!K1037 -> 41518.39002 | E144: ='Annual Calcs'!H1037 -> 5648.996019 | F144: ='Annual Calcs'!I1037 -> 4217.516678 | G144: ='Annual Calcs'!D1037 -> 22153.79858 | H144: ='Annual Calcs'!E1037 -> 31702.9325 | I144: ='Annual Calcs'!F1037 -> 4103.97547 | J144: ='Annual Calcs'!G1037 -> 5628.8414 | N144: ='Annual Calcs'!C1022 -> 2022 | O144: ='Annual Calcs'!D1022 -> 15538.56 | P144: ='Annual Calcs'!E1022 -> 92032.49
B145: ='Annual Calcs'!C1082 -> 2023 | C145: ='Annual Calcs'!J1038 -> 53585.82187 | D145: ='Annual Calcs'!K1038 -> 42428.9439 | E145: ='Annual Calcs'!H1038 -> 5652.108687 | F145: ='Annual Calcs'!I1038 -> 4219.840584 | G145: ='Annual Calcs'!D1038 -> 22552.96034 | H145: ='Annual Calcs'!E1038 -> 32288.28932 | I145: ='Annual Calcs'!F1038 -> 4106.236812 | J145: ='Annual Calcs'!G1038 -> 5631.942963 | N145: ='Annual Calcs'!C1023 -> 2023 | O145: ='Annual Calcs'!D1023 -> 15625.48 | P145: ='Annual Calcs'!E1023 -> 107657.97
B146: ='Annual Calcs'!C1083 -> 2024 | C146: ='Annual Calcs'!J1039 -> 54727.61841 | D146: ='Annual Calcs'!K1039 -> 43376.26713 | E146: ='Annual Calcs'!H1039 -> 5655.223071 | F146: ='Annual Calcs'!I1039 -> 4222.165769 | G146: ='Annual Calcs'!D1039 -> 22968.15177 | H146: ='Annual Calcs'!E1039 -> 32897.17077 | I146: ='Annual Calcs'!F1039 -> 4108.499401 | J146: ='Annual Calcs'!G1039 -> 5635.046235 | N146: ='Annual Calcs'!C1024 -> 2024 | O146: ='Annual Calcs'!D1024 -> 15715.66 | P146: ='Annual Calcs'!E1024 -> 123373.63
B147: ='Annual Calcs'!C1084 -> 2025 | C147: ='Annual Calcs'!J1040 -> 55915.48788 | D147: ='Annual Calcs'!K1040 -> 44361.86175 | E147: ='Annual Calcs'!H1040 -> 5658.339171 | F147: ='Annual Calcs'!I1040 -> 4224.492236 | G147: ='Annual Calcs'!D1040 -> 23400.02764 | H147: ='Annual Calcs'!E1040 -> 33530.53776 | I147: ='Annual Calcs'!F1040 -> 4110.763236 | J147: ='Annual Calcs'!G1040 -> 5638.151217 | N147: ='Annual Calcs'!C1025 -> 2025 | O147: ='Annual Calcs'!D1025 -> 15809.21 | P147: ='Annual Calcs'!E1025 -> 139182.84
B148: ='Annual Calcs'!C1085 -> 2026 | C148: ='Annual Calcs'!J1041 -> 57151.31236 | D148: ='Annual Calcs'!K1041 -> 45387.29117 | E148: ='Annual Calcs'!H1041 -> 5661.456988 | F148: ='Annual Calcs'!I1041 -> 4226.819985 | G148: ='Annual Calcs'!D1041 -> 23849.26946 | H148: ='Annual Calcs'!E1041 -> 34189.3905 | I148: ='Annual Calcs'!F1041 -> 4113.028319 | J148: ='Annual Calcs'!G1041 -> 5641.25791 | N148: ='Annual Calcs'!C1026 -> 2026 | O148: ='Annual Calcs'!D1026 -> 15906.29 | P148: ='Annual Calcs'!E1026 -> 155089.13
C153: =IF(End_Yr="","End Year",End_Yr) & " Benefits" -> 2026 Benefits
D155: Business as Usual | I155: With Strategies Implemented | N155: Percent Change
D156: Disposed or Incinerated | F156: Diverted | H156: Total Generated | I156: Disposed or Incinerated | K156: Diverted | M156: Total Generated | N156: Disposed or Incinerated | P156: Diverted | R156: Total Generated
D157: Tons Landfilled | E157: Tons Combusted | F157: Tons Recycled | G157: Tons Composted | H157: Tons Generated | I157: Tons Landfilled | J157: Tons Combusted | K157: Tons Recycled | L157: Tons Composted | M157: Tons Generated | N157: Tons Landfilled | O157: Tons Combusted | P157: Tons Recycled | Q157: Tons Composted | R157: Tons Generated
C158: Single-Family Homes | D158: ='Annual Calcs'!D802 -> 11100.47608 | E158: ='Annual Calcs'!J802 -> 2599.514612 | F158: ='Annual Calcs'!F802 -> 6345.861922 | G158: ='Annual Calcs'!H802 -> 2125.940178 | H158: ='Annual Calcs'!L802 -> 22171.79279 | I158: ='Annual Calcs'!R802 -> 7418.521392 | J158: ='Annual Calcs'!X802 -> 1746.323261 | K158: ='Annual Calcs'!T802 -> 8468.650138 | L158: ='Annual Calcs'!V802 -> 3207.99043 | M158: ='Annual Calcs'!Z802 -> 20841.48522 | N158: =IF(D158=0,0,(I158-D158)/D158) -> -0.3316934029 | O158: -0.3282117929 | P158: 0.334515349 | Q158: 0.5089749296 | R158: -0.06
C159: Multi-Family Homes | D159: ='Annual Calcs'!D814 -> 2436.688987 | E159: ='Annual Calcs'!J814 -> 344.44344 | F159: ='Annual Calcs'!F814 -> 196.26378 | G159: ='Annual Calcs'!H814 -> 12.83263793 | H159: ='Annual Calcs'!L814 -> 2990.228845 | I159: ='Annual Calcs'!R814 -> 2436.667002 | J159: ='Annual Calcs'!X814 -> 344.4394295 | K159: ='Annual Calcs'!T814 -> 196.2897763 | L159: ='Annual Calcs'!V814 -> 12.83263793 | M159: ='Annual Calcs'!Z814 -> 2990.228845 | N159: -9.022789731e-06 | O159: -1.164342625e-05 | P159: 0.0001324555868 | Q159: 0 | R159: 0
C160: Commercial | D160: ='Annual Calcs'!D827 -> 12495.8471 | E160: ='Annual Calcs'!J827 -> 2717.498935 | F160: ='Annual Calcs'!F827 -> 6038.886377 | G160: ='Annual Calcs'!H827 -> 1974.255503 | H160: ='Annual Calcs'!L827 -> 23226.48791 | I160: ='Annual Calcs'!R827 -> 9682.645708 | J160: ='Annual Calcs'!X827 -> 2136.057295 | K160: ='Annual Calcs'!T827 -> 8987.350068 | L160: ='Annual Calcs'!V827 -> 2420.434842 | M160: ='Annual Calcs'!Z827 -> 23226.48791 | N160: -0.2251309069 | O160: -0.2139620489 | P160: 0.4882462606 | Q160: 0.2259987817 | R160: 0
C161: C&D | D161: ='Annual Calcs'!D850 -> 31118.30019 | E161: ='Annual Calcs'!J850 -> 0 | F161: ='Annual Calcs'!F850 -> 11268.25738 | G161: ='Annual Calcs'!H850 -> 0 | H161: ='Annual Calcs'!L850 -> 42386.55758 | I161: ='Annual Calcs'!R850 -> 25849.45706 | J161: ='Annual Calcs'!X850 -> 0 | K161: ='Annual Calcs'!T850 -> 16537.10051 | L161: ='Annual Calcs'!V850 -> 0 | M161: ='Annual Calcs'!Z850 -> 42386.55758 | N161: -0.1693165468 | O161: 0 | P161: 0.4675827815 | Q161: 0 | R161: 0
C162: Total | D162: =SUM(D158:D161) -> 57151.31236 | E162: 5661.456988 | F162: 23849.26946 | G162: 4113.028319 | H162: 90775.06713 | I162: 45387.29117 | J162: 4226.819985 | K162: =SUM(K158:K161) -> 34189.3905 | L162: 5641.25791 | M162: =SUM(M158:M161) -> 89444.75956 | N162: -0.2058399135 | O162: -0.2534042042 | P162: 0.4335613319 | Q162: 0.3715582467 | R162: -0.01465498853
C166: =C153&" Snapshot: Tonnage" -> 2026 Benefits Snapshot: Tonnage | N166: ='Annual Calcs'!C1095 -> MTCO2e Saved by Strategy: 2026 Snapshot | U166: ="Total Generated = " & TEXT(H162,"0,0") & " tons" -> Total Generated = 90,775 tons
D167: Business as Usual | G167: With Strategies Implemented
U170: ="Total Generated = " & TEXT(M162,"0,0") & " tons" -> Total Generated = 89,445 tons
N171: Legend: MTCO2e Saved
N173: ='Annual Calcs'!D1096 -> 7139.98 | O173: Single-Family Homes
N174: ='Annual Calcs'!D1097 -> 0 | O174: Multi-Family Homes
N175: ='Annual Calcs'!D1098 -> 6484.32 | O175: Commercial
N176: ='Annual Calcs'!D1099 -> 2281.99 | O176: C&D
N178: =SUM(N173:N176) -> 15906.29 | O178: Total MTCO2e Saved
D188: Business as Usual | G188: With Strategies Implemented
D189: =F162 -> 23849.26946 | E189: Tons Recycled | G189: =K162 -> 34189.3905 | H189: ="Tons Recycled; +" & TEXT(G189/$G$194-D189/$D$194,"0%") & " change in recycling rate." -> Tons Recycled; +12% change in recycling rate.
D190: =G162 -> 4113.028319 | E190: Tons Composted | G190: =L162 -> 5641.25791 | H190: ="Tons Composted; +" & TEXT(G190/$G$194-D190/$D$194,"0%") & " change in composting rate." -> Tons Composted; +2% change in composting rate.
D191: =E162 -> 5661.456988 | E191: Tons Combusted | G191: =J162 -> 4226.819985 | H191: ="Tons Combusted; " & TEXT(G191/$G$194-D191/$D$194,"0%") & " change in combustion rate." -> Tons Combusted; -2% change in combustion rate.
D192: =D162 -> 57151.31236 | E192: Tons Landfilled | G192: =I162 -> 45387.29117 | H192: ="Tons Landfilled; " & TEXT(G192/$G$194-D192/$D$194,"0%") & " change in landfilling rate." -> Tons Landfilled; -12% change in landfilling rate.
G193: =SUM(D189:D192)-SUM(G189:G192) -> 1330.307567 | H193: Tons Source-Reduced
D194: =SUM(D189:D192) -> 90775.06713 | E194: Total Tonnage | G194: =SUM(G189:G192) -> 89444.75956 | H194: Total Tonnage

Sheet Printable Charts
A2: Results - Printable Charts
E31: Tons Diverted
C32: Source Reduction (tons) | E32: Increased Recycling (tons) | G32: Increased Composting (tons)
C33: ='Annual Calcs'!D942 -> 12073.02 | E33: ='Annual Calcs'!D943 -> 24973.45 | G33: ='Annual Calcs'!D944 -> 12066.13
C34: N/A | E34: ='Annual Calcs'!D947 -> 0.26 | G34: N/A
C35: N/A | E35: ='Annual Calcs'!D951 -> 29411.68 | G35: ='Annual Calcs'!D952 -> 4450.75
C36: N/A | E36: ='Annual Calcs'!D955 -> 44291.94 | G36: N/A
E66: GHG reductions
C67: Source Reduction (MTCO2e) | E67: Increased Recycling (MTCO2e) | G67: Increased Composting (MTCO2e)
C68: ='Annual Calcs'!D961 -> 23316.18 | E68: ='Annual Calcs'!D962 -> 46665.93 | G68: ='Annual Calcs'!D963 -> 1240.97
C69: N/A | E69: ='Annual Calcs'!D966 -> 0 | G69: N/A
C70: N/A | E70: ='Annual Calcs'!D970 -> 62025.68 | G70: ='Annual Calcs'!D971 -> 2657.09
C71: N/A | E71: ='Annual Calcs'!D974 -> 19183.25 | G71: N/A
B77: ='Annual Calcs'!C981 -> Total New Tons Diverted by Sector
E81: Legend: Tons Diverted
E83: ='Annual Calcs'!D982 -> 49112.6 | F83: Single-Family Homes
E84: ='Annual Calcs'!D983 -> 0.26 | F84: Multi-Family Homes
E85: ='Annual Calcs'!D984 -> 33862.43 | F85: Commercial
E86: ='Annual Calcs'!D985 -> 44291.94 | F86: C&D
E88: =SUM(E83:E86) -> 127267.23 | F88: Total Tons Diverted
B99: ='Annual Calcs'!C987 -> Total MTCO2e Saved by Sector
E103: Legend: MTCO2e Saved
E105: ='Annual Calcs'!D988 -> 71223.08 | F105: Single-Family Homes
E106: ='Annual Calcs'!D989 -> 0 | F106: Multi-Family Homes
E107: ='Annual Calcs'!D990 -> 64682.77 | F107: Commercial
E108: ='Annual Calcs'!D991 -> 19183.25 | F108: C&D
E110: =SUM(E105:E108) -> 155089.1 | F110: Total MTCO2e Saved
D150: Year | E150: Annual GHG Reductions (MTCO2e) | F150: Cumulative GHG Reductions (MTCO2e)
D151: =Results!N138 -> 2016 | E151: =Results!O138 -> N/A* | F151: =Results!P138 -> N/A*
D152: =Results!N139 -> 2017 | E152: =Results!O139 -> 15148.37 | F152: =Results!P139 -> 15148.37
D153: =Results!N140 -> 2018 | E153: =Results!O140 -> 15220.87 | F153: =Results!P140 -> 30369.24
D154: =Results!N141 -> 2019 | E154: =Results!O141 -> 15296.01 | F154: =Results!P141 -> 45665.25
D155: =Results!N142 -> 2020 | E155: =Results!O142 -> 15373.94 | F155: =Results!P142 -> 61039.19
D156: =Results!N143 -> 2021 | E156: =Results!O143 -> 15454.74 | F156: =Results!P143 -> 76493.93
D157: =Results!N144 -> 2022 | E157: =Results!O144 -> 15538.56 | F157: =Results!P144 -> 92032.49
D158: =Results!N145 -> 2023 | E158: =Results!O145 -> 15625.48 | F158: =Results!P145 -> 107657.97
D159: =Results!N146 -> 2024 | E159: =Results!O146 -> 15715.66 | F159: =Results!P146 -> 123373.63
D160: =Results!N147 -> 2025 | E160: =Results!O147 -> 15809.21 | F160: =Results!P147 -> 139182.84
D161: =Results!N148 -> 2026 | E161: =Results!O148 -> 15906.29 | F161: =Results!P148 -> 155089.13
B195: Tons Landfilled | D195: Tons Combusted | F195: Tons Recycled | H195: Tons Composted
A196: Year | B196: BAU | C196: With Strategies | D196: BAU | E196: With Strategies | F196: BAU | G196: With Strategies | H196: BAU | I196: With Strategies
A197: =Results!B138 -> 2016 | B197: =Results!C138 -> 46740.00072 | C197: =Results!D138 -> N/A* | D197: =Results!E138 -> 5630.355972 | E197: =Results!F138 -> N/A* | F197: =Results!G138 -> 20061.89873 | G197: =Results!H138 -> N/A* | H197: =Results!I138 -> 4090.433542 | I197: =Results!J138 -> N/A*
A198: =Results!B139 -> 2017 | B198: =Results!C139 -> 47606.13056 | C198: =Results!D139 -> 37468.58958 | D198: =Results!E139 -> 5633.45837 | E198: =Results!F139 -> 4205.916335 | F198: =Results!G139 -> 20377.26173 | G198: =Results!H139 -> 29097.94442 | H198: =Results!I139 -> 4092.687423 | I198: =Results!J139 -> 5613.359186
A199: =Results!B140 -> 2018 | B199: =Results!C140 -> 48507.0727 | C199: =Results!D140 -> 38215.84283 | D199: =Results!E140 -> 5636.562477 | E199: =Results!F140 -> 4208.233848 | F199: =Results!G140 -> 20705.23157 | G199: =Results!H140 -> 29578.82244 | H199: =Results!I140 -> 4094.942546 | I199: =Results!J140 -> 5616.452219
A200: =Results!B141 -> 2019 | B200: =Results!C141 -> 49444.24914 | C200: =Results!D141 -> 38993.19469 | D200: =Results!E141 -> 5639.668294 | E200: =Results!F141 -> 4210.552639 | F200: =Results!G141 -> 21046.32318 | G200: =Results!H141 -> 30078.9575 | H200: =Results!I141 -> 4097.198911 | I200: =Results!J141 -> 5619.546955
A201: =Results!B142 -> 2020 | B201: =Results!C142 -> 50419.13997 | C201: =Results!D142 -> 39801.87464 | D201: =Results!E142 -> 5642.775823 | E201: =Results!F142 -> 4212.872707 | F201: =Results!G142 -> 21401.07251 | G201: =Results!H142 -> 30599.13615 | H201: =Results!I142 -> 4099.45652 | I201: =Results!J142 -> 5622.643397
A202: =Results!B143 -> 2021 | B202: =Results!C143 -> 51433.28578 | C202: =Results!D143 -> 40643.16241 | D202: =Results!E143 -> 5645.885064 | E202: =Results!F143 -> 4215.194053 | F202: =Results!G143 -> 21770.03743 | G202: =Results!H143 -> 31140.1771 | H202: =Results!I143 -> 4101.715373 | I202: =Results!J143 -> 5625.741545
A203: =Results!B144 -> 2022 | B203: =Results!C144 -> 52488.29006 | C203: =Results!D144 -> 41518.39002 | D203: =Results!E144 -> 5648.996019 | E203: =Results!F144 -> 4217.516678 | F203: =Results!G144 -> 22153.79858 | G203: =Results!H144 -> 31702.9325 | H203: =Results!I144 -> 4103.97547 | I203: =Results!J144 -> 5628.8414
A204: =Results!B145 -> 2023 | B204: =Results!C145 -> 53585.82187 | C204: =Results!D145 -> 42428.9439 | D204: =Results!E145 -> 5652.108687 | E204: =Results!F145 -> 4219.840584 | F204: =Results!G145 -> 22552.96034 | G204: =Results!H145 -> 32288.28932 | H204: =Results!I145 -> 4106.236812 | I204: =Results!J145 -> 5631.942963
A205: =Results!B146 -> 2024 | B205: =Results!C146 -> 54727.61841 | C205: =Results!D146 -> 43376.26713 | D205: =Results!E146 -> 5655.223071 | E205: =Results!F146 -> 4222.165769 | F205: =Results!G146 -> 22968.15177 | G205: =Results!H146 -> 32897.17077 | H205: =Results!I146 -> 4108.499401 | I205: =Results!J146 -> 5635.046235
A206: =Results!B147 -> 2025 | B206: =Results!C147 -> 55915.48788 | C206: =Results!D147 -> 44361.86175 | D206: =Results!E147 -> 5658.339171 | E206: =Results!F147 -> 4224.492236 | F206: =Results!G147 -> 23400.02764 | G206: =Results!H147 -> 33530.53776 | H206: =Results!I147 -> 4110.763236 | I206: =Results!J147 -> 5638.151217
A207: =Results!B148 -> 2026 | B207: =Results!C148 -> 57151.31236 | C207: =Results!D148 -> 45387.29117 | D207: =Results!E148 -> 5661.456988 | E207: =Results!F148 -> 4226.819985 | F207: =Results!G148 -> 23849.26946 | G207: =Results!H148 -> 34189.3905 | H207: =Results!I148 -> 4113.028319 | I207: =Results!J148 -> 5641.25791
B212: =Results!C166 -> 2026 Benefits Snapshot: Tonnage
C213: Business as Usual | F213: With Strategies Implemented
C234: Business as Usual | F234: With Strategies Implemented
C235: =Results!D189 -> 23849.26946 | D235: Tons Recycled | F235: =Results!G189 -> 34189.3905 | G235: =Results!H189 -> Tons Recycled; +12% change in recycling rate.
C236: =Results!D190 -> 4113.028319 | D236: Tons Composted | F236: =Results!G190 -> 5641.25791 | G236: =Results!H190 -> Tons Composted; +2% change in composting rate.
C237: =Results!D191 -> 5661.456988 | D237: Tons Combusted | F237: =Results!G191 -> 4226.819985 | G237: =Results!H191 -> Tons Combusted; -2% change in combustion rate.
C238: =Results!D192 -> 57151.31236 | D238: Tons Landfilled | F238: =Results!G192 -> 45387.29117 | G238: =Results!H192 -> Tons Landfilled; -12% change in landfilling rate.
F239: =Results!G193 -> 1330.307567 | G239: Tons Source-Reduced
C240: =Results!D194 -> 90775.06713 | D240: Total Tonnage | F240: =Results!G194 -> 89444.75956 | G240: Total Tonnage
B244: ='Annual Calcs'!C1095 -> MTCO2e Saved by Strategy: 2026 Snapshot
E249: Legend: MTCO2e Saved
E251: ='Annual Calcs'!D1096 -> 7139.98 | F251: Single-Family Homes
E252: ='Annual Calcs'!D1097 -> 0 | F252: Multi-Family Homes
E253: ='Annual Calcs'!D1098 -> 6484.32 | F253: Commercial
E254: ='Annual Calcs'!D1099 -> 2281.99 | F254: C&D
E256: =SUM(E251:E254) -> 15906.29 | F256: Total MTCO2e Saved

Sheet Assumptions
B2: Assumptions
C4: DISCLAIMER: Defaults for policy/program implementation effects are not EPA-recommended values but are based on reported findings for some communities as a starting point.
C6: # | D6: Value | E6: Description | F6: Source
C7: Basic Information
C8: Default Numbers
C9: 1 | D9: 0.0082 | E9: Annual Population Growth | F9: US Census (2012). Population Growth Factors. 2010-2020 Projection, Based on Census 2000, Constant Net International Migration Series, Table 1. Available at: <http://www.census.gov/population/projections/data/national/2009/2009summarytables.html>
C10: =C9+1 -> 2 | D10: 0.26 | E10: Recycling Rate - U.S. | F10: U.S. Environmental Protection Agency, 2014. Municipal Solid Waste Generation, Recycling, and Disposal in the United States: Tables and Figures for 2012. Table 30. Available at: <http://www.epa.gov/waste/nonhaz/municipal/pubs/2012_msw_dat_tbls.pdf>.
C11: 3 | D11: 0.085 | E11: Composting Rate - U.S. | F11: U.S. Environmental Protection Agency, 2014. Municipal Solid Waste Generation, Recycling, and Disposal in the United States: Tables and Figures for 2012. Table 30. Available at: <http://www.epa.gov/waste/nonhaz/municipal/pubs/2012_msw_dat_tbls.pdf>.
C12: 4 | D12: =1-Default_RecyRate-Default_CompostRate -> 0.655 | E12: Disposal Rate - U.S. | F12: U.S. Environmental Protection Agency, 2014. Municipal Solid Waste Generation, Recycling, and Disposal in the United States: Tables and Figures for 2012. Table 30. Available at: <http://www.epa.gov/waste/nonhaz/municipal/pubs/2012_msw_dat_tbls.pdf>.
C13: 5 | D13: 0.117 | E13: Percent MSW that is combusted - U.S. | F13: U.S. Environmental Protection Agency, 2014. Municipal Solid Waste Generation, Recycling, and Disposal in the United States: Tables and Figures for 2012. Table 30. Available at: <http://www.epa.gov/waste/nonhaz/municipal/pubs/2012_msw_dat_tbls.pdf>.
C14: 6 | D14: 0.538 | E14: Percent MSW that is landfilled - U.S. | F14: U.S. Environmental Protection Agency, 2014. Municipal Solid Waste Generation, Recycling, and Disposal in the United States: Tables and Figures for 2012. Table 30. Available at: <http://www.epa.gov/waste/nonhaz/municipal/pubs/2012_msw_dat_tbls.pdf>.
C15: 7 | E15: If the U.S. default waste management percentage box is selected, the same % split between residential and commercial tonnage that is assumed in the Base Year Tons Landfilled column is applied to the tons combusted, recycled, and composted columns. | F15: N/A
C16: 8 | D16: 0.38 | E16: Breakdown of Residential MSW, by weight - California (does not include C&D) | F16: CalRecycle, 2012. California 2008 Statewide Waste Characterization Study. Table ES-1. Available at: <http://www.calrecycle.ca.gov/wastechar/WasteStudies.htm#2008Study>
C17: 9 | D17: 0.52 | E17: Breakdown of Residential MSW, by weight - Delaware (does not include self haul or C&D) | F17: Cascadia Consulting Group, Inc. 2007. Delaware Solid Waste Authority Statewide Waste Characterization Study, 2006-2007. Final Report. October 31. Table 8. Seattle, WA.
C18: 10 | E18: Only a very small portion of C&D is combusted and information on combustion of C&D materials is limited. For purposes of this tool's calculations, emissions factors for landfilling of C&D materials are used.
C19: =C18+1 -> 11 | D19: =(4.38/4.55)^(1/5)-1 -> -0.007586775736 | E19: Annual % increase per capita - MSW. The ton/person/year estimate from cell L22 on the Basic Information tab is multiplied by the annual increase in population (cell I8), multiplied by the annual percent increase per capita. For example, if population increases by 500 people per year and 0.8 tons/person/year is generated, the calculation is: 500 * 0.8 * -0.8% = change in tons MSW generated/year. | F19: U.S. Environmental Protection Agency, 2014. Municipal Solid Waste Generation, Recycling, and Disposal in the United States: Tables and Figures for 2012. Table 30. Calculated based on change in MSW generated per person per day, using the 5-yr period of 2008-12. Available at: <http://www.epa.gov/waste/nonhaz/municipal/pubs/2012_msw_dat_tbls.pdf>.
C20: 12 | D20: =Default_AnnualPercentIncreasePerCap_MSW -> -0.007586775736 | E20: Annual % increase per capita - Residential. The ton/person/year estimate from cell L23 on the Basic Information tab is multiplied by the annual increase in population (cell I8), multiplied by the annual percent increase per capita. For example, if population increases by 500 people per year and 0.8 tons/person/year is generated, the calculation is: 500 * 0.8 * -0.8% = change in tons MSW generated/year. | F20: U.S. Environmental Protection Agency, 2014. Municipal Solid Waste Generation, Recycling, and Disposal in the United States: Tables and Figures for 2012. Table 30. Calculated based on change in MSW generated per person per day, using the 5-yr period of 2008-12. Available at: <http://www.epa.gov/waste/nonhaz/municipal/pubs/2012_msw_dat_tbls.pdf>.
C21: =C20+1 -> 13 | D21: =Default_AnnualPercentIncreasePerCap_Res -> -0.007586775736 | E21: Annual % increase per capita - Commercial. The ton/person/year estimate from cells L24 on the Basic Information tab is multiplied by the annual increase in population (cell I8), multiplied by the annual percent increase per capita. For example, if population increases by 500 people per year and 0.8 tons/person/year is generated, the calculation is: 500 * 0.8 * -0.8% = change in tons MSW generated/year. | F21: U.S. Environmental Protection Agency, 2014. Municipal Solid Waste Generation, Recycling, and Disposal in the United States: Tables and Figures for 2012. Table 30. Calculated based on change in MSW generated per person per day, using the 5-yr period of 2008-12. Available at: <http://www.epa.gov/waste/nonhaz/municipal/pubs/2012_msw_dat_tbls.pdf>.
C22: =C21+1 -> 14 | D22: =((1+25%)^(1/7))-1 -> 0.03239118471 | E22: Annual % increase per capita - C&D 1996-2003 (calculated value). The ton/person/year estimate from cells L34 on the Basic Information tab is multiplied by the annual increase in population (cell I8), multiplied by the annual percent increase per capita. For example, if population increases by 500 people per year and 0.8 tons/person/year is generated, the calculation is: 500 * 0.8 * -0.8% = change in tons MSW generated/year. | F22: U.S. Environmental Protection Agency, 2009. Estimating 2003 Building-Related Construction and Demolition Material Amounts. Based on 25% growth in national C&D waste generated, 1996-2003, assuming linear growth. Available at: <http://www.epa.gov/epawaste/conserve/imr/cdm/pubs/cd-meas.pdf>.
C23: =C22+1 -> 15 | D23: 1 | E23: Approximately 1 ton generated per multi-family household/year. | F23: U.S. Environmental Protection Agency, 2009. Multifamily Recycling: A National Study. Page 5. Available at: <http://www3.epa.gov/epawaste/nonhaz/municipal/pubs/multifamily.pdf>
C24: =C23+1 -> 16 | E24: Single-Family Homes generally account for 75% or more of residential MSW | F24: CalRecycle, 2012. California 2008 Statewide Waste Characterization Study. Table ES-1. Available at: <http://www.calrecycle.ca.gov/wastechar/WasteStudies.htm#2008Study>
C25: =C24+1 -> 17 | E25: 5% MFH recycling rate for community without MFH recycling program; 15% MFH recycling rate for community with MFH recycling program | F25: U.S. Environmental Protection Agency, 2009. Multifamily Recycling: A National Study. ES Table 2. Available at: <http://www3.epa.gov/epawaste/nonhaz/municipal/pubs/multifamily.pdf>
C26: Waste Characterization-Tons and Waste Characterization-Percent
C27: Default Numbers
C28: Methodology
C29: =C25+1 -> 18 | E29: Breakdown of residential waste in Florida's Alachua County is the average of Single Family Home and Multi Family Home waste | F29: Florida Dept. of Environmental Protection, 2010. Solid Waste Management in Florida 2010 Annual Report. Available at: <http://www.dep.state.fl.us/waste/categories/recycling/SWreportdata/10_data.htm>
C30: PAYT
C31: Default Numbers
C32: =C29+1 -> 19 | D32: 0.06 | E32: increase in source reduction due to PAYT | F32: Skumatz and Freeman, 2006. Pay-as-you-throw (PAYT) in the US: 2006 Update and Analyses. Page 15. Available at: <http://archive.epa.gov/wastes/conserve/tools/payt/web/pdf/sera06.pdf>
C33: =C32+1 -> 20 | D33: 0.06 | E33: increase in recycling due to PAYT | F33: Skumatz and Freeman, 2006. Pay-as-you-throw (PAYT) in the US: 2006 Update and Analyses. Page 15. Available at: <http://archive.epa.gov/wastes/conserve/tools/payt/web/pdf/sera06.pdf>
C34: =C33+1 -> 21 | D34: 0.05 | E34: increase in yard waste composting due to PAYT | F34: Skumatz and Freeman, 2006. Pay-as-you-throw (PAYT) in the US: 2006 Update and Analyses. Page 15. Available at: <http://archive.epa.gov/wastes/conserve/tools/payt/web/pdf/sera06.pdf>
C35: Methodology
C36: =C34+1 -> 22 | E36: In order to calculate new tons generated for single-family homes after source reduction, the total BAU waste generation was multiplied by 1 - PAYT source reduction.
C37: =C36+1 -> 23 | E37: In order to calculate new tons recycled for single-family homes after source reduction, the new tons diverted are distributed among waste types based on each material's percent contribution to the total waste stream. If a waste type reaches 100% diversion, the 'leftover' diversion tons are distributed among the remaining waste types based on each waste type's percent contribution to the waste stream. Waste types that are not recycled in the BAU case may be shown as recycled in the strategy implementation case. Example: The user selects an overall target recycling rate of 75% of the 1,000 total tons of waste generated. The current diversion rate is 50%, so 250 new tons must be diverted to meet the 75% goal. If metal represents 10% of total waste (100 tons), then 25 additional tons of metal must be diverted (250*10%). However, if metal is already being recycled at 80% (80 tons of metal are currently recycled), then 80+25=105 tons of metal which is more than the total tons of metal generated. In this case, metal will be diverted at 100%, and the remaining 5 tons of diverted material is distributed among the remaining waste types that don't reach 100% after this calculation is completed.
C38: =C37+1 -> 24 | E38: In order to calculate new tons composted for single-family homes after source reduction, the new tons diverted are distributed among waste types based on each material's percent contribution to the total waste stream. If a waste type reaches 100% diversion, the 'leftover' diversion tons are distributed among the remaining waste types based on each waste type's percent contribution to the waste stream. Waste types that are not recycled in the BAU case may be shown as recycled in the strategy implementation case. Example: The user selects an overall target composting rate of 50% of the 1,000 total tons of waste generated. The current composting rate is 25%, so 250 new tons must be composted to meet the 50% goal. If food represents 75% of total waste (750 tons), then 187.5 additional tons of food must be composted (250*75%). However, if food is already being composted at 80% (600 tons of food are currently composted), then 600+187.5=787.5 tons of food, which is more than the total tons of food generated. In this case, food will be composted at 100%, and the remaining 37.5 tons of composted material is distributed among the remaining waste types that don't reach 100% after this calculation is completed.
C39: Recycling (Other)
C40: Default Numbers
C41: =C38+1 -> 25 | D41: 0.05 | E41: Average increase in single-family home recycling due to implementation of a social marketing/media campaign. This is an example program; users are encouraged to enter their own assumptions for a policy/program of interest | F41: Skumatz Economic Research Associates, Inc. 2011. Getting The Most from Colorado’s Recycling Programs & Infrastructure: Best Management Practices, Impacts, And Cost-Effectiveness of Social Marketing. Broadlands Social Marketing Case Study - Resource Recycling, April 2010, Pg. 4 (Route 2 "partial intervention" scenario). Available at: http://connection.ebscohost.com/c/articles/50037747/broadlands-project-measuring-cost-effectiveness-impacts-social-marketing
C42: Methodology
C43: =C41+1 -> 26 | E43: In order to calculate new tons of waste recycled for single-family homes after PAYT, the user-entered increases in recycling by material type are added to the the post-PAYT recycling rates by material type.
C44: Food Waste Collection
C45: Default Numbers
C46: =C43+1 -> 27 | D46: 0.15 | E46: Low End default is from a curbside food waste collection program in the community of Olympia, Washington. The 15% value was derived from the following program implementation data and calculations: 2007 pre-program baseline: Tons of food waste generated = 1,648 (23% of 7,166). Assume 0% composted. 2013 post-program implementation results: Tons of food waste generated = 1,694. (Calculated by adding 1,432 tons of food waste in trash (23% of trash total) to 262 tons of food waste collected in compost (5% of compost total). 262 / 1,694 = 15% food waste composting rate. | F46: Information provided in a 11/12/14 email from Ron Jones, City of Olympia, to Karen Irwin, Environmental Protection Agency. 23% value for % of food scraps in baseline trash is from a 2009 waste characterization study. 5% value for % of food scraps in compost bin is from post-implementation sort data. FW = Food Waste (Collection) Additional details about Olympia’s food scraps collection programs are described in the following report: “Chittenden Solid Waste District Analysis of Residential Curbside Organics Collection Options”, Skumatz Economic Research Associates, Appendix A. http://cswd.net/wp-content/uploads/2014/06/Analysis-of-Residential-Curbside-Organics-Collection-Options.pdf
C47: =C46+1 -> 28 | D47: 0.44 | E47: High End default is from a curbside food scraps collection program in the city of Portland, Oregon. The 44% value was derived from the following program implementation data and calculations: Pre-program baseline (Nov. 2010-Oct. 2011): Tons of food scraps generated = 26,630 (28.3% of 94,100 tons in garbage). Assume 0% composted. Post-program implementation results (Nov. 2011-Oct. 2012): Tons of food scraps generated = 10,610.6 in garbage plus 8,369 in compost (9.8% of 85,400 tons compost collected) = 18,979 tons food scraps generated. 8,369 / 18,979 = 44% food scraps composting rate. | F47: Information provided in a 11/7/14 email from Arianne Sperry, City of Portland, to Karen Irwin, Environmental Protection Agency. “New Curbside Collection Service, Year 1 Report”, Dec. 5, 2012. http://www.portlandoregon.gov/bps/article/423510
F48: Before-and-after waste composition analysis reports provided as pdf documents in a 11/7/14 email to Karen Irwin, Environmental Protection Agency: (1) “Baseline Waste Composition Analysis for the City of Portland Food Scrap Collection Program”, October 2011. (2) “Composition Analysis for the City of Portland Curbside Collection Service”, Dec. 2012. Additional details about Portland’s food scraps collection programs are described in the following report: “Chittenden Solid Waste District Analysis of Residential Curbside Organics Collection Options”, Skumatz Economic Research Associates, Appendix A. http://cswd.net/wp-content/uploads/2014/06/Analysis-of-Residential-Curbside-Organics-Collection-Options.pdf
C49: Methodology
C50: =C47+1 -> 29 | E50: In order to calculate new tons of food waste composted for single-family homes after Food Scraps Collection, the total tons of food waste generated after PAYT was multiplied by the sum of the percent of food waste composted after PAYT and the Food Scraps Collection rate increase. Many communities that have implemented a food scraps curbside collection program lack sufficient data to derive before-and-after estimates of the total annual tons of food scraps landfilled vs. composted on a community-scale. However, data is available from two communities -- Olympia and Portland -- to generate an estimate for % increase in food scraps composting rate that these communities experienced.
C51: Multi-Family Recycling
C52: Default Numbers
C53: =C50+1 -> 30 | D53: 15-40% | E53: Default range for total percentage recycled after implementing a moderate- to high-performing multi-family home recycling program. For additional information on what a moderate vs. a high-performing MFH program might entail, see the referenced EPA 2001 document. | F53: 1. U.S. Environmental Protection Agency, 2001. Multifamily Recycling: A National Study. Default range for total percentage recycled from implementing a moderate- to high-performing multi-family home recycling program. Page 5. Available at: <http://www.epa.gov/osw/nonhaz/municipal/pubs/multifamily.pdf>.
F54: 2. Florida Deparment of Environmental Protection. 2015. Solid Waste Management in Florida 2010 Annual Report. Table 2A: MSW Collected By Generator Type in Florida By Descending Population Rank. Examples of high-end estimate (40%) - Sarasota County, FL and Orange County, FL. Avalable at: <ftp://ftp.dep.state.fl.us/pub/reports/Recycling/Reports/2010AnnualReport/AppendixA/2A.pdf>.
C55: Methodology
C56: =C53+1 -> 31 | E56: In order to calculate new tons of waste recycled for multi-family homes after Multi-Family Recycling, the new tons diverted are distributed among waste types based on each material's original percent contribution to the total waste stream. If a waste type reaches 100% diversion, the 'leftover' diversion tons are distributed among the remaining waste types based on each waste type's percent contribution to the waste stream. Waste types that are not recycled in the BAU case may be shown as recycled in the strategy implementation case. Example: The user selects an overall target recycling rate of 75% of the 1,000 total tons of waste generated. The current diversion rate is 50%, so 250 new tons must be diverted to meet the 75% goal. If metal represents 10% of total waste (100 tons), then 25 additional tons of metal must be diverted (250*10%). However, if metal is already being recycled at 80% (80 tons of metal are currently recycled), then 80+25=105 tons of metal, which is more than the total tons of metal generated. In this case, metal will be diverted at 100%, and the remaining 5 tons of diverted material is distributed among the remaining waste types that don't reach 100% after this calculation is completed.
C57: Commercial Diversion
C58: Default Numbers
C59: Measure 1: Provide Direct Technical Assistance The jurisdiction could provide technical assistance in the form of: conducting on-site waste assessments to identify target materials for recycling and waste reduction, providing contact information for securing recycling services, and distributing appropriate outreach materials describing best practices for setting up or expanding recycling services for different types of businesses.
C60: =C56+1 -> 32 | D60: 0.01 | E60: Glass/Metal Recycling Rate Increase: 1% capture rate (10% participation rate x 10% efficiency rate). For Measure 1. HDR Policy #4a: Direct technical assistance. | F60: City of Los Angeles, 2013. Solid Waste Integrated Resources Plan; Appendix A, Table 10. Defaults are potential diversion rate estimates. The policy & program analysis included benchmarking of programs from other jurisdictions. Available at: <http://www.zerowaste.lacity.org/files/info/SWIRP%20AppendA%20Oct2013Final.pdf>
C61: =C60+1 -> 33 | D61: 0.005 | E61: Plastic Recycling Rate Increase: 0.5% capture rate (5% participation rate x 10% efficiency rate). For Measure 1. HDR Policy #4a: Direct technical assistance. | F61: City of Los Angeles, 2013. Solid Waste Integrated Resources Plan; Appendix A, Table 10. Defaults are potential diversion rate estimates. The policy & program analysis included benchmarking of programs from other jurisdictions. Available at: <http://www.zerowaste.lacity.org/files/info/SWIRP%20AppendA%20Oct2013Final.pdf>
C62: 34 | D62: 0.02 | E62: Paper Recycling Rate Increase: 2% capture rate (20% participation rate x 10% efficiency rate). For Measure 1. HDR Policy #4a: Direct technical assistance. | F62: City of Los Angeles, 2013. Solid Waste Integrated Resources Plan; Appendix A, Table 10. Defaults are potential diversion rate estimates. The policy & program analysis included benchmarking of programs from other jurisdictions. Available at: <http://www.zerowaste.lacity.org/files/info/SWIRP%20AppendA%20Oct2013Final.pdf>
C63: 35 | D63: 0.01 | E63: Lumber (wood) Recycling Rate Increase: 1% capture rate (10% participation rate x 10% efficiency rate). For Measure 1. HDR Policy #4a: Direct technical assistance. | F63: City of Los Angeles, 2013. Solid Waste Integrated Resources Plan; Appendix A, Table 10. Defaults are potential diversion rate estimates. The policy & program analysis included benchmarking of programs from other jurisdictions. Available at: <http://www.zerowaste.lacity.org/files/info/SWIRP%20AppendA%20Oct2013Final.pdf>
B64: HIDE | C64: 36 | D64: 0.0005 | E64: Food/Green Waste Composting Rate Increase: 0.05% capture rate (5% participation rate x 1% efficiency rate). For Measure 1. HDR Policy #4a: Direct technical assistance. | F64: HDR Engineering, Inc. (2012). Information collected and provided to EPA Region IX under EPA contract #EP-G109-00012. Commercial Policies and Program Assumptions, Scenario 2, Policy 4a.
B65: HIDE | C65: Measure 2: Require all commercial haulers to provide recycling services to all of their customers, upon request. The jurisdiction could revise the existing permitting system to direct all permitted haulers to provide recycling services to commercial customers citywide. The requirement for recycling service under this program would specify that recycling must be provided to customers upon request, and allow for the hauler to determine the collection methodology, provision of customer containers, processing arrangements, fee structure, and other components of the recycling services the hauler offers its customers.
B66: HIDE | C66: =C64+1 -> 37 | D66: 0.18 | E66: Paper + Metal Recycling Rate Increase: 18% capture rate (20% participation rate x 90% efficiency rate). For Measure 2. HDR Policy #2b: Commercial Haulers. | F66: HDR Engineering, Inc. (2012). Information collected and provided to EPA Region IX under EPA contract #EP-G109-00012. Commercial Policies and Program Assumptions, Scenario 2, Policy 2b.
B67: HIDE | C67: 38 | D67: 0.14 | E67: Glass Recycling Rate Increase: 14% capture rate (20% participation rate x 70% efficiency rate ). For Measure 2. HDR Policy #2b: Commercial Haulers. | F67: HDR Engineering, Inc. (2012). Information collected and provided to EPA Region IX under EPA contract #EP-G109-00012. Commercial Policies and Program Assumptions, Scenario 2, Policy 2b.
B68: HIDE | C68: 39 | D68: 0.36 | E68: Plastics Recycling Rate Increase: 36% capture rate (40% participation rate x 90% efficiency rate). For Measure 2. HDR Policy #2b: Commercial Haulers. | F68: HDR Engineering, Inc. (2012). Information collected and provided to EPA Region IX under EPA contract #EP-G109-00012. Commercial Policies and Program Assumptions, Scenario 2, Policy 2b.
C69: Measure 2: Require all businesses to have recycling services The jurisdiction could adopt an ordinance that requires all commercial businesses to obtain recycling services at their place of business. The ordinance would not specify the level of recycling services required, nor designate which materials must be recycled - these decisions would be at the discretion of individual businesses.
C70: =C63+1 -> 36 | D70: 0.15 | E70: Metal, Glass, Wood, and Other Recycling Rate Increase: 15% capture rate (100% participation rate x 15% efficiency rate). For Measure 3. HDR Policy #1a: Business Recycling. | F70: City of Los Angeles, 2013. Solid Waste Integrated Resources Plan; Appendix A, Table 10. Defaults are potential diversion rate estimates. The policy & program analysis included benchmarking of programs from other jurisdictions. Available at: <http://www.zerowaste.lacity.org/files/info/SWIRP%20AppendA%20Oct2013Final.pdf>
C71: 37 | D71: 0.05 | E71: Plastic Recycling Rate Increase: 5% capture rate (100% participation rate x 5% efficiency rate). For Measure 3. HDR Policy #1a: Business Recycling. | F71: City of Los Angeles, 2013. Solid Waste Integrated Resources Plan; Appendix A, Table 10. Defaults are potential diversion rate estimates. The policy & program analysis included benchmarking of programs from other jurisdictions. Available at: <http://www.zerowaste.lacity.org/files/info/SWIRP%20AppendA%20Oct2013Final.pdf>
C72: 38 | D72: 0.2 | E72: Paper Recycling Rate Increase: 20% capture rate (100% participation rate x 20% efficiency rate). For Measure 3. HDR Policy #1a: Business Recycling. | F72: City of Los Angeles, 2013. Solid Waste Integrated Resources Plan; Appendix A, Table 10. Defaults are potential diversion rate estimates. The policy & program analysis included benchmarking of programs from other jurisdictions. Available at: <http://www.zerowaste.lacity.org/files/info/SWIRP%20AppendA%20Oct2013Final.pdf>
C73: Measure 3: Commercial Sector Composting Program The jurisdiction could implement either a non-mandatory or a mandatory composting program for commercial businesses.
C74: =C72+1 -> 39 | D74: 0.2 | E74: Food Composting Rate Increase (voluntary program) | F74: Skumatz and Freeman, No Date. Best Management Practices in Food Scraps Programs. Pages 24-25. Available at: <http://www.foodscrapsrecovery.com/epa_foodwastereport_ei_region5_v11_final.pdf>.
C75: 40 | D75: 0.2 | E75: Yard Composting Rate Increase (voluntary program) | F75: Skumatz and Freeman, No Date. Best Management Practices in Food Scraps Programs. Pages 24-25. Available at: <http://www.foodscrapsrecovery.com/epa_foodwastereport_ei_region5_v11_final.pdf>.
C76: 41 | D76: 0.4 | E76: Food Composting Rate Increase (mandatory program). Note: this value is representative of total post-implementation rates instead of a rate increase from baseline. | F76: Skumatz and Freeman, No Date. Best Management Practices in Food Scraps Programs. Pages 24-25. Available at: <http://www.foodscrapsrecovery.com/epa_foodwastereport_ei_region5_v11_final.pdf>.
C77: 42 | D77: 0.4 | E77: Yard Composting Rate Increase: (mandatory program). Note: this value is representative of total post-implementation rates instead of a rate increase from baseline. | F77: Skumatz and Freeman, No Date. Best Management Practices in Food Scraps Programs. Pages 24-25. Available at: <http://www.foodscrapsrecovery.com/epa_foodwastereport_ei_region5_v11_final.pdf>.
C78: Methodology
C79: =C77+1 -> 43 | E79: In order to calculate new tons of commercial waste recycled and composted after Commercial Diversion, the total tons of waste generated was multiplied by the sum of the current recycling and composting rate and the Commercial Diversion additional recycling and composting rate increases. The additional rate increases are the sum of the rates from Measures #1 through #4. | F79: Derivation of default values from Skumatz and Feeman study: Out of 67 communities with a commercial organics program, the communities reported commercial organics diversion rates ranging from an 8% minimum to a 42% maximum, with an average of 21%. All but 10% of the 67 commercial programs are voluntary, thus, the average percentage reported (21%) may be more representative than the minimum percentage (8%) of the effects of implementing a voluntary commercial organics program. We can assume that the higher end (42%) reflects a mandatory program, and this is also supported by assumptions in the LA City plan, Table 10 (referenced in cells F61-63), which estimates a 40% capture rate for a commercial mandatory organics source separation program. Default values are rounded down to 20% and 40% to convey the more general nature of these estimates.
C80: C&D Recycling
C81: Default Numbers
C82: =C79+1 -> 44 | D82: 0.75 | E82: 75% recovery rate default at C&D processing facilities. 60-80% range. The % recovery rate at C&D processing facilities, e.g., 75%, is multiplied by the total incremental tons (cell J66). Note: actual C&D recovery rates vary significantly by locality depending on capture rates for individual recovery facilities. | F82: 1. Based on a review of C&D processing facility capture rates for facilities in San Jose that accept mixed C&D loads. Email exchange between Karen Irwin, EPA, and Pham Giang, City of San Jose, 4/7/14. Relevant text from email: A review of our processing facilities (i.e. facilities that take mix C&D loads rather than just specific, source separated materials) for the prior calendar year, the recycling/diversion rates varied between the high 60% range to the upper 80% range; all well within a reasonable range of 75%. More importantly, having reviewed the processes and procedures associated with our facilities, we feel that all were capable of 75% diversion and the lower rates may be attributable to poorer quality loads. 2. High-end range supported by the average recycling rate (79%) of 13 certified mixed C&D processing facilities in the City of LA. City of Los Angeles, 2013. Solid Waste Integrated Resources Plan; Table 15, pg. 49. Available at: <http://www.zerowaste.lacity.org/files/info/SWIRP%20AppendA%20Oct2013Final.pdf>.
C83: Methodology
C84: =C82+1 -> 45 | E84: Nationally, demolition accounts for 49%, renovation 42%, and new construction 9% of building-related C&D. Residential building C&D represents approximately 39% and commercial building C&D 61%. | F84: U.S. Environmental Protection Agency, 2009. Estimating 2003 Building-Related Construction and Demolition Materials Amounts. Available at: <http://www.epa.gov/epawaste/conserve/imr/cdm/pubs/cd-meas.pdf>
E85: Nationally, building-related C&D debris accounts for approximately 30% of total C&D debris generated. | F85: U.S. Environmental Protection Agency, June 2015. Advancing Sustainable Materials Management: 2013 Fact Sheet. Table 7. Available at: https://www.epa.gov/sites/production/files/2015-09/documents/2013_advncng_smm_fs.pdf
C86: =C84+1 -> 46 | E86: This calculator uses recycling emission factors as a proxy for both C&D recycling & reuse for most materials in the table. While WARM reuse emission factors are available for several C&D material categories, the predominant industry practice for most of the C&D materials featured in this calculator is recycling. One exception is wood products, which are both commonly reused and recycled. However, WARM emission factors for wood recycling and reuse are similar (only different by < 0.5). Therefore, calculations involving C&D materials rely on WARM recycling emission factors except when a recycling emission factor is not available. For more detail, see the Emission Factors tab. | F86: N/A
C87: =C86+1 -> 47 | E87: If the user selects an overall C&D target diversion rate, the new tons diverted are distributed among waste types based on each material's percent contribution to the total waste stream. If a waste type reaches 100% diversion, the 'leftover' diversion tons are distributed among the remaining waste types based on each waste type's percent contribution to the waste stream. Waste types that are not recycled in the BAU case may be shown as recycled in the strategy implementation case. The actual GHG impacts of an overall percentage diversion requirement across C&D materials, in terms of which materials are recycled more or less, may be influenced by factors specific to the local materials recovery market. Example: The user selects an overall C&D target diversion rate of 75% of the 1,000 total tons of C&D waste generated. The current diversion rate is 50%, so 250 new tons must be diverted to meet the 75% goal. If asphalt represents 10% of total C&D waste (100 tons), then 25 additional tons of asphalt must be diverted (250*10%). However, if asphalt is already being recycled at 80% (80 tons of asphalt are currently recycled), then 80+25=105 tons of asphalt, which is more than the total tons of asphalt generated. In this case, asphalt will be diverted at 100%, and the remaining 5 tons of diverted material is distributed among the remaining waste types that don't reach 100% after this calculation is completed. | F87: N/A
C88: =C87+1 -> 48 | E88: The increase in C&D Recycling or Reuse is calculated by multiplying the value in cell J63 (incremental tons targeted) by the value in cell F71 (percent C&D processing facility recovery rate, e.g., 75% or 0.75), multipled by 100 minus the value in cell F73 (percent of C&D residuals used as ADC on landfills, e.g., 20% or 0.20).
C89: Annual Calcs
C90: Default Numbers
E91: No Defaults
C92: Methodology
C93: =C88+1 -> 49 | E93: Note: Increases in source reduction, recycling, and composting from policy/program implementation are assumed to occur in full beginning 1 year after the Base Year and every year thereafter. To estimate combustion and landfilling waste after measure implementation, the same breakdown of Business As Usual waste (combustion and landfilling) is used. | F93: N/A
C94: Emission Factors
C95: Default Numbers
E96: No Defaults
C97: Methodology
C98: =C93+1 -> 50 | E98: Emission factors for non ferrous metals are the average of emission factors for Copper Wire and Aluminum Cans | F98: N/A
C99: =C98+1 -> 51 | E99: The recycling emission factor for clay bricks = the source reduction factor | F99: N/A
C100: =C99+1 -> 52 | E100: The recycling emission factor for Vinyl Flooring = the source reduction factor | F100: N/A
C101: =C100+1 -> 53 | E101: The recycling emission factor for PVC = the source reduction factor | F101: N/A
C102: =C101+1 -> 54 | E102: The recycling emission factor for Fiberglass Insulation = the source reduction factor | F102: N/A
C103: =C102+1 -> 55 | E103: The recycling emission factor for Wood Flooring, Cabinets, Doors = the source reduction factor | F103: N/A

Sheet Material Definitions
C3: Material Definitions
C4: The following tables provide definitions for material categories used in this calculator.
C5: Additional details can be found here: https://www.epa.gov/warm/waste-reduction-model-warm-material-descriptions-and-data-sources
C7: Residential and Commercial Waste
C8: Waste Type | D8: Definition
C9: Metal | D9: aluminum and steel
C10: Glass | D10: glass containers (e.g., soft drink bottles and wine bottles)
C11: Plastic | D11: HDPE (high-density polyethylene) and PET (polyethylene terephthalate) plastics
C12: Paper | D12: newspaper, corrugated cardboard, magazines, and office paper. Note: excludes compostable, soiled paper
C13: Wood | D13: all wood products and materials
C14: Food Waste | D14: Food waste consists of uneaten food and wasted, prepared food from residences, commercial establishments such as grocery stores and restaurants, institutional sources such as school cafeterias, and industrial sources such as factory lunchrooms. The breakdown of specific food waste materials in this category is 9% beef, 11% poultry, 13% grains, 49% fruits and vegetables, and 18% dairy products (EPA's Waste Reduction Model [WARM] version 14).
C15: Yard Trimmings | D15: Yard trimmings are assumed to be 50% grass, 25% leaves, and 25% tree and brush trimmings from residential, institutional, and commercial sources.
C16: Other / Undifferentiated | D16: all other waste types
C18: C&D Waste
C19: Waste Type | D19: Definition
C20: Asphalt Concrete | D20: Asphalt concrete is composed primarily of aggregate, which consists of hard, graduated fragments of sand, gravel, crushed stone, slag, rock dust, or powder.
C21: Concrete | D21: Concrete is a high-volume building material produced by mixing cement, water, and coarse and fine aggregates.
C22: Drywall | D22: Drywall, also known as wallboard, gypsum board, or plaster board, is manufactured from gypsum plaster and a paper covering.
C23: Dimensional lumber and General Wood Products | D23: Lumber includes wood used for containers, packaging, and building and includes crates, pallets, furniture and dimensional lumber like two by fours. Does not include plywood.
C24: Medium-Density Fiberboard, Plywood, and Related Products | D24: Fiberboard is a panel product that consists of wood chips pressed and bonded with a resin. Fiberboard is used primarily to make furniture. This source type also includes plywood.
C25: Asphalt Shingles-Fiberglass | D25: Asphalt shingles are typically made of a felt mat saturated with asphalt. Fiberglass shingles are composed of asphalt cement (36 percent by weight), a mineral stabilizer like limestone or dolomite (40 percent), sand-sized mineral granules (38 percent), in addition to the organic or fiberglass felt backing (15 percent).
C26: Clay Bricks | D26: Bricks are produced by firing materials such as clay, kaolin, fire clay, bentonite, or common clay and shale. The majority of the bricks produced in the US are clay. In WARM, clay brick source reduction is considered to be the reuse of full bricks rather than the grinding and reusing of broken or damaged brick.
C27: Ferrous Metals | D27: Any metal, including alloys, that does contain iron in appreciable amounts. Ferrous metals include steel and pig iron (with a carbon content of a few percent) and alloys of iron with other metals (such as stainless steel).
C28: Non Ferrous Metals | D28: Any metal, including alloys, that does not contain iron in appreciable amounts. Important non-ferrous metals include aluminum, copper, lead, nickel, tin, titanium and zinc, and alloys such as brass. Precious metals such as gold, silver and platinum and exotic or rare metals such as cobalt, mercury, tungsten, beryllium, bismuth, cerium, cadmium, niobium, indium, gallium, germanium, lithium, selenium, tantalum, tellurium, vanadium, and zirconium are also non-ferrous.
C29: Mixed Plastics | D29: Mixed plastics are made up of 39% HDPE and 61% PET plastic.
C30: Cardboard | D30: Corrugated cardboard boxes made from containerboard (liner and corrugating medium) used in packaging applications.
C31: Carpet | D31: Carpet represents broadloom residential carpet containing a mix of nylon, PET and PP components within the face fiber, primary and secondary backing, and latex used for attaching the backings.
B32: HIDE | C32: Vinyl Flooring | D32: All vinyl flooring is comprised of polyvinyl chloride (PVC) resin along with additives such as plasticizers, stabilizers, pigments, and fillers.
B33: HIDE | C33: PVC | D33: PVC (Polyvinyl Chloride) is produced as both rigid and flexible resins. Rigid PVC is used for pipe, conduit, and roofing tiles, whereas flexible PVC has applications in wire and cable coating, flooring, coated fabrics, and shower curtains.
B34: HIDE | C34: Fiberglass Insulation | D34: Fiberglass insulation is produced from a blend of sand, limestone, soda ash, and recycled glass cullet, which accounts for about 40 percent of the raw material inputs.
B35: HIDE | C35: Wood Flooring, Cabinets, Doors | D35: Virgin hardwood flooring is produced from lumber. Coatings and sealants can be applied to wood flooring in “pre-finishing” that occurs at the manufacturing facility, or on-site.
C36: Other / Undifferentiated | D36: all other waste types

Sheet Annual Calcs
A1: Waste Management and Characterization by Year
C6: =Base_Yr -> 2016
D8: Business as Usual | R8: With Strategies Implemented
R9: ="Assumption #" & TEXT(Assumptions!C93,"0") -> Assumption #49
C10: ="Residential, Overall" -> Residential, Overall | D10: Landfilled | F10: Recycled | H10: Composted | J10: Combustion | L10: Total Generated | Q10: ="Residential, Overall" -> Residential, Overall | R10: Landfilled | T10: Recycled | V10: Composted | X10: Combustion | Z10: Total Generated
C11: ="Note: Includes waste from Single-Family" & IF(MFH_ResorCom="commercial"," homes only"," and Multi-Family homes") -> Note: Includes waste from Single-Family and Multi-Family homes | D11: Tons | E11: % of Total Tons Landfilled | F11: Tons | G11: % of Total Tons Recycled | H11: Tons | I11: % of Total Tons Composted | J11: Tons | K11: % of Total Tons Combusted | L11: Tons | M11: % of Total Tons Generated | Q11: ="Note: Includes waste from Single-Family" & IF(MFH_ResorCom="commercial"," homes only"," and Multi-Family homes") -> Note: Includes waste from Single-Family and Multi-Family homes | R11: Tons | S11: % of Total Tons Landfilled | T11: Tons | U11: % of Total Tons Recycled | V11: Tons | W11: % of Total Tons Composted | X11: Tons | Y11: % of Total Tons Combusted | Z11: Tons | AA11: % of Total Tons Generated
C12: Metal | D12: ='Waste Characterization-MODEL'!E16 -> 632.751788 | E12: =IF(ISERROR(D12/D20),"",(D12/D20)) -> 0.04700001703 | F12: ='Waste Characterization-MODEL'!J16 -> 790.9125809 | G12: =IF(ISERROR(F12/F20),"",(F12/F20)) -> 0.1215631536 | L12: =SUM(F12,H12,J12,D12) -> 1423.664369 | M12: =IF(ISERROR(L12/L20),"",(L12/L20)) -> 0.05689242466 | Q12: Metal | R12: =D12 -> 632.751788 | S12: =IF(ISERROR(R12/R20),"",(R12/R20)) -> 0.04700001703 | T12: =F12 -> 790.9125809 | U12: =IF(ISERROR(T12/T20),"",(T12/T20)) -> 0.1215631536 | Z12: =SUM(T12,V12,X12,R12) -> 1423.664369 | AA12: =IF(ISERROR(Z12/Z20),"",(Z12/Z20)) -> 0.05689242466
C13: Glass | D13: ='Waste Characterization-MODEL'!E17 -> 430.809728 | E13: =IF(ISERROR(D13/D20),"",(D13/D20)) -> 0.03200001159 | F13: ='Waste Characterization-MODEL'!J17 -> 316.5660266 | G13: =IF(ISERROR(F13/F20),"",(F13/F20)) -> 0.04865615423 | L13: 747.3757546 | M13: =IF(ISERROR(L13/L20),"",(L13/L20)) -> 0.02986660321 | Q13: Glass | R13: 430.809728 | S13: =IF(ISERROR(R13/R20),"",(R13/R20)) -> 0.03200001159 | T13: =F13 -> 316.5660266 | U13: =IF(ISERROR(T13/T20),"",(T13/T20)) -> 0.04865615423 | Z13: 747.3757546 | AA13: =IF(ISERROR(Z13/Z20),"",(Z13/Z20)) -> 0.02986660321
C14: Plastic | D14: ='Waste Characterization-MODEL'!E18 -> 1534.759656 | E14: =IF(ISERROR(D14/D20),"",(D14/D20)) -> 0.1140000413 | F14: ='Waste Characterization-MODEL'!J18 -> 301.4914539 | G14: =IF(ISERROR(F14/F20),"",(F14/F20)) -> 0.0463391945 | J14: ='Waste Characterization-MODEL'!G18 -> 333.7669982 | K14: =IF(ISERROR(J14/J20),"",(J14/J20)) -> 0.1139998117 | L14: 2170.018108 | M14: =IF(ISERROR(L14/L20),"",(L14/L20)) -> 0.08671818613 | Q14: Plastic | R14: 1534.759656 | S14: =IF(ISERROR(R14/R20),"",(R14/R20)) -> 0.1140000413 | T14: =F14 -> 301.4914539 | U14: =IF(ISERROR(T14/T20),"",(T14/T20)) -> 0.0463391945 | X14: =J14 -> 333.7669982 | Y14: =IF(ISERROR(X14/X20),"",(X14/X20)) -> 0.1139998117 | Z14: 2170.018108 | AA14: =IF(ISERROR(Z14/Z20),"",(Z14/Z20)) -> 0.08671818613
C15: Paper | D15: ='Waste Characterization-MODEL'!E19 -> 2854.114448 | E15: =IF(ISERROR(D15/D20),"",(D15/D20)) -> 0.2120000768 | F15: ='Waste Characterization-MODEL'!J19 -> 4361.576367 | G15: =IF(ISERROR(F15/F20),"",(F15/F20)) -> 0.6703736805 | J15: ='Waste Characterization-MODEL'!G19 -> 620.6895055 | K15: =IF(ISERROR(J15/J20),"",(J15/J20)) -> 0.2119996498 | L15: 7836.380321 | M15: =IF(ISERROR(L15/L20),"",(L15/L20)) -> 0.3131571505 | Q15: Paper | R15: 2854.114448 | S15: =IF(ISERROR(R15/R20),"",(R15/R20)) -> 0.2120000768 | T15: =F15 -> 4361.576367 | U15: =IF(ISERROR(T15/T20),"",(T15/T20)) -> 0.6703736805 | X15: 620.6895055 | Y15: =IF(ISERROR(X15/X20),"",(X15/X20)) -> 0.2119996498 | Z15: 7836.380321 | AA15: =IF(ISERROR(Z15/Z20),"",(Z15/Z20)) -> 0.3131571505
C16: Wood | D16: ='Waste Characterization-MODEL'!E20 -> 794.305436 | E16: =IF(ISERROR(D16/D20),"",(D16/D20)) -> 0.05900002138 | F16: ='Waste Characterization-MODEL'!J20 -> 248.2279638 | G16: =IF(ISERROR(F16/F20),"",(F16/F20)) -> 0.03815260348 | J16: ='Waste Characterization-MODEL'!G20 -> 172.7390605 | K16: =IF(ISERROR(J16/J20),"",(J16/J20)) -> 0.05899990255 | L16: 1215.27246 | M16: =IF(ISERROR(L16/L20),"",(L16/L20)) -> 0.04856467465 | Q16: Wood | R16: 794.305436 | S16: =IF(ISERROR(R16/R20),"",(R16/R20)) -> 0.05900002138 | T16: =F16 -> 248.2279638 | U16: =IF(ISERROR(T16/T20),"",(T16/T20)) -> 0.03815260348 | X16: 172.7390605 | Y16: =IF(ISERROR(X16/X20),"",(X16/X20)) -> 0.05899990255 | Z16: 1215.27246 | AA16: =IF(ISERROR(Z16/Z20),"",(Z16/Z20)) -> 0.04856467465
C17: Food Waste | D17: ='Waste Characterization-MODEL'!E21 -> 1588.610872 | E17: =IF(ISERROR(D17/D20),"",(D17/D20)) -> 0.1180000428 | H17: ='Waste Characterization-MODEL'!L21 -> 85.08088535 | I17: =IF(ISERROR(H17/H20),"",(H17/H20)) -> 0.03999997351 | J17: ='Waste Characterization-MODEL'!G21 -> 345.478121 | K17: =IF(ISERROR(J17/J20),"",(J17/J20)) -> 0.1179998051 | L17: 2019.169878 | M17: =IF(ISERROR(L17/L20),"",(L17/L20)) -> 0.08068999456 | Q17: Food Waste | R17: 1588.610872 | S17: =IF(ISERROR(R17/R20),"",(R17/R20)) -> 0.1180000428 | V17: =H17 -> 85.08088535 | W17: =IF(ISERROR(V17/V20),"",(V17/V20)) -> 0.03999997351 | X17: 345.478121 | Y17: =IF(ISERROR(X17/X20),"",(X17/X20)) -> 0.1179998051 | Z17: 2019.169878 | AA17: =IF(ISERROR(Z17/Z20),"",(Z17/Z20)) -> 0.08068999456
C18: Yard Trimmings | D18: ='Waste Characterization-MODEL'!E22 -> 1965.569384 | E18: =IF(ISERROR(D18/D20),"",(D18/D20)) -> 0.1460000529 | H18: ='Waste Characterization-MODEL'!L22 -> 1807.968814 | I18: =IF(ISERROR(H18/H20),"",(H18/H20)) -> 0.8499994372 | J18: ='Waste Characterization-MODEL'!G22 -> 427.4559802 | K18: =IF(ISERROR(J18/J20),"",(J18/J20)) -> 0.1459997589 | L18: 4200.994178 | M18: =IF(ISERROR(L18/L20),"",(L18/L20)) -> 0.1678799793 | Q18: Yard Trimmings | R18: 1965.569384 | S18: =IF(ISERROR(R18/R20),"",(R18/R20)) -> 0.1460000529 | V18: =H18 -> 1807.968814 | W18: =IF(ISERROR(V18/V20),"",(V18/V20)) -> 0.8499994372 | X18: 427.4559802 | Y18: =IF(ISERROR(X18/X20),"",(X18/X20)) -> 0.1459997589 | Z18: 4200.994178 | AA18: =IF(ISERROR(Z18/Z20),"",(Z18/Z20)) -> 0.1678799793
C19: Other / Undifferentiated | D19: ='Waste Characterization-MODEL'!E23 -> 3661.87781 | E19: =IF(ISERROR(D19/D20),"",(D19/D20)) -> 0.2719997362 | F19: ='Waste Characterization-MODEL'!J23 -> 487.4123718 | G19: =IF(ISERROR(F19/F20),"",(F19/F20)) -> 0.0749152137 | H19: ='Waste Characterization-MODEL'!L23 -> 233.9738432 | I19: =IF(ISERROR(H19/H20),"",(H19/H20)) -> 0.1100005893 | J19: ='Waste Characterization-MODEL'!G23 -> 1027.655857 | K19: =IF(ISERROR(J19/J20),"",(J19/J20)) -> 0.3510010719 | L19: 5410.919882 | M19: =IF(ISERROR(L19/L20),"",(L19/L20)) -> 0.216230987 | Q19: Other / Undifferentiated | R19: 3661.87781 | S19: =IF(ISERROR(R19/R20),"",(R19/R20)) -> 0.2719997362 | T19: =F19 -> 487.4123718 | U19: =IF(ISERROR(T19/T20),"",(T19/T20)) -> 0.0749152137 | V19: =H19 -> 233.9738432 | W19: =IF(ISERROR(V19/V20),"",(V19/V20)) -> 0.1100005893 | X19: 1027.655857 | Y19: =IF(ISERROR(X19/X20),"",(X19/X20)) -> 0.3510010719 | Z19: 5410.919882 | AA19: =IF(ISERROR(Z19/Z20),"",(Z19/Z20)) -> 0.216230987
C20: Total | D20: =SUM(D12:D19) -> 13462.79912 | E20: =IF(ISERROR(D20/D20),"",(D20/D20)) -> 1 | F20: =SUM(F12:F19) -> 6506.186764 | G20: =IF(ISERROR(F20/F20),"",(F20/F20)) -> 1 | H20: =SUM(H12:H19) -> 2127.023542 | I20: =IF(ISERROR(H20/H20),"",(H20/H20)) -> 1 | J20: =SUM(J12:J19) -> 2927.785522 | K20: =IF(ISERROR(J20/J20),"",(J20/J20)) -> 1 | L20: =SUM(L12:L19) -> 25023.79495 | M20: =IF(ISERROR(L20/L20),"",(L20/L20)) -> 1 | Q20: Total | R20: =SUM(R12:R19) -> 13462.79912 | S20: =IF(ISERROR(R20/R20),"",(R20/R20)) -> 1 | T20: =SUM(T12:T19) -> 6506.186764 | U20: =IF(ISERROR(T20/T20),"",(T20/T20)) -> 1 | V20: =SUM(V12:V19) -> 2127.023542 | W20: =IF(ISERROR(V20/V20),"",(V20/V20)) -> 1 | X20: =SUM(X12:X19) -> 2927.785522 | Y20: =IF(ISERROR(X20/X20),"",(X20/X20)) -> 1 | Z20: =SUM(Z12:Z19) -> 25023.79495 | AA20: =IF(ISERROR(Z20/Z20),"",(Z20/Z20)) -> 1
C22: Residential, Single-Family Homes | D22: Landfilled | F22: Recycled | H22: Composted | J22: Combustion | L22: Total Generated | Q22: Residential, Single-Family Homes | R22: Landfilled | T22: Recycled | V22: Composted | X22: Combustion | Z22: Total Generated
D23: Tons | E23: % Landfilled | F23: Tons | G23: % Recycled | H23: Tons | I23: % Composted | J23: Tons | K23: % Combusted | L23: Tons | M23: % of All Materials | R23: Tons | S23: % of Total Tons Landfilled | T23: Tons | U23: % of Total Tons Recycled | V23: Tons | W23: % of Total Tons Composted | X23: Tons | Y23: % of Total Tons Combusted | Z23: Tons | AA23: % of Total Tons Generated
C24: Metal | D24: ='Waste Characterization-MODEL'!E32 -> 518.8565 | E24: =IF(ISERROR(D24/D32),"",(D24/D32)) -> 0.04700001703 | F24: ='Waste Characterization-MODEL'!J32 -> 767.1852023 | G24: =IF(ISERROR(F24/F32),"",(F24/F32)) -> 0.1215631536 | L24: =SUM(F24,H24,J24,D24) -> 1286.041702 | M24: =IF(ISERROR(L24/L32),"",(L24/L32)) -> 0.05832390571 | Q24: Metal | R24: =D24 -> 518.8565 | S24: =IF(ISERROR(R24/R32),"",(R24/R32)) -> 0.04700001703 | T24: =F24 -> 767.1852023 | U24: =IF(ISERROR(T24/T32),"",(T24/T32)) -> 0.1215631536 | Z24: =SUM(T24,V24,X24,R24) -> 1286.041702 | AA24: =IF(ISERROR(Z24/Z32),"",(Z24/Z32)) -> 0.05832390571
C25: Glass | D25: ='Waste Characterization-MODEL'!E33 -> 353.264 | E25: =IF(ISERROR(D25/D32),"",(D25/D32)) -> 0.03200001159 | F25: ='Waste Characterization-MODEL'!J33 -> 307.0690454 | G25: =IF(ISERROR(F25/F32),"",(F25/F32)) -> 0.04865615423 | L25: 660.3330454 | M25: =IF(ISERROR(L25/L32),"",(L25/L32)) -> 0.02994708664 | Q25: Glass | R25: 353.264 | S25: =IF(ISERROR(R25/R32),"",(R25/R32)) -> 0.03200001159 | T25: =F25 -> 307.0690454 | U25: =IF(ISERROR(T25/T32),"",(T25/T32)) -> 0.04865615423 | Z25: 660.3330454 | AA25: =IF(ISERROR(Z25/Z32),"",(Z25/Z32)) -> 0.02994708664
C26: Plastic | D26: ='Waste Characterization-MODEL'!E34 -> 1258.503 | E26: =IF(ISERROR(D26/D32),"",(D26/D32)) -> 0.1140000413 | F26: ='Waste Characterization-MODEL'!J34 -> 292.4467099 | G26: =IF(ISERROR(F26/F32),"",(F26/F32)) -> 0.0463391945 | J26: ='Waste Characterization-MODEL'!G34 -> 294.71622 | K26: =IF(ISERROR(J26/J32),"",(J26/J32)) -> 0.1139998117 | L26: 1845.66593 | M26: =IF(ISERROR(L26/L32),"",(L26/L32)) -> 0.08370369754 | Q26: Plastic | R26: 1258.503 | S26: =IF(ISERROR(R26/R32),"",(R26/R32)) -> 0.1140000413 | T26: =F26 -> 292.4467099 | U26: =IF(ISERROR(T26/T32),"",(T26/T32)) -> 0.0463391945 | X26: =J26 -> 294.71622 | Y26: =IF(ISERROR(X26/X32),"",(X26/X32)) -> 0.1139998117 | Z26: 1845.66593 | AA26: =IF(ISERROR(Z26/Z32),"",(Z26/Z32)) -> 0.08370369754
C27: Paper | D27: ='Waste Characterization-MODEL'!E35 -> 2340.374 | E27: =IF(ISERROR(D27/D32),"",(D27/D32)) -> 0.2120000768 | F27: ='Waste Characterization-MODEL'!J35 -> 4230.72907 | G27: =IF(ISERROR(F27/F32),"",(F27/F32)) -> 0.6703736805 | J27: ='Waste Characterization-MODEL'!G35 -> 548.06876 | K27: =IF(ISERROR(J27/J32),"",(J27/J32)) -> 0.2119996498 | L27: 7119.17183 | M27: =IF(ISERROR(L27/L32),"",(L27/L32)) -> 0.3228650407 | Q27: Paper | R27: 2340.374 | S27: =IF(ISERROR(R27/R32),"",(R27/R32)) -> 0.2120000768 | T27: =F27 -> 4230.72907 | U27: =IF(ISERROR(T27/T32),"",(T27/T32)) -> 0.6703736805 | X27: 548.06876 | Y27: =IF(ISERROR(X27/X32),"",(X27/X32)) -> 0.2119996498 | Z27: 7119.17183 | AA27: =IF(ISERROR(Z27/Z32),"",(Z27/Z32)) -> 0.3228650407
C28: Wood | D28: ='Waste Characterization-MODEL'!E36 -> 651.3305 | E28: =IF(ISERROR(D28/D32),"",(D28/D32)) -> 0.05900002138 | F28: ='Waste Characterization-MODEL'!J36 -> 240.7811245 | G28: =IF(ISERROR(F28/F32),"",(F28/F32)) -> 0.03815260348 | J28: ='Waste Characterization-MODEL'!G36 -> 152.52857 | K28: =IF(ISERROR(J28/J32),"",(J28/J32)) -> 0.05899990255 | L28: 1044.640194 | M28: =IF(ISERROR(L28/L32),"",(L28/L32)) -> 0.04737598796 | Q28: Wood | R28: 651.3305 | S28: =IF(ISERROR(R28/R32),"",(R28/R32)) -> 0.05900002138 | T28: =F28 -> 240.7811245 | U28: =IF(ISERROR(T28/T32),"",(T28/T32)) -> 0.03815260348 | X28: 152.52857 | Y28: =IF(ISERROR(X28/X32),"",(X28/X32)) -> 0.05899990255 | Z28: 1044.640194 | AA28: =IF(ISERROR(Z28/Z32),"",(Z28/Z32)) -> 0.04737598796
C29: Food Waste | D29: ='Waste Characterization-MODEL'!E37 -> 1302.661 | E29: =IF(ISERROR(D29/D32),"",(D29/D32)) -> 0.1180000428 | H29: ='Waste Characterization-MODEL'!L37 -> 84.5704 | I29: =IF(ISERROR(H29/H32),"",(H29/H32)) -> 0.03999997351 | J29: ='Waste Characterization-MODEL'!G37 -> 305.05714 | K29: =IF(ISERROR(J29/J32),"",(J29/J32)) -> 0.1179998051 | L29: 1692.28854 | M29: =IF(ISERROR(L29/L32),"",(L29/L32)) -> 0.07674780457 | Q29: Food Waste | R29: 1302.661 | S29: =IF(ISERROR(R29/R32),"",(R29/R32)) -> 0.1180000428 | V29: =H29 -> 84.5704 | W29: =IF(ISERROR(V29/V32),"",(V29/V32)) -> 0.03999997351 | X29: 305.05714 | Y29: =IF(ISERROR(X29/X32),"",(X29/X32)) -> 0.1179998051 | Z29: 1692.28854 | AA29: =IF(ISERROR(Z29/Z32),"",(Z29/Z32)) -> 0.07674780457
C30: Yard Trimmings | D30: ='Waste Characterization-MODEL'!E38 -> 1611.767 | E30: =IF(ISERROR(D30/D32),"",(D30/D32)) -> 0.1460000529 | H30: ='Waste Characterization-MODEL'!L38 -> 1797.121 | I30: =IF(ISERROR(H30/H32),"",(H30/H32)) -> 0.8499994372 | J30: ='Waste Characterization-MODEL'!G38 -> 377.44358 | K30: =IF(ISERROR(J30/J32),"",(J30/J32)) -> 0.1459997589 | L30: 3786.33158 | M30: =IF(ISERROR(L30/L32),"",(L30/L32)) -> 0.1717157738 | Q30: Yard Trimmings | R30: 1611.767 | S30: =IF(ISERROR(R30/R32),"",(R30/R32)) -> 0.1460000529 | V30: =H30 -> 1797.121 | W30: =IF(ISERROR(V30/V32),"",(V30/V32)) -> 0.8499994372 | X30: 377.44358 | Y30: =IF(ISERROR(X30/X32),"",(X30/X32)) -> 0.1459997589 | Z30: 3786.33158 | AA30: =IF(ISERROR(Z30/Z32),"",(Z30/Z32)) -> 0.1717157738
C31: Other / Undifferentiated | D31: ='Waste Characterization-MODEL'!E39 -> 3002.74 | E31: =IF(ISERROR(D31/D32),"",(D31/D32)) -> 0.2719997362 | F31: ='Waste Characterization-MODEL'!J39 -> 472.79 | G31: =IF(ISERROR(F31/F32),"",(F31/F32)) -> 0.0749152137 | H31: ='Waste Characterization-MODEL'!L39 -> 232.57 | I31: =IF(ISERROR(H31/H32),"",(H31/H32)) -> 0.1100005893 | J31: ='Waste Characterization-MODEL'!G39 -> 907.42 | K31: =IF(ISERROR(J31/J32),"",(J31/J32)) -> 0.3510010719 | L31: 4615.52 | M31: =IF(ISERROR(L31/L32),"",(L31/L32)) -> 0.2093207031 | Q31: Other / Undifferentiated | R31: 3002.74 | S31: =IF(ISERROR(R31/R32),"",(R31/R32)) -> 0.2719997362 | T31: =F31 -> 472.79 | U31: =IF(ISERROR(T31/T32),"",(T31/T32)) -> 0.0749152137 | V31: =H31 -> 232.57 | W31: =IF(ISERROR(V31/V32),"",(V31/V32)) -> 0.1100005893 | X31: 907.42 | Y31: =IF(ISERROR(X31/X32),"",(X31/X32)) -> 0.3510010719 | Z31: 4615.52 | AA31: =IF(ISERROR(Z31/Z32),"",(Z31/Z32)) -> 0.2093207031
C32: Total | D32: =SUM(D24:D31) -> 11039.496 | E32: =IF(ISERROR(D32/D32),"",(D32/D32)) -> 1 | F32: =SUM(F24:F31) -> 6311.001152 | G32: =IF(ISERROR(F32/F32),"",(F32/F32)) -> 1 | H32: =SUM(H24:H31) -> 2114.2614 | I32: =IF(ISERROR(H32/H32),"",(H32/H32)) -> 1 | J32: =SUM(J24:J31) -> 2585.23427 | K32: =IF(ISERROR(J32/J32),"",(J32/J32)) -> 1 | L32: =SUM(L24:L31) -> 22049.99282 | M32: =IF(ISERROR(L32/L32),"",(L32/L32)) -> 1 | Q32: Total | R32: =SUM(R24:R31) -> 11039.496 | S32: =IF(ISERROR(R32/R32),"",(R32/R32)) -> 1 | T32: =SUM(T24:T31) -> 6311.001152 | U32: =IF(ISERROR(T32/T32),"",(T32/T32)) -> 1 | V32: =SUM(V24:V31) -> 2114.2614 | W32: =IF(ISERROR(V32/V32),"",(V32/V32)) -> 1 | X32: =SUM(X24:X31) -> 2585.23427 | Y32: =IF(ISERROR(X32/X32),"",(X32/X32)) -> 1 | Z32: =SUM(Z24:Z31) -> 22049.99282 | AA32: =IF(ISERROR(Z32/Z32),"",(Z32/Z32)) -> 1
C34: Residential, Multi-Family Homes | D34: Landfilled | F34: Recycled | H34: Composted | J34: Combustion | L34: Total Generated | Q34: Residential, Multi-Family Homes | R34: Landfilled | T34: Recycled | V34: Composted | X34: Combustion | Z34: Total Generated
D35: Tons | E35: % of Total Tons Landfilled | F35: Tons | G35: % of Total Tons Recycled | H35: Tons | I35: % of Total Tons Composted | J35: Tons | K35: % of Total Tons Combusted | L35: Tons | M35: % of Total Tons Generated | R35: Tons | S35: % of Total Tons Landfilled | T35: Tons | U35: % of Total Tons Recycled | V35: Tons | W35: % of Total Tons Composted | X35: Tons | Y35: % of Total Tons Combusted | Z35: Tons | AA35: % of Total Tons Generated
C36: Metal | D36: ='Waste Characterization-MODEL'!E49 -> 113.895288 | E36: =IF(ISERROR(D36/D44),"",(D36/D44)) -> 0.04700001703 | F36: ='Waste Characterization-MODEL'!J49 -> 23.72737851 | G36: =IF(ISERROR(F36/F44),"",(F36/F44)) -> 0.1215631536 | K36: =IF(ISERROR(J36/J44),"",(J36/J44)) -> 0 | L36: =SUM(F36,H36,J36,D36) -> 137.6226665 | M36: =IF(ISERROR(L36/L44),"",(L36/L44)) -> 0.04627835363 | Q36: Metal | R36: =D36 -> 113.895288 | S36: =IF(ISERROR(R36/R44),"",(R36/R44)) -> 0.04700001703 | T36: =F36 -> 23.72737851 | U36: =IF(ISERROR(T36/T44),"",(T36/T44)) -> 0.1215631536 | Z36: =SUM(T36,V36,X36,R36) -> 137.6226665 | AA36: =IF(ISERROR(Z36/Z44),"",(Z36/Z44)) -> 0.04627835363
C37: Glass | D37: ='Waste Characterization-MODEL'!E50 -> 77.545728 | E37: =IF(ISERROR(D37/D44),"",(D37/D44)) -> 0.03200001159 | F37: ='Waste Characterization-MODEL'!J50 -> 9.496981233 | G37: =IF(ISERROR(F37/F44),"",(F37/F44)) -> 0.04865615423 | K37: =IF(ISERROR(J37/J44),"",(J37/J44)) -> 0 | L37: 87.04270923 | M37: =IF(ISERROR(L37/L44),"",(L37/L44)) -> 0.02926983891 | Q37: Glass | R37: 77.545728 | S37: =IF(ISERROR(R37/R44),"",(R37/R44)) -> 0.03200001159 | T37: =F37 -> 9.496981233 | U37: =IF(ISERROR(T37/T44),"",(T37/T44)) -> 0.04865615423 | Z37: 87.04270923 | AA37: =IF(ISERROR(Z37/Z44),"",(Z37/Z44)) -> 0.02926983891
C38: Plastic | D38: ='Waste Characterization-MODEL'!E51 -> 276.256656 | E38: =IF(ISERROR(D38/D44),"",(D38/D44)) -> 0.1140000413 | F38: ='Waste Characterization-MODEL'!J51 -> 9.044744032 | G38: =IF(ISERROR(F38/F44),"",(F38/F44)) -> 0.0463391945 | J38: ='Waste Characterization-MODEL'!G51 -> 39.05077823 | K38: =IF(ISERROR(J38/J44),"",(J38/J44)) -> 0.1139998117 | L38: 324.3521783 | M38: =IF(ISERROR(L38/L44),"",(L38/L44)) -> 0.1090698588 | Q38: Plastic | R38: 276.256656 | S38: =IF(ISERROR(R38/R44),"",(R38/R44)) -> 0.1140000413 | T38: =F38 -> 9.044744032 | U38: =IF(ISERROR(T38/T44),"",(T38/T44)) -> 0.0463391945 | X38: =J38 -> 39.05077823 | Y38: =IF(ISERROR(X38/X44),"",(X38/X44)) -> 0.1139998117 | Z38: 324.3521783 | AA38: =IF(ISERROR(Z38/Z44),"",(Z38/Z44)) -> 0.1090698588
C39: Paper | D39: ='Waste Characterization-MODEL'!E52 -> 513.740448 | E39: =IF(ISERROR(D39/D44),"",(D39/D44)) -> 0.2120000768 | F39: ='Waste Characterization-MODEL'!J52 -> 130.847297 | G39: =IF(ISERROR(F39/F44),"",(F39/F44)) -> 0.6703736805 | J39: ='Waste Characterization-MODEL'!G52 -> 72.62074548 | K39: =IF(ISERROR(J39/J44),"",(J39/J44)) -> 0.2119996498 | L39: 717.2084905 | M39: =IF(ISERROR(L39/L44),"",(L39/L44)) -> 0.2411755926 | Q39: Paper | R39: 513.740448 | S39: =IF(ISERROR(R39/R44),"",(R39/R44)) -> 0.2120000768 | T39: =F39 -> 130.847297 | U39: =IF(ISERROR(T39/T44),"",(T39/T44)) -> 0.6703736805 | X39: 72.62074548 | Y39: =IF(ISERROR(X39/X44),"",(X39/X44)) -> 0.2119996498 | Z39: 717.2084905 | AA39: =IF(ISERROR(Z39/Z44),"",(Z39/Z44)) -> 0.2411755926
C40: Wood | D40: ='Waste Characterization-MODEL'!E53 -> 142.974936 | E40: =IF(ISERROR(D40/D44),"",(D40/D44)) -> 0.05900002138 | F40: ='Waste Characterization-MODEL'!J53 -> 7.446839253 | G40: =IF(ISERROR(F40/F44),"",(F40/F44)) -> 0.03815260348 | J40: ='Waste Characterization-MODEL'!G53 -> 20.21049049 | K40: =IF(ISERROR(J40/J44),"",(J40/J44)) -> 0.05899990255 | L40: 170.6322657 | M40: =IF(ISERROR(L40/L44),"",(L40/L44)) -> 0.05737848666 | Q40: Wood | R40: 142.974936 | S40: =IF(ISERROR(R40/R44),"",(R40/R44)) -> 0.05900002138 | T40: =F40 -> 7.446839253 | U40: =IF(ISERROR(T40/T44),"",(T40/T44)) -> 0.03815260348 | X40: 20.21049049 | Y40: =IF(ISERROR(X40/X44),"",(X40/X44)) -> 0.05899990255 | Z40: 170.6322657 | AA40: =IF(ISERROR(Z40/Z44),"",(Z40/Z44)) -> 0.05737848666
C41: Food Waste | D41: ='Waste Characterization-MODEL'!E54 -> 285.949872 | E41: =IF(ISERROR(D41/D44),"",(D41/D44)) -> 0.1180000428 | H41: ='Waste Characterization-MODEL'!L54 -> 0.5104853532 | I41: =IF(ISERROR(H41/H44),"",(H41/H44)) -> 0.03999997351 | J41: ='Waste Characterization-MODEL'!G54 -> 40.42098098 | K41: =IF(ISERROR(J41/J44),"",(J41/J44)) -> 0.1179998051 | L41: 326.8813383 | M41: =IF(ISERROR(L41/L44),"",(L41/L44)) -> 0.1099203391 | Q41: Food Waste | R41: 285.949872 | S41: =IF(ISERROR(R41/R44),"",(R41/R44)) -> 0.1180000428 | V41: =H41 -> 0.5104853532 | W41: =IF(ISERROR(V41/V44),"",(V41/V44)) -> 0.03999997351 | X41: 40.42098098 | Y41: =IF(ISERROR(X41/X44),"",(X41/X44)) -> 0.1179998051 | Z41: 326.8813383 | AA41: =IF(ISERROR(Z41/Z44),"",(Z41/Z44)) -> 0.1099203391
C42: Yard Trimmings | D42: ='Waste Characterization-MODEL'!E55 -> 353.802384 | E42: =IF(ISERROR(D42/D44),"",(D42/D44)) -> 0.1460000529 | H42: ='Waste Characterization-MODEL'!L55 -> 10.84781375 | I42: =IF(ISERROR(H42/H44),"",(H42/H44)) -> 0.8499994372 | J42: ='Waste Characterization-MODEL'!G55 -> 50.01240019 | K42: =IF(ISERROR(J42/J44),"",(J42/J44)) -> 0.1459997589 | L42: 414.6625979 | M42: =IF(ISERROR(L42/L44),"",(L42/L44)) -> 0.1394385302 | Q42: Yard Trimmings | R42: 353.802384 | S42: =IF(ISERROR(R42/R44),"",(R42/R44)) -> 0.1460000529 | V42: =H42 -> 10.84781375 | W42: =IF(ISERROR(V42/V44),"",(V42/V44)) -> 0.8499994372 | X42: 50.01240019 | Y42: =IF(ISERROR(X42/X44),"",(X42/X44)) -> 0.1459997589 | Z42: 414.6625979 | AA42: =IF(ISERROR(Z42/Z44),"",(Z42/Z44)) -> 0.1394385302
C43: Other / Undifferentiated | D43: ='Waste Characterization-MODEL'!E56 -> 659.13781 | E43: =IF(ISERROR(D43/D44),"",(D43/D44)) -> 0.2719997362 | F43: ='Waste Characterization-MODEL'!J56 -> 14.62237182 | G43: =IF(ISERROR(F43/F44),"",(F43/F44)) -> 0.0749152137 | H43: ='Waste Characterization-MODEL'!L56 -> 1.403843172 | I43: =IF(ISERROR(H43/H44),"",(H43/H44)) -> 0.1100005893 | J43: ='Waste Characterization-MODEL'!G56 -> 120.2358567 | K43: =IF(ISERROR(J43/J44),"",(J43/J44)) -> 0.3510010719 | L43: 795.3998816 | M43: =IF(ISERROR(L43/L44),"",(L43/L44)) -> 0.2674690001 | Q43: Other / Undifferentiated | R43: 659.13781 | S43: =IF(ISERROR(R43/R44),"",(R43/R44)) -> 0.2719997362 | T43: =F43 -> 14.62237182 | U43: =IF(ISERROR(T43/T44),"",(T43/T44)) -> 0.0749152137 | V43: =H43 -> 1.403843172 | W43: =IF(ISERROR(V43/V44),"",(V43/V44)) -> 0.1100005893 | X43: 120.2358567 | Y43: =IF(ISERROR(X43/X44),"",(X43/X44)) -> 0.3510010719 | Z43: 795.3998816 | AA43: =IF(ISERROR(Z43/Z44),"",(Z43/Z44)) -> 0.2674690001
C44: Total | D44: =SUM(D36:D43) -> 2423.303122 | E44: =IF(ISERROR(D44/D44),"",(D44/D44)) -> 1 | F44: =SUM(F36:F43) -> 195.1856118 | G44: =IF(ISERROR(F44/F44),"",(F44/F44)) -> 1 | H44: =SUM(H36:H43) -> 12.76214228 | I44: =IF(ISERROR(H44/H44),"",(H44/H44)) -> 1 | J44: =SUM(J36:J43) -> 342.551252 | K44: =IF(ISERROR(J44/J44),"",(J44/J44)) -> 1 | L44: =SUM(L36:L43) -> 2973.802128 | M44: =IF(ISERROR(L44/L44),"",(L44/L44)) -> 1 | Q44: Total | R44: =SUM(R36:R43) -> 2423.303122 | S44: =IF(ISERROR(R44/R44),"",(R44/R44)) -> 1 | T44: =SUM(T36:T43) -> 195.1856118 | U44: =IF(ISERROR(T44/T44),"",(T44/T44)) -> 1 | V44: =SUM(V36:V43) -> 12.76214228 | W44: =IF(ISERROR(V44/V44),"",(V44/V44)) -> 1 | X44: =SUM(X36:X43) -> 342.551252 | Y44: =IF(ISERROR(X44/X44),"",(X44/X44)) -> 1 | Z44: =SUM(Z36:Z43) -> 2973.802128 | AA44: =IF(ISERROR(Z44/Z44),"",(Z44/Z44)) -> 1
C47: Commercial | D47: Landfilled | F47: Recycled | H47: Composted | J47: Combustion | L47: Total Generated | Q47: Commercial | R47: Landfilled | T47: Recycled | V47: Composted | X47: Combustion | Z47: Total Generated
C48: =IF(MFH_ResorCom="commercial","Note: subtracts waste from Multi-Family homes.","") ->  | D48: Tons | E48: % of Total Tons Landfilled | F48: Tons | G48: % of Total Tons Recycled | H48: Tons | I48: % of Total Tons Composted | J48: Tons | K48: % of Total Tons Combusted | L48: Tons | M48: % of Total Tons Generated | Q48: =IF(MFH_ResorCom="commercial","Note: subtracts waste from Multi-Family homes.","") ->  | R48: Tons | S48: % of Total Tons Landfilled | T48: Tons | U48: % of Total Tons Recycled | V48: Tons | W48: % of Total Tons Composted | X48: Tons | Y48: % of Total Tons Combusted | Z48: Tons | AA48: % of Total Tons Generated
C49: Metal | D49: ='Waste Characterization-MODEL'!E66 -> 596.5056 | E49: =IF(ISERROR(D49/D57),"",(D49/D57)) -> 0.04799999382 | F49: ='Waste Characterization-MODEL'!J66 -> 730.0731804 | G49: =IF(ISERROR(F49/F57),"",(F49/F57)) -> 0.121563136 | L49: =SUM(F49,H49,J49,D49) -> 1326.57878 | M49: =IF(ISERROR(L49/L57),"",(L49/L57)) -> 0.05743040249 | Q49: Metal | R49: =D49 -> 596.5056 | S49: =IF(ISERROR(R49/R57),"",(R49/R57)) -> 0.04799999382 | T49: =F49 -> 730.0731804 | U49: =IF(ISERROR(T49/T57),"",(T49/T57)) -> 0.121563136 | Z49: =SUM(T49,V49,X49,R49) -> 1326.57878 | AA49: =IF(ISERROR(Z49/Z57),"",(Z49/Z57)) -> 0.05743040249
C50: Glass | D50: ='Waste Characterization-MODEL'!E67 -> 248.544 | E50: =IF(ISERROR(D50/D57),"",(D50/D57)) -> 0.01999999743 | F50: ='Waste Characterization-MODEL'!J67 -> 292.2148054 | G50: =IF(ISERROR(F50/F57),"",(F50/F57)) -> 0.04865614718 | L50: 540.7588054 | M50: =IF(ISERROR(L50/L57),"",(L50/L57)) -> 0.02341059295 | Q50: Glass | R50: 248.544 | S50: =IF(ISERROR(R50/R57),"",(R50/R57)) -> 0.01999999743 | T50: =F50 -> 292.2148054 | U50: =IF(ISERROR(T50/T57),"",(T50/T57)) -> 0.04865614718 | Z50: 540.7588054 | AA50: =IF(ISERROR(Z50/Z57),"",(Z50/Z57)) -> 0.02341059295
C51: Plastic | D51: ='Waste Characterization-MODEL'!E68 -> 2025.6336 | E51: =IF(ISERROR(D51/D57),"",(D51/D57)) -> 0.162999979 | F51: ='Waste Characterization-MODEL'!J68 -> 278.2998146 | G51: =IF(ISERROR(F51/F57),"",(F51/F57)) -> 0.04633918779 | J51: ='Waste Characterization-MODEL'!G68 -> 440.51891 | K51: =IF(ISERROR(J51/J57),"",(J51/J57)) -> 0.1629999729 | L51: 2744.452325 | M51: =IF(ISERROR(L51/L57),"",(L51/L57)) -> 0.1188131485 | Q51: Plastic | R51: 2025.6336 | S51: =IF(ISERROR(R51/R57),"",(R51/R57)) -> 0.162999979 | T51: =F51 -> 278.2998146 | U51: =IF(ISERROR(T51/T57),"",(T51/T57)) -> 0.04633918779 | X51: =J51 -> 440.51891 | Y51: =IF(ISERROR(X51/X57),"",(X51/X57)) -> 0.1629999729 | Z51: 2744.452325 | AA51: =IF(ISERROR(Z51/Z57),"",(Z51/Z57)) -> 0.1188131485
C52: Paper | D52: ='Waste Characterization-MODEL'!E69 -> 3106.8 | E52: =IF(ISERROR(D52/D57),"",(D52/D57)) -> 0.2499999678 | F52: ='Waste Characterization-MODEL'!J69 -> 4026.070652 | G52: =IF(ISERROR(F52/F57),"",(F52/F57)) -> 0.6703735834 | J52: ='Waste Characterization-MODEL'!G69 -> 675.6425 | K52: =IF(ISERROR(J52/J57),"",(J52/J57)) -> 0.2499999584 | L52: 7808.513152 | M52: =IF(ISERROR(L52/L57),"",(L52/L57)) -> 0.3380470574 | Q52: Paper | R52: 3106.8 | S52: =IF(ISERROR(R52/R57),"",(R52/R57)) -> 0.2499999678 | T52: =F52 -> 4026.070652 | U52: =IF(ISERROR(T52/T57),"",(T52/T57)) -> 0.6703735834 | X52: 675.6425 | Y52: =IF(ISERROR(X52/X57),"",(X52/X57)) -> 0.2499999584 | Z52: 7808.513152 | AA52: =IF(ISERROR(Z52/Z57),"",(Z52/Z57)) -> 0.3380470574
C53: Wood | D53: ='Waste Characterization-MODEL'!E70 -> 1441.5552 | E53: =IF(ISERROR(D53/D57),"",(D53/D57)) -> 0.1159999851 | F53: ='Waste Characterization-MODEL'!J70 -> 229.1335141 | G53: =IF(ISERROR(F53/F57),"",(F53/F57)) -> 0.03815259795 | J53: ='Waste Characterization-MODEL'!G70 -> 313.49812 | K53: =IF(ISERROR(J53/J57),"",(J53/J57)) -> 0.1159999807 | L53: 1984.186834 | M53: =IF(ISERROR(L53/L57),"",(L53/L57)) -> 0.08589964665 | Q53: Wood | R53: 1441.5552 | S53: =IF(ISERROR(R53/R57),"",(R53/R57)) -> 0.1159999851 | T53: =F53 -> 229.1335141 | U53: =IF(ISERROR(T53/T57),"",(T53/T57)) -> 0.03815259795 | X53: 313.49812 | Y53: =IF(ISERROR(X53/X57),"",(X53/X57)) -> 0.1159999807 | Z53: 1984.186834 | AA53: =IF(ISERROR(Z53/Z57),"",(Z53/Z57)) -> 0.08589964665
C54: Food Waste | D54: ='Waste Characterization-MODEL'!E71 -> 1690.0992 | E54: =IF(ISERROR(D54/D57),"",(D54/D57)) -> 0.1359999825 | H54: ='Waste Characterization-MODEL'!L71 -> 160.9926203 | I54: =IF(ISERROR(H54/H57),"",(H54/H57)) -> 0.08199643494 | J54: ='Waste Characterization-MODEL'!G71 -> 367.54952 | K54: =IF(ISERROR(J54/J57),"",(J54/J57)) -> 0.1359999774 | L54: 2218.64134 | M54: =IF(ISERROR(L54/L57),"",(L54/L57)) -> 0.09604967834 | Q54: Food Waste | R54: 1690.0992 | S54: =IF(ISERROR(R54/R57),"",(R54/R57)) -> 0.1359999825 | V54: =H54 -> 160.9926203 | W54: =IF(ISERROR(V54/V57),"",(V54/V57)) -> 0.08199643494 | X54: 367.54952 | Y54: =IF(ISERROR(X54/X57),"",(X54/X57)) -> 0.1359999774 | Z54: 2218.64134 | AA54: =IF(ISERROR(Z54/Z57),"",(Z54/Z57)) -> 0.09604967834
C55: Yard Trimmings | D55: ='Waste Characterization-MODEL'!E72 -> 248.544 | E55: =IF(ISERROR(D55/D57),"",(D55/D57)) -> 0.01999999743 | H55: ='Waste Characterization-MODEL'!L72 -> 1802.41738 | I55: =IF(ISERROR(H55/H57),"",(H55/H57)) -> 0.9180035651 | J55: ='Waste Characterization-MODEL'!G72 -> 54.0514 | K55: =IF(ISERROR(J55/J57),"",(J55/J57)) -> 0.01999999667 | L55: 2105.01278 | M55: =IF(ISERROR(L55/L57),"",(L55/L57)) -> 0.09113045751 | Q55: Yard Trimmings | R55: 248.544 | S55: =IF(ISERROR(R55/R57),"",(R55/R57)) -> 0.01999999743 | V55: =H55 -> 1802.41738 | W55: =IF(ISERROR(V55/V57),"",(V55/V57)) -> 0.9180035651 | X55: 54.0514 | Y55: =IF(ISERROR(X55/X57),"",(X55/X57)) -> 0.01999999667 | Z55: 2105.01278 | AA55: =IF(ISERROR(Z55/Z57),"",(Z55/Z57)) -> 0.09113045751
C56: Other / Undifferentiated | D56: ='Waste Characterization-MODEL'!E73 -> 3069.52 | E56: =IF(ISERROR(D56/D57),"",(D56/D57)) -> 0.2470000969 | F56: ='Waste Characterization-MODEL'!J73 -> 449.92 | G56: =IF(ISERROR(F56/F57),"",(F56/F57)) -> 0.07491534768 | H56: ='Waste Characterization-MODEL'!L73 -> 0 | I56: =IF(ISERROR(H56/H57),"",(H56/H57)) -> 0 | J56: ='Waste Characterization-MODEL'!G73 -> 851.31 | K56: =IF(ISERROR(J56/J57),"",(J56/J57)) -> 0.3150001141 | L56: 4370.75 | M56: =IF(ISERROR(L56/L57),"",(L56/L57)) -> 0.1892190162 | Q56: Other / Undifferentiated | R56: 3069.52 | S56: =IF(ISERROR(R56/R57),"",(R56/R57)) -> 0.2470000969 | T56: =F56 -> 449.92 | U56: =IF(ISERROR(T56/T57),"",(T56/T57)) -> 0.07491534768 | V56: =H56 -> 0 | W56: =IF(ISERROR(V56/V57),"",(V56/V57)) -> 0 | X56: 851.31 | Y56: =IF(ISERROR(X56/X57),"",(X56/X57)) -> 0.3150001141 | Z56: 4370.75 | AA56: =IF(ISERROR(Z56/Z57),"",(Z56/Z57)) -> 0.1892190162
C57: Total | D57: =SUM(D49:D56) -> 12427.2016 | E57: =IF(ISERROR(D57/D57),"",(D57/D57)) -> 1 | F57: =SUM(F49:F56) -> 6005.711966 | G57: =IF(ISERROR(F57/F57),"",(F57/F57)) -> 1 | H57: =SUM(H49:H56) -> 1963.41 | I57: =IF(ISERROR(H57/H57),"",(H57/H57)) -> 1 | J57: =SUM(J49:J56) -> 2702.57045 | K57: =IF(ISERROR(J57/J57),"",(J57/J57)) -> 1 | L57: =SUM(L49:L56) -> 23098.89402 | M57: =IF(ISERROR(L57/L57),"",(L57/L57)) -> 1 | Q57: Total | R57: =SUM(R49:R56) -> 12427.2016 | S57: =IF(ISERROR(R57/R57),"",(R57/R57)) -> 1 | T57: =SUM(T49:T56) -> 6005.711966 | U57: =IF(ISERROR(T57/T57),"",(T57/T57)) -> 1 | V57: =SUM(V49:V56) -> 1963.41 | W57: =IF(ISERROR(V57/V57),"",(V57/V57)) -> 1 | X57: =SUM(X49:X56) -> 2702.57045 | Y57: =IF(ISERROR(X57/X57),"",(X57/X57)) -> 1 | Z57: =SUM(Z49:Z56) -> 23098.89402 | AA57: =IF(ISERROR(Z57/Z57),"",(Z57/Z57)) -> 1
C60: C&D | Q60: C&D
D61: Landfilled | F61: Recycled | H61: Composted | J61: Combustion | L61: Total Generated | R61: Landfilled | T61: Recycled | V61: Composted | X61: Combustion | Z61: Total Generated
D62: Tons | E62: % of Total Tons Landfilled | F62: Tons | G62: % of Total Tons Recycled | H62: Tons | I62: % of Total Tons Composted | J62: Tons | K62: % of Total Tons Combusted | L62: Tons | M62: % of Total Tons Generated | R62: Tons | S62: % of Total Tons Landfilled | T62: Tons | U62: % of Total Tons Recycled | V62: Tons | W62: % of Total Tons Composted | X62: Tons | Y62: % of Total Tons Combusted | Z62: Tons | AA62: % of Total Tons Generated
C63: Asphalt Concrete | D63: ='Waste Characterization-MODEL'!E82 -> 2085 | E63: =IF(ISERROR(D63/D80),"",(D63/D80)) -> 0.1 | F63: ='Waste Characterization-MODEL'!J82 -> 1283.5 | G63: =IF(ISERROR(F63/F80),"",(F63/F80)) -> 0.17 | L63: =SUM(F63,H63,J63,D63) -> 3368.5 | M63: =IF(ISERROR(L63/L80),"",(L63/L80)) -> 0.1186091549 | Q63: Asphalt Concrete | R63: =D63 -> 2085 | S63: =IF(ISERROR(R63/R80),"",(R63/R80)) -> 0.1 | T63: =F63 -> 1283.5 | U63: =IF(ISERROR(T63/T80),"",(T63/T80)) -> 0.17 | Z63: =SUM(T63,V63,X63,R63) -> 3368.5 | AA63: =IF(ISERROR(Z63/Z80),"",(Z63/Z80)) -> 0.1186091549
C64: Concrete | D64: ='Waste Characterization-MODEL'!E83 -> 2502 | E64: =IF(ISERROR(D64/D80),"",(D64/D80)) -> 0.12 | F64: ='Waste Characterization-MODEL'!J83 -> 4454.5 | G64: =IF(ISERROR(F64/F80),"",(F64/F80)) -> 0.59 | L64: 6956.5 | M64: =IF(ISERROR(L64/L80),"",(L64/L80)) -> 0.2449471831 | Q64: Concrete | R64: 2502 | S64: =IF(ISERROR(R64/R80),"",(R64/R80)) -> 0.12 | T64: 4454.5 | U64: =IF(ISERROR(T64/T80),"",(T64/T80)) -> 0.59 | Z64: 6956.5 | AA64: =IF(ISERROR(Z64/Z80),"",(Z64/Z80)) -> 0.2449471831
C65: Drywall | D65: ='Waste Characterization-MODEL'!E84 -> 1688.85 | E65: =IF(ISERROR(D65/D80),"",(D65/D80)) -> 0.081 | F65: ='Waste Characterization-MODEL'!J84 -> 151 | G65: =IF(ISERROR(F65/F80),"",(F65/F80)) -> 0.02 | L65: 1839.85 | M65: =IF(ISERROR(L65/L80),"",(L65/L80)) -> 0.0647834507 | Q65: Drywall | R65: 1688.85 | S65: =IF(ISERROR(R65/R80),"",(R65/R80)) -> 0.081 | T65: 151 | U65: =IF(ISERROR(T65/T80),"",(T65/T80)) -> 0.02 | Z65: 1839.85 | AA65: =IF(ISERROR(Z65/Z80),"",(Z65/Z80)) -> 0.0647834507
C66: Dimensional lumber and General Wood Products | D66: ='Waste Characterization-MODEL'!E85 -> 3273.45 | E66: =IF(ISERROR(D66/D80),"",(D66/D80)) -> 0.157 | F66: ='Waste Characterization-MODEL'!J85 -> 377.5 | G66: =IF(ISERROR(F66/F80),"",(F66/F80)) -> 0.05 | L66: 3650.95 | M66: =IF(ISERROR(L66/L80),"",(L66/L80)) -> 0.1285545775 | Q66: Dimensional lumber and General Wood Products | R66: 3273.45 | S66: =IF(ISERROR(R66/R80),"",(R66/R80)) -> 0.157 | T66: 377.5 | U66: =IF(ISERROR(T66/T80),"",(T66/T80)) -> 0.05 | Z66: 3650.95 | AA66: =IF(ISERROR(Z66/Z80),"",(Z66/Z80)) -> 0.1285545775
C67: Medium-Density Fiberboard, Plywood, and Related Products | D67: ='Waste Characterization-MODEL'!E86 -> 938.25 | E67: =IF(ISERROR(D67/D80),"",(D67/D80)) -> 0.045 | F67: ='Waste Characterization-MODEL'!J86 -> 151 | G67: =IF(ISERROR(F67/F80),"",(F67/F80)) -> 0.02 | L67: 1089.25 | M67: =IF(ISERROR(L67/L80),"",(L67/L80)) -> 0.03835387324 | Q67: Medium-Density Fiberboard, Plywood, and Related Products | R67: 938.25 | S67: =IF(ISERROR(R67/R80),"",(R67/R80)) -> 0.045 | T67: 151 | U67: =IF(ISERROR(T67/T80),"",(T67/T80)) -> 0.02 | Z67: 1089.25 | AA67: =IF(ISERROR(Z67/Z80),"",(Z67/Z80)) -> 0.03835387324
C68: Asphalt Shingles-Fiberglass | D68: ='Waste Characterization-MODEL'!E87 -> 3044.1 | E68: =IF(ISERROR(D68/D80),"",(D68/D80)) -> 0.146 | F68: ='Waste Characterization-MODEL'!J87 -> 377.5 | G68: =IF(ISERROR(F68/F80),"",(F68/F80)) -> 0.05 | L68: 3421.6 | M68: =IF(ISERROR(L68/L80),"",(L68/L80)) -> 0.1204788732 | Q68: Asphalt Shingles-Fiberglass | R68: 3044.1 | S68: =IF(ISERROR(R68/R80),"",(R68/R80)) -> 0.146 | T68: 377.5 | U68: =IF(ISERROR(T68/T80),"",(T68/T80)) -> 0.05 | Z68: 3421.6 | AA68: =IF(ISERROR(Z68/Z80),"",(Z68/Z80)) -> 0.1204788732
C69: Clay Bricks | D69: ='Waste Characterization-MODEL'!E88 -> 1334.4 | E69: =IF(ISERROR(D69/D80),"",(D69/D80)) -> 0.064 | F69: ='Waste Characterization-MODEL'!J88 -> 60.4 | G69: =IF(ISERROR(F69/F80),"",(F69/F80)) -> 0.008 | L69: 1394.8 | M69: =IF(ISERROR(L69/L80),"",(L69/L80)) -> 0.04911267606 | Q69: Clay Bricks | R69: 1334.4 | S69: =IF(ISERROR(R69/R80),"",(R69/R80)) -> 0.064 | T69: 60.4 | U69: =IF(ISERROR(T69/T80),"",(T69/T80)) -> 0.008 | Z69: 1394.8 | AA69: =IF(ISERROR(Z69/Z80),"",(Z69/Z80)) -> 0.04911267606
C70: Ferrous Metals | D70: ='Waste Characterization-MODEL'!E89 -> 500.4 | E70: =IF(ISERROR(D70/D80),"",(D70/D80)) -> 0.024 | F70: ='Waste Characterization-MODEL'!J89 -> 377.5 | G70: =IF(ISERROR(F70/F80),"",(F70/F80)) -> 0.05 | L70: 877.9 | M70: =IF(ISERROR(L70/L80),"",(L70/L80)) -> 0.03091197183 | Q70: Ferrous Metals | R70: 500.4 | S70: =IF(ISERROR(R70/R80),"",(R70/R80)) -> 0.024 | T70: 377.5 | U70: =IF(ISERROR(T70/T80),"",(T70/T80)) -> 0.05 | Z70: 877.9 | AA70: =IF(ISERROR(Z70/Z80),"",(Z70/Z80)) -> 0.03091197183
C71: Non Ferrous Metals | D71: ='Waste Characterization-MODEL'!E90 -> 83.4 | E71: =IF(ISERROR(D71/D80),"",(D71/D80)) -> 0.004 | F71: ='Waste Characterization-MODEL'!J90 -> 30.2 | G71: =IF(ISERROR(F71/F80),"",(F71/F80)) -> 0.004 | L71: 113.6 | M71: =IF(ISERROR(L71/L80),"",(L71/L80)) -> 0.004 | Q71: Non Ferrous Metals | R71: 83.4 | S71: =IF(ISERROR(R71/R80),"",(R71/R80)) -> 0.004 | T71: 30.2 | U71: =IF(ISERROR(T71/T80),"",(T71/T80)) -> 0.004 | Z71: 113.6 | AA71: =IF(ISERROR(Z71/Z80),"",(Z71/Z80)) -> 0.004
C72: Mixed Plastics | D72: ='Waste Characterization-MODEL'!E91 -> 166.8 | E72: =IF(ISERROR(D72/D80),"",(D72/D80)) -> 0.008 | F72: ='Waste Characterization-MODEL'!J91 -> 52.85 | G72: =IF(ISERROR(F72/F80),"",(F72/F80)) -> 0.007 | L72: 219.65 | M72: =IF(ISERROR(L72/L80),"",(L72/L80)) -> 0.00773415493 | Q72: Mixed Plastics | R72: 166.8 | S72: =IF(ISERROR(R72/R80),"",(R72/R80)) -> 0.008 | T72: 52.85 | U72: =IF(ISERROR(T72/T80),"",(T72/T80)) -> 0.007 | Z72: 219.65 | AA72: =IF(ISERROR(Z72/Z80),"",(Z72/Z80)) -> 0.00773415493
C73: Cardboard | D73: ='Waste Characterization-MODEL'!E92 -> 166.8 | E73: =IF(ISERROR(D73/D80),"",(D73/D80)) -> 0.008 | F73: ='Waste Characterization-MODEL'!J92 -> 90.6 | G73: =IF(ISERROR(F73/F80),"",(F73/F80)) -> 0.012 | L73: 257.4 | M73: =IF(ISERROR(L73/L80),"",(L73/L80)) -> 0.009063380282 | Q73: Cardboard | R73: 166.8 | S73: =IF(ISERROR(R73/R80),"",(R73/R80)) -> 0.008 | T73: 90.6 | U73: =IF(ISERROR(T73/T80),"",(T73/T80)) -> 0.012 | Z73: 257.4 | AA73: =IF(ISERROR(Z73/Z80),"",(Z73/Z80)) -> 0.009063380282
C74: Carpet | D74: ='Waste Characterization-MODEL'!E93 -> 250.2 | E74: =IF(ISERROR(D74/D80),"",(D74/D80)) -> 0.012 | F74: ='Waste Characterization-MODEL'!J93 -> 15.1 | G74: =IF(ISERROR(F74/F80),"",(F74/F80)) -> 0.002 | L74: 265.3 | M74: =IF(ISERROR(L74/L80),"",(L74/L80)) -> 0.009341549296 | Q74: Carpet | R74: 250.2 | S74: =IF(ISERROR(R74/R80),"",(R74/R80)) -> 0.012 | T74: 15.1 | U74: =IF(ISERROR(T74/T80),"",(T74/T80)) -> 0.002 | Z74: 265.3 | AA74: =IF(ISERROR(Z74/Z80),"",(Z74/Z80)) -> 0.009341549296
B75: HIDE | C75: Vinyl Flooring | D75: ='Waste Characterization-MODEL'!E94 -> 0 | E75: =IF(ISERROR(D75/D80),"",(D75/D80)) -> 0 | F75: ='Waste Characterization-MODEL'!J94 -> 0 | G75: =IF(ISERROR(F75/F80),"",(F75/F80)) -> 0 | L75: 0 | M75: =IF(ISERROR(L75/L80),"",(L75/L80)) -> 0 | Q75: Vinyl Flooring | R75: 0 | S75: =IF(ISERROR(R75/R80),"",(R75/R80)) -> 0 | T75: 0 | U75: =IF(ISERROR(T75/T80),"",(T75/T80)) -> 0 | Z75: 0 | AA75: =IF(ISERROR(Z75/Z80),"",(Z75/Z80)) -> 0
B76: HIDE | C76: PVC | D76: ='Waste Characterization-MODEL'!E95 -> 0 | E76: =IF(ISERROR(D76/D80),"",(D76/D80)) -> 0 | F76: ='Waste Characterization-MODEL'!J95 -> 0 | G76: =IF(ISERROR(F76/F80),"",(F76/F80)) -> 0 | L76: 0 | M76: =IF(ISERROR(L76/L80),"",(L76/L80)) -> 0 | Q76: PVC | R76: 0 | S76: =IF(ISERROR(R76/R80),"",(R76/R80)) -> 0 | T76: 0 | U76: =IF(ISERROR(T76/T80),"",(T76/T80)) -> 0 | Z76: 0 | AA76: =IF(ISERROR(Z76/Z80),"",(Z76/Z80)) -> 0
B77: HIDE | C77: Fiberglass Insulation | D77: ='Waste Characterization-MODEL'!E96 -> 0 | E77: =IF(ISERROR(D77/D80),"",(D77/D80)) -> 0 | F77: ='Waste Characterization-MODEL'!J96 -> 0 | G77: =IF(ISERROR(F77/F80),"",(F77/F80)) -> 0 | L77: 0 | M77: =IF(ISERROR(L77/L80),"",(L77/L80)) -> 0 | Q77: Fiberglass Insulation | R77: 0 | S77: =IF(ISERROR(R77/R80),"",(R77/R80)) -> 0 | T77: 0 | U77: =IF(ISERROR(T77/T80),"",(T77/T80)) -> 0 | Z77: 0 | AA77: =IF(ISERROR(Z77/Z80),"",(Z77/Z80)) -> 0
B78: HIDE | C78: Wood Flooring, Cabinets, Doors | D78: ='Waste Characterization-MODEL'!E97 -> 0 | E78: =IF(ISERROR(D78/D80),"",(D78/D80)) -> 0 | F78: ='Waste Characterization-MODEL'!J97 -> 0 | G78: =IF(ISERROR(F78/F80),"",(F78/F80)) -> 0 | L78: 0 | M78: =IF(ISERROR(L78/L80),"",(L78/L80)) -> 0 | Q78: Wood Flooring, Cabinets, Doors | R78: 0 | S78: =IF(ISERROR(R78/R80),"",(R78/R80)) -> 0 | T78: 0 | U78: =IF(ISERROR(T78/T80),"",(T78/T80)) -> 0 | Z78: 0 | AA78: =IF(ISERROR(Z78/Z80),"",(Z78/Z80)) -> 0
C79: Other / Undifferentiated | D79: ='Waste Characterization-MODEL'!E98 -> 4816.35 | E79: =IF(ISERROR(D79/D80),"",(D79/D80)) -> 0.231 | F79: ='Waste Characterization-MODEL'!J98 -> 128.35 | G79: =IF(ISERROR(F79/F80),"",(F79/F80)) -> 0.017 | L79: 4944.7 | M79: =IF(ISERROR(L79/L80),"",(L79/L80)) -> 0.1741091549 | Q79: Other / Undifferentiated | R79: 4816.35 | S79: =IF(ISERROR(R79/R80),"",(R79/R80)) -> 0.231 | T79: 128.35 | U79: =IF(ISERROR(T79/T80),"",(T79/T80)) -> 0.017 | Z79: 4944.7 | AA79: =IF(ISERROR(Z79/Z80),"",(Z79/Z80)) -> 0.1741091549
C80: Total | D80: =SUM(D63:D79) -> 20850 | E80: =IF(ISERROR(D80/D80),"",(D80/D80)) -> 1 | F80: =SUM(F63:F79) -> 7550 | G80: =IF(ISERROR(F80/F80),"",(F80/F80)) -> 1 | L80: =SUM(L63:L79) -> 28400 | M80: =IF(ISERROR(L80/L80),"",(L80/L80)) -> 1 | Q80: Total | R80: =SUM(R63:R79) -> 20850 | S80: =IF(ISERROR(R80/R80),"",(R80/R80)) -> 1 | T80: =SUM(T63:T79) -> 7550 | U80: =IF(ISERROR(T80/T80),"",(T80/T80)) -> 1 | Z80: =SUM(Z63:Z79) -> 28400 | AA80: =IF(ISERROR(Z80/Z80),"",(Z80/Z80)) -> 1
C83: =C6+1 -> 2017
D85: Business as Usual | R85: With Strategies Implemented | AF85: Tonnage and GHG Calculations | AX85: Additional GHG Calculations
C87: ="Residential, Overall" -> Residential, Overall | D87: Landfilled | F87: Recycled | H87: Composted | J87: Combustion | L87: Total Generated | Q87: Residential | R87: Landfilled | T87: Recycled | V87: Composted | X87: Combustion | Z87: Total Generated | AE87: Residential | AF87: Vs. Landfilling (average LFG recovery) | AI87: Vs. WTE Combustion | AL87: Vs. Recycling | AM87: Vs. Composting | AO87: Vs. Landfilling (average LFG recovery) | AR87: Vs. WTE Combustion | AU87: Vs. Recycling | AV87: Vs. Composting | AX87: BAU GHG Emissions | BD87: Strategy GHG Emissions
C88: ="Note: Includes waste from Single-Family" & IF(MFH_ResorCom="commercial"," homes only"," and Multi-Family homes") -> Note: Includes waste from Single-Family and Multi-Family homes | D88: Tons | E88: % of Total Tons Landfilled | F88: Tons | G88: % of Total Tons Recycled | H88: Tons | I88: % of Total Tons Composted | J88: Tons | K88: % of Total Tons Combusted | L88: Tons | M88: % of Total Tons Generated | Q88: Strategies included: PAYT, Food Waste Collection, and Multi-Family Recycling | R88: Tons | S88: % of Total Tons Landfilled | T88: Tons | U88: % of Total Tons Recycled | V88: Tons | W88: % of Total Tons Composted | X88: Tons | Y88: % of Total Tons Combusted | Z88: Tons | AA88: % of Total Tons Generated | AF88: Source Reduction (tons) | AG88: Recycling (tons) | AH88: Composting (tons) | AI88: Source Reduction (tons) | AJ88: Recycling (tons) | AK88: Composting (tons) | AL88: Source Reduction (tons) | AM88: Source Reduction (tons) | AO88: Source Reduction (MTCO2e) | AP88: Recycling (MTCO2e) | AQ88: Composting (MTCO2e) | AR88: Source Reduction (MTCO2e) | AS88: Recycling (MTCO2e) | AT88: Composting (MTCO2e) | AU88: Source Reduction (MTCO2e) | AV88: Source Reduction (tons) | AX88: Total (MTCO2e) | AY88: Source Reduction (MTCO2e) | AZ88: Recycling (MTCO2e) | BA88: Composting (MTCO2e) | BB88: Combustion (MTCO2e) | BC88: Landfilling (MTCO2e) | BD88: Total (MTCO2e) | BE88: Source Reduction (MTCO2e) | BF88: Recycling (MTCO2e) | BG88: Composting (MTCO2e) | BH88: Combustion (MTCO2e) | BI88: Landfilling (MTCO2e)
C89: Metal | D89: =D12*(1+'Basic Information'!$I$8)*(1+'Basic Information'!$E$53) -> 633.1004423 | E89: =IF(ISERROR(D89/D97),"",(D89/D97)) -> 0.04700001703 | F89: =F12*(1+'Basic Information'!$I$8)*(1+'Basic Information'!$E$53) -> 791.3483837 | G89: =IF(ISERROR(F89/F97),"",(F89/F97)) -> 0.1215631536 | L89: =SUM(F89,H89,J89,D89) -> 1424.448826 | M89: =IF(ISERROR(L89/L97),"",(L89/L97)) -> 0.05689242466 | Q89: Metal | R89: =R101 + IF(MFH_ResorCom<>"commercial",R113,0) -> 408.6224703 | S89: =IF(ISERROR(R89/R97),"",(R89/R97)) -> 0.0416687466 | T89: =T101 + IF(MFH_ResorCom<>"commercial",T113,0) -> 938.6213361 | U89: =IF(ISERROR(T89/T97),"",(T89/T97)) -> 0.1088624213 | Z89: =SUM(T89,V89,X89,R89) -> 1347.243806 | AA89: =IF(ISERROR(Z89/Z97),"",(Z89/Z97)) -> 0.05681251811 | AE89: Metal | AF89: =AF101 + IF(MFH_ResorCom<>"commercial",AF113,0) -> 31.14854379 | AG89: 193.3294282 | AI89: =AI101 + IF(MFH_ResorCom<>"commercial",AI113,0) -> 0 | AJ89: 0 | AL89: =AL101 + IF(MFH_ResorCom<>"commercial",AL113,0) -> 46.05647587 | AO89: =AF89*'Emission Factors'!$C$9 -> -115.9576331 | AP89: =AG89*'Emission Factors'!$D$9 -> -843.047513 | AR89: =AI89*'Emission Factors'!$F$9 -> 0 | AS89: =AJ89*'Emission Factors'!$G$9 -> 0 | AU89: =AL89*'Emission Factors'!$K$9 -> 29.38164554 | AX89: =SUM(AY89:BC89) -> -3421.964487 | AZ89: =F89*'Emission Factors'!$Q$9 -> -3434.787632 | BB89: =J89*'Emission Factors'!$R$9 -> 0 | BC89: =D89*'Emission Factors'!$P$9 -> 12.82314503 | BD89: =SUM(BE89:BI89) -> -4351.587988 | BE89: =(L89-Z89)*'Emission Factors'!$O$9 -> -285.8497287 | BF89: =T89*'Emission Factors'!$Q$9 -> -4074.014711 | BH89: =X89*'Emission Factors'!$R$9 -> 0 | BI89: =R89*'Emission Factors'!$P$9 -> 8.276451645
C90: Glass | D90: =D13*(1+'Basic Information'!$I$8)*(1+'Basic Information'!$E$53) -> 431.0471096 | E90: =IF(ISERROR(D90/D97),"",(D90/D97)) -> 0.03200001159 | F90: =F13*(1+'Basic Information'!$I$8)*(1+'Basic Information'!$E$53) -> 316.7404585 | G90: =IF(ISERROR(F90/F97),"",(F90/F97)) -> 0.04865615423 | L90: 747.7875682 | M90: =IF(ISERROR(L90/L97),"",(L90/L97)) -> 0.02986660321 | Q90: Glass | R90: 310.5723506 | S90: =IF(ISERROR(R90/R97),"",(R90/R97)) -> 0.03167021278 | T90: =T102 + IF(MFH_ResorCom<>"commercial",T114,0) -> 397.5734037 | U90: =IF(ISERROR(T90/T97),"",(T90/T97)) -> 0.04611103721 | Z90: 708.1457543 | AA90: =IF(ISERROR(Z90/Z97),"",(Z90/Z97)) -> 0.02986211056 | AE90: Glass | AF90: 21.20751918 | AG90: 99.26723984 | AI90: 0 | AJ90: 0 | AL90: =AL102 + IF(MFH_ResorCom<>"commercial",AL114,0) -> 18.43429466 | AO90: =AF90*'Emission Factors'!$C$10 -> -11.57761027 | AP90: =AG90*'Emission Factors'!$D$10 -> -29.46023287 | AR90: =AI90*'Emission Factors'!$F$10 -> 0 | AS90: =AJ90*'Emission Factors'!$G$10 -> 0 | AU90: =AL90*'Emission Factors'!$K$10 -> -4.59277683 | AX90: -78.85520302 | AZ90: =F90*'Emission Factors'!$Q$10 -> -87.58585495 | BB90: =J90*'Emission Factors'!$R$10 -> 0 | BC90: =D90*'Emission Factors'!$P$10 -> 8.730651933 | BD90: =SUM(BE90:BI90) -> -124.485823 | BE90: =(L90-Z90)*'Emission Factors'!$O$10 -> -20.83833574 | BF90: =T90*'Emission Factors'!$Q$10 -> -109.9379809 | BH90: =X90*'Emission Factors'!$R$10 -> 0 | BI90: =R90*'Emission Factors'!$P$10 -> 6.29049362
C91: Plastic | D91: =D14*(1+'Basic Information'!$I$8)*(1+'Basic Information'!$E$53) -> 1535.605328 | E91: =IF(ISERROR(D91/D97),"",(D91/D97)) -> 0.1140000413 | F91: =F14*(1+'Basic Information'!$I$8)*(1+'Basic Information'!$E$53) -> 301.6575796 | G91: =IF(ISERROR(F91/F97),"",(F91/F97)) -> 0.0463391945 | J91: =J14*(1+'Basic Information'!$I$8)*(1+'Basic Information'!$E$53) -> 333.9509081 | K91: =IF(ISERROR(J91/J97),"",(J91/J97)) -> 0.1139998117 | L91: 2171.213816 | M91: =IF(ISERROR(L91/L97),"",(L91/L97)) -> 0.08671818613 | Q91: Plastic | R91: 1235.242566 | S91: =IF(ISERROR(R91/R97),"",(R91/R97)) -> 0.1259622591 | T91: =T103 + IF(MFH_ResorCom<>"commercial",T115,0) -> 561.5583156 | U91: =IF(ISERROR(T91/T97),"",(T91/T97)) -> 0.06513020273 | X91: =X103 + IF(MFH_ResorCom<>"commercial",X115,0) -> 263.6119594 | Y91: =IF(ISERROR(X91/X97),"",(X91/X97)) -> 0.1267107585 | Z91: 2060.412841 | AA91: =IF(ISERROR(Z91/Z97),"",(Z91/Z97)) -> 0.08688645758 | AE91: Plastic | AF91: 75.55178707 | AG91: 224.8109752 | AI91: 17.69271674 | AJ91: 52.64623192 | AL91: =AL103 + IF(MFH_ResorCom<>"commercial",AL115,0) -> 17.55647111 | AO91: =AF91*'Emission Factors'!$C$11 -> -146.8140635 | AP91: =AG91*'Emission Factors'!$D$11 -> -234.4983355 | AR91: =AI91*'Emission Factors'!$F$11 -> -55.56233288 | AS91: =AJ91*'Emission Factors'!$G$11 -> -117.9419836 | AU91: =AL91*'Emission Factors'!$K$11 -> -15.80316071 | AX91: 129.1208425 | AZ91: =F91*'Emission Factors'!$Q$11 -> -308.5464182 | BB91: =J91*'Emission Factors'!$R$11 -> 406.5643131 | BC91: =D91*'Emission Factors'!$P$11 -> 31.10294751 | BD91: -441.4990336 | BE91: =(L91-Z91)*'Emission Factors'!$O$11 -> -213.066919 | BF91: =T91*'Emission Factors'!$Q$11 -> -574.3824077 | BH91: =X91*'Emission Factors'!$R$11 -> 320.9310489 | BI91: =R91*'Emission Factors'!$P$11 -> 25.01924419
C92: Paper | D92: =D15*(1+'Basic Information'!$I$8)*(1+'Basic Information'!$E$53) -> 2855.687101 | E92: =IF(ISERROR(D92/D97),"",(D92/D97)) -> 0.2120000768 | F92: =F15*(1+'Basic Information'!$I$8)*(1+'Basic Information'!$E$53) -> 4363.979651 | G92: =IF(ISERROR(F92/F97),"",(F92/F97)) -> 0.6703736805 | J92: =J15*(1+'Basic Information'!$I$8)*(1+'Basic Information'!$E$53) -> 621.0315133 | K92: =IF(ISERROR(J92/J97),"",(J92/J97)) -> 0.2119996498 | L92: 7840.698266 | M92: =IF(ISERROR(L92/L97),"",(L92/L97)) -> 0.3131571505 | Q92: Paper | R92: 1848.037964 | S92: =IF(ISERROR(R92/R97),"",(R92/R97)) -> 0.1884512752 | T92: =T104 + IF(MFH_ResorCom<>"commercial",T116,0) -> 5180.214379 | U92: =IF(ISERROR(T92/T97),"",(T92/T97)) -> 0.6008074376 | X92: 385.0602483 | Y92: =IF(ISERROR(X92/X97),"",(X92/X97)) -> 0.1850874908 | Z92: 7413.312591 | AA92: =IF(ISERROR(Z92/Z97),"",(Z92/Z97)) -> 0.3126152474 | AE92: Paper | AF92: 140.4998145 | AG92: 867.1493229 | AI92: 32.90224517 | AJ92: 203.0690198 | AL92: =AL104 + IF(MFH_ResorCom<>"commercial",AL116,0) -> 253.9836153 | AO92: =AF92*'Emission Factors'!$C$12 -> -876.8879538 | AP92: =AG92*'Emission Factors'!$D$12 -> -2690.280302 | AR92: =AI92*'Emission Factors'!$F$12 -> -184.3219205 | AS92: =AJ92*'Emission Factors'!$G$12 -> -500.2292254 | AU92: =AL92*'Emission Factors'!$K$12 -> -797.1940808 | AX92: -12935.51122 | AZ92: =F92*'Emission Factors'!$Q$12 -> -12982.20067 | BB92: =J92*'Emission Factors'!$R$12 -> -317.6624506 | BC92: =D92*'Emission Factors'!$P$12 -> 364.3519018 | BD92: -17984.4247 | BE92: =(L92-Z92)*'Emission Factors'!$O$12 -> -2612.871673 | BF92: =T92*'Emission Factors'!$Q$12 -> -15410.3795 | BH92: =X92*'Emission Factors'!$R$12 -> -196.9613128 | BI92: =R92*'Emission Factors'!$P$12 -> 235.7877887
